Workbook

Sheet 1 POM
C1: OPCIONES:
A2: Departamento: | D2: Chimaltenango | E2: Chimaltenango
A3: Municipio: | D3: Chimaltenango | E3: Chimaltenango | F3: Chimaltenango | G3: Chimaltenango
A4: VINCULACIÓN ESTRATÉGICA | H4: PLANIFICACIÓN ESTRATÉGICA | L4: PLANIFICACIÓN OPERATIVA MULTIANUAL
A5: No. de Vinculación | B5: 1. PDM-OT | C5: 2) Eje K'atun | D5: 3) Prioridades Nacionales de Desarrollo | E5: 4) Metas Estratégicas de Desarrollo (MED) | F5: 5) Resultados Estratégicos (RE) | G5: 6) Resultado Institucional (RI) | H5: 7) Resultado Municipal | K5: 8) Política General de Gobierno 2024-2028 | L5: 9) Programa Presupuestario | N5: 10) Producto | T5: 11. INTERVENCIONES (PROYECTOS O ACTIVIDADES) | X5: 12. Programación multianual de productos e intervenciones | AJ5: 13. Indicadores de Productos
B6: 1) Problemática/Potencialidad PDM-OT | H6: 7.1 Resultado PDM_OT al 2032 | I6: 7.2 Programa PDM (en caso no tenga PDM _OT aprobado) | J6: 7.3 Resultado PEI definido para el periodo 2026 - 2030 | K6: 8.1 Eje de la PGG | L6: 9.1 Programa Presupuestario | M6: 9.2 Subprograma | N6: 10.1 Nombre del Producto | O6: 10.2 Producto Competencia Propia | P6: 10.3 Producto Competencia delegada | Q6: 10.4 Unidad de Medida | R6: 10.5 Responsable del cumplimiento de meta del producto | S6: 10.6 Corresponsable del cumplimiento de la meta del producto | T6: 11.1 Nombre de la intervención (proyecto o actividad) | U6: 11.2 Código SNIP | V6: 11.3 Código SMIP | W6: 11.4 Unidad de Medida | X6: 2026 | Z6: 2027 | AB6: 2028 | AD6: 2029 | AF6: 2030 | AH6: Total multianual | AJ6: Nombre del indicador de producto | AK6: Fórmula del Indicador de producto | AL6: Segmento afectado por la problemática | AM6: Línea base | AP6: 2026 | AR6: 2027 | AT6: 2028 | AV6: 2029 | AX6: 2030 | AZ6: Meta del período
X7: 12.1 Física | Y7: 12.2 Financiera Quetzales | Z7: 12.3 Física | AA7: 12.4 Financiera Quetzales | AB7: 12.5 Física | AC7: 12.6 Financiera Quetzales | AD7: 12.7 Física | AE7: 12.8 Financiera Quetzales | AF7: 12.9 Física | AG7: 12.10 Financiera Quetzales | AH7: 12.11 Total Meta Física Multianual | AI7: 12.12 Total Meta financiera Multianual | AM7: Año | AN7: Datos Absolutos | AO7: Datos Relativos | AP7: Datos Absolutos | AQ7: Datos relativos en porcentaje | AR7: Datos Absolutos | AS7: Datos relativos en porcentaje | AT7: Datos Absolutos | AU7: Datos relativos en porcentaje | AV7: Datos Absolutos | AW7: Datos relativos en porcentaje | AX7: Datos Absolutos | AY7: Datos relativos en porcentaje | AZ7: Datos Absolutos | BA7: Datos relativos en porcentaje
A8: No. DE VINCULACIÓN | B8: 1) Problemática/Potencialidad PDM-OT | C8: 2) Eje K'atun | D8: 3) Prioridades Nacionales de Desarrollo | E8: 4) Metas Estratégicas de Desarrollo (MED) | F8: 5) Resultados Estratégicos (RE) | G8: 6) Resultado Institucional -RI- | H8: 7.1 Resultado PDM_OT al 2032 | I8: 7.2 Programa PDM (en caso no tenga PDM - OT aprobado) | J8: 7.3 Resultado PEI definido para el periodo 2026 - 2030 | K8: Eje de la PGG | L8: 9.1 Programa Presupuestario | M8: 9.2 Subprograma | N8: Columna1 | O8: 10.1 Producto Competencia Propia | P8: 10.2 Producto Competencia delegada | Q8: 10.3 Unidad de Medida | R8: 10.4 Responsable del cumplimiento de meta del producto | S8: 10.5 Corresponsable del cumplimiento de la meta del producto | T8: 11.1 Nombre de la intervención (proyecto o actividad) | U8: 11.2 Código SNIP | V8: 11.3 Código SMIP | W8: 11.4 Unidad de Medida | X8: Física 2026 | Y8: Financiera 2026 | Z8: Física 2027 | AA8: Financiera 2027 | AB8: Física 2028 | AC8: Financiera 2028 | AD8: Física 2029 | AE8: Financiera 2029 | AF8: Física 2030 | AG8: Financiera 2030 | AH8: 12.2 Total Meta Física Multianual | AI8: 12.3 Total Meta financiera Multianual | AJ8: Nombre del indicador de producto | AK8: Fórmula del Indicador de producto | AL8: Población objertivo del producto | AM8: Año | AN8: Datos Absolutos | AO8: Datos Relativos | AP8: Datos Absolutos 2026 | AQ8: Datos relativos en porcentaje 2026 | AR8: Datos Absolutos 2027 | AS8: Datos relativos en porcentaje 2027 | AT8: Datos Absolutos 2028 | AU8: Datos relativos en porcentaje 2028 | AV8: Datos Absolutos 2029 | AW8: Datos relativos en porcentaje 2029 | AX8: Datos Absolutos 2030 | AY8: Datos relativos en porcentaje 2030 | AZ8: Datos Absolutos MP | BA8: Datos relativos en porcentaje MP
C9: =IFERROR(VLOOKUP(A9,'5 Catálogo Productos 2026'!$A$8:$V$116,2,),"") ->  | D9: =IFERROR(VLOOKUP(A9,'5 Catálogo Productos 2026'!$A$8:$V$116,4,),"") ->  | E9: =IFERROR(VLOOKUP(A9,'5 Catálogo Productos 2026'!$A$8:$V$116,5,),"") ->  | F9: =IFERROR(VLOOKUP(A9,'5 Catálogo Productos 2026'!$A$8:$V$116,6,),"") ->  | G9: =IFERROR(VLOOKUP(A9,'5 Catálogo Productos 2026'!$A$8:$V$116,7,FALSE),"") ->  | K9: =IFERROR(VLOOKUP(A9,'5 Catálogo Productos 2026'!$A$8:$V$116,10,),"") ->  | L9: =IFERROR(VLOOKUP(A9,'5 Catálogo Productos 2026'!$A$8:$V$116,19,),"") ->  | M9: =IFERROR(VLOOKUP(A9,'5 Catálogo Productos 2026'!$A$8:$V$116,21,),"") ->  | N9: =IFERROR(VLOOKUP(A9,'5 Catálogo Productos 2026'!$A$8:$V$116,11,),"") ->  | O9: =IFERROR(VLOOKUP(A9,'5 Catálogo Productos 2026'!$A$8:$V$116,13,),"") ->  | P9: =IFERROR(VLOOKUP(A9,'5 Catálogo Productos 2026'!$A$8:$V$116,14,),"") ->  | Q9: =IFERROR(VLOOKUP(A9,'5 Catálogo Productos 2026'!$A$8:$V$116,12,),"") ->  | R9: =IFERROR(VLOOKUP(A9,'5 Catálogo Productos 2026'!$A$8:$V$116,16,),"") ->  | S9: =IFERROR(VLOOKUP(A9,'5 Catálogo Productos 2026'!$A$8:$V$116,17,),"") ->  | Y9: =SUM(Y10:Y19) -> 0 | AA9: =SUM(AA10:AA19) -> 0 | AC9: =SUM(AC10:AC19) -> 0 | AE9: =SUM(AE10:AE19) -> 0 | AG9: =SUM(AG10:AG19) -> 0 | AH9: =X9+Z9+AB9+AD9+AF9 -> 0 | AI9: =Y9+AA9+AC9+AE9+AG9 -> 0 | AZ9: =AP9+AR9+AT9+AV9+AX9 -> 0
AH10: =X10+Z10+AB10+AD10+AF10 -> 0 | AI10: =Y10+AA10+AC10+AE10+AG10 -> 0
AH11: =X11+Z11+AB11+AD11+AF11 -> 0 | AI11: 0
AH12: 0 | AI12: 0
AH13: 0 | AI13: 0
AH14: 0 | AI14: 0
AH15: 0 | AI15: 0
AH16: 0 | AI16: 0
AH17: 0 | AI17: 0
AH18: 0 | AI18: 0
AH19: 0 | AI19: 0

Sheet 2 POA (hidden)
C1: OPCIONES:
A2: Departamento: | B2: ='1 POM'!B2 -> 0 | E2: Chimaltenango | F2: Chimaltenango
A3: Municipio: | B3: ='1 POM'!B3 -> 0 | E3: Chimaltenango | F3: Chimaltenango | H3: Chimaltenango
A4: PLANIFICACIÓN ESTRATÉGICA | E4: PLANIFICACIÓN OPERATIVA ANUAL
A5: No. de Vinculación | B5: 1) Resultado Municipal | E5: 2) Programa Presupuestario | G5: 3) Producto | M5: 4) INTERVENCIONES (PROYECTOS O ACTIVIDADES) | Q5: 5) Programación anual de productos e intervenciones
B6: 1.1 Resultado PDM_OT al 2032 | C6: 1.2 Programa PDM (en caso no tenga PDM - OT aprobado) | D6: 1.3 Resultado PEI definido para el periodo 2026 - 2030 | E6: 2.1 Programa Presupuestario | F6: 2.2 Subprograma | G6: 3.1 Nombre del Producto | H6: 3.2 Producto Competencia Propia | I6: 3.3 Producto Competencia delegada | J6: 3.4 Unidad de Medida | K6: 3.5 Responsable del cumplimiento de meta del producto | L6: 3.6 Corresponsable del cumplimiento de la meta del producto | M6: 4.1 Nombre de la intervención (proyecto o actividad) | N6: 4.2 Código SNIP | O6: 4.3 Código SMIP | P6: 4.4 Unidad de Medida | Q6: Primer Cuatrimestre | S6: Segundo Cuatrimestre | U6: Tercer Cuatrimestre | W6: Total Anual
Q7: 5.1 Física | R7: 5.2 Financiera Quetzales | S7: 5.3 Física | T7: 5.4 Financiera Quetzales | U7: 5.5 Física | V7: 5.6 Financiera Quetzales | W7: 5.7 Total Meta Física Anual | X7: 5.8 Total Meta financiera Anual
A8: No. de Vinculación | B8: 1.1 Resultado PDM_OT al 2032 | C8: 1.2 Programa PDM (en caso no tenga PDM - OT aprobado) | D8: 1.3 Resultado PEI definido para el periodo 2026 - 2030 | E8: 2.1 Programa Presupuestario | F8: 2.2 Subprograma | G8: 3.1 Nombre del Producto | H8: 3.2 Producto Competencia Propia | I8: 3.3 Producto Competencia delegada | J8: 3.4 Unidad de Medida | K8: 3.5 Responsable del cumplimiento de meta del producto | L8: 3.6 Corresponsable del cumplimiento de la meta del producto | M8: 4.1 Nombre de la intervención (proyecto o actividad) | N8: 4.2 Código SNIP | O8: 4.3 Código SMIP | P8: 4.4 Unidad de Medida | Q8: Física I | R8: Financiera Quetzales I | S8: Física II | T8: Financiera Quetzales II | U8: Física III | V8: Financiera Quetzales III | W8: 12.2 Total Meta Física Multianual | X8: 12.3 Total Meta financiera Multianual

Sheet 3 Disponibilidad Financiera (hidden)
E1: OPCIONES:
A2: Departamento: | B2: ='1 POM'!B2 -> 0 | E2: Chimaltenango | F2: Chimaltenango
A3: Municipio: | B3: ='1 POM'!B3 -> 0 | E3: Chimaltenango | F3: Chimaltenango | G3: Chimaltenango | H3: Chimaltenango
A4: Matriz de Analisis de la Disponibilidad Financiera de la Municipalidad
A5: Instrucciones:
A6: 1. Identificar la procedencia del financiamiento municipal para el 2026
A7: 2. Indicar el monto total para el año 2026, según procedencia.
A8: 3. En el caso de inversión para proyectos que forman capital fijo, indicar el monto según procedencia.
A9: 4. Indicar el porcentaje que corresponde a inversión en proyectos que forman capital fijo
A10: 5.Indicar el monto de la disponibilidad financiera para el funcionamiento o los proyectos que no forman capital fijo
A11: 6. Indicar el porcentaje que corresponde a la disponibilidad financiera destinada para funcionamiento o proyectos que no forman capital fijo.
A12: 7. El monto total para el financiamiento del 2026, es la sumatoria de la procedencia de financiamiento que tendrá la municipalidad.
A13: 8. Recursos comprometidos para el año fiscal 2026, ya sea por proyectos de arrastre, pago de deudas del 2025 o de años anteriores.
A14: 9. Monto total comprometido para el 2026
A15: 10. Total de inversión disponible para nuevos proyectos: Es el resultado del total financiamiento destinado a Inversión durante el año fiscal 2026, menos el total comprometido.
A16: 11. Monto total disponible para el financiamiento de la gestión municipal del 2026, siendo el resultado de la sumatoria del total monto de funcionamiento más el total comprometido más el total de inversión disponible para nuevos proyectos
A17: Nota: las cifras detalladas en la matriz Disponibilidad Financiera son ejemplos
A18: Disponibilidad financiera para el Plan Operativo Anual 2026
A20: 1) Procedencia del financiamiento a nivel municipal para el año 2026 | C20: 2) Disponibilidad financiera para el año 2026 Q. | D20: 3) Monto destinado a Inversión Q. | E20: 4) % de Inversión | F20: 5) Monto destinado a funcionamiento Q. | G20: 6) % de funcionamiento
A21: Situado constitucional | C21: 4000000 | D21: =+C21*E21 -> 3600000 | E21: 0.9 | F21: =+C21*G21 -> 400000 | G21: 0.1
A22: IVA-PAZ | C22: 3000000 | D22: =+C22*E22 -> 2250000 | E22: 0.75 | F22: =+C22*G22 -> 750000 | G22: 0.25
A23: Impuesto a circulación de vehículos terrestres | C23: 250000 | D23: =+C23*E23 -> 243750 | E23: 0.975 | F23: =+C23*G23 -> 6250 | G23: 0.025
A24: Fonpetrol | C24: 400000 | D24: 400000 | E24: 1 | F24: 0
A25: IUSI | C25: 700000 | D25: 490000 | E25: 0.7 | F25: 210000 | G25: 0.3
A26: Ingresos propios | C26: 3000000 | D26: 0 | F26: =+C26*G26 -> 3000000 | G26: 1
A27: Regalías | C27: 100000 | D27: =+C27*E27 -> 0 | F27: 100000
A28: Recursos de CODEDE | C28: 2300000 | D28: =+C28*E28 -> 2300000 | E28: 1 | F28: =+C28*G28 -> 0
A29: Otras
A30: …
A31: 7) Total financiamiento para el año fiscal 2026 | C31: =SUM(C21:C30) -> 13750000 | D31: =SUM(D21:D30) -> 9283750 | F31: =SUM(F21:F30) -> 4466250
A33: 8) Recursos comprometidos para el año fiscal 2026 | C33: Monto comprometido
A34: Proyectos de arrastre | C34: 3000000
A35: Deuda (monto a pagar en el año) | C35: 750000
A36: Otros (Especificar)
A37: …
A38: …
A39: 9) Total comprometido | C39: =SUM(C34:C38) -> 3750000
A40: 10) Total de inversión disponible para nuevos proyectos | C40: =+D31-C39 -> 5533750
A41: 11) Total disponible para el año fiscal 2026 | C41: =C40+C39+F31 -> 13750000

Sheet 4 Anexo Distribución Financiera (hidden)
A2: OPCIONES:
A4: Base Legal distribución de recursos según procedencia de financiamiento a nivel municipal
A5: Procedencia del financiamiento a nivel municipal para el año 2026 | B5: % de Inversión | C5: % de funcionamiento | D5: Código de Fuente Financiamiento | E5: Artículo y nombre de ley
A6: Situado constitucional | B6: 0.9 | C6: 0.1 | D6: 22 | E6: Artículo 257, Constitución Política de la República
A7: IVA-PAZ | B7: 0.75 | C7: 0.25 | D7: 21 | E7: Decreto Número 27-92, Ley del Impuesto al Valor Agregado, artículo 10
A8: Impuesto a circulación de vehículos terrestres | B8: 0.975 | C8: 0.025 | D8: 29-02 | E8: Decreto 70-94, Ley del Impuesto sobre Circulación de Vehículos Terrestres, Marítimos y Aéreos, art. 6, 7, 8 y 9.
A9: Fonpetrol | B9: 1 | C9: 0 | D9: 29-03 | E9: Decreto 71-2008, Ley del Fondo Económico para la Nación, art. 6.
A10: IUSI | B10: 0.7 | C10: 0.3 | D10: 31 | E10: Decreto Número 15-98, art. 2, Ley del Impuesto Único Sobre Inmuebles
A11: Ingresos propios | B11: 0 | C11: 1 | D11: 31 | E11: Decreto Número 12-2002, Código Municipal
A12: Boleto de Ornato | D12: 31 | E12: Decreto Número 121-96, del Congreso de la República
A13: Recursos de CODEDE | B13: 1 | C13: 0
A14: Cooperación Internacional no reembolsable (técnica, financiera, especie) | B14: % | C14: % | E14: Cada cooperante decide, cuanto destina para inversión o funcionamiento. También depende de como se administren los fondos, es decir si serán administrados por el mismo cooperante o por la municipalidad.
A15: Regalías | B15: 1 | C15: 0
A16: De regalías mineras las municipalidades reciben el 50% del 1% (el otro 50% lo recibe el Estado), pero no específica cuanto se destina a inversión y a funcionamiento. | B16: No específica | C16: No específica | D16: 31 | E16: Decreto Número 48-97, Ley de Minería, art. 63.
A17: Monto de la licencia para aprovechamiento forestal. El cincuenta por ciento del monto recaudado será transferido a las municipalidades donde estén ubicados los bosques aprovechados; este monto será específicamente destinado para el control y vigilancia forestal; y el cincuenta por ciento restante será destinado al Fondo Forestal Privativo. | B17: No específica | C17: No específica | D17: 31 | E17: Decreto Número 101-96,Ley forestal, art. 87.
A18: Fondos del INAB para Inversión | B18: 1 | C18: 0
A19: El resto de ingresos propios recaudados por las municipalidades, puede utilizarse tanto para funcionamiento e inversión, de acuerdo a su capacidad de recaudación financiera establecida y de acuerdo a lo que especifiquen sus reglamentos, de construcción, agua, prestación de servicio de basura, transporte, entre otros. | D19: 31
A20: Otras (ejemplo préstamos) | B20: 1 | C20: 0

Sheet 6 Seguimiento 2026 (hidden)
C1: OPCIONES:
A2: Departamento: | B2: ='1 POM'!B2 -> 0
A3: Municipio: | B3: ='1 POM'!B3 -> 0
A4: PLANIFICACIÓN ESTRATÉGICA
A5: No. de Vinculación | B5: 1) Resultado Municipal | E5: 2) Producto | G5: 3) INTERVENCIONES (PROYECTOS O ACTIVIDADES) | I5: 4) Indicadores de Seguimiento
B6: 1.1 Resultado PDM_OT al 2032 | C6: 1.2 Programa PDM (en caso no tenga PDM - OT aprobado) | D6: 1.3 Resultado PEI definido para el periodo 2026 - 2030 | E6: 2.1 Nombre del Producto | F6: 2.2 Unidad de Medida | G6: 3.1 Nombre de la intervención (proyecto o actividad) | H6: 3.2 Unidad de Medida | I6: 4.1 Nombre del indicador de producto | J6: 4.2 Fórmula del Indicador de producto | K6: 4.3 Total Meta Física Anual | L6: 4.4 Total Meta financiera Anual | M6: Primer Cuatrimestre | Q6: 4.6 Segundo Cuatrimestre | U6: 4.7 Tercer Cuatrimestre | Y6: 4.8 Total % de avance 2026
M7: 4.5 Meta física | N7: 4.6 Porcentaje meta física programada | O7: 4.7 Meta Finaciera | P7: 4.8 Porcentaje meta finaciera programada | Q7: 4.9 Meta física | R7: 4.10 Porcentaje meta física programada | S7: 4.11 Meta Finaciera | T7: 4.12 Porcentaje meta finaciera programada | U7: 4.13 Meta física | V7: 4.14 Porcentaje meta física programada | W7: 4.15 Meta Finaciera | X7: 4.16 Porcentaje Meta finaciera programada | Y7: 4.17 Porcentaje meta física programada | Z7: 4.18 Porcentaje meta física programada
A8: No. de Vinculación | B8: 1.1 Resultado PDM_OT al 2032 | C8: 1.2 Programa PDM (en caso no tenga PDM - OT aprobado) | D8: 1.3 Resultado PEI definido para el periodo 2026 - 2030 | E8: 2.1 Nombre del Producto | F8: 2.2 Unidad de Medida | G8: 3.1 Nombre de la intervención (proyecto o actividad) | H8: 3.2 Unidad de Medida | I8: Nombre del indicador de producto | J8: Fórmula del Indicador de producto | K8: Total Meta Física Anual | L8: Total Meta financiera Anual | M8: Meta física I | N8: % Meta física programada I | O8: Meta Finaciero I | P8: % Meta finaciera programada I | Q8: Meta física II | R8: % Meta física programada II | S8: Meta Finaciero II | T8: % Meta finaciera programada II | U8: Meta física III | V8: % Meta física programada III | W8: Meta Finaciero III | X8: % Meta finaciera programada III | Y8: % Meta física programada | Z8: % Meta física programada2

Sheet 5 Catálogo Productos 2026 (hidden)
C2: OPCIONES:
A4: Catálogo de Productos Vigentes para el período 2026-2030 (Planificación y Programación Municipal)
A5: VINCULACIÓN INSTITUCIONAL | J5: POLITICA GENERAL DE GOBIERNO PGG 2024-2028 | L5: CORRESPONDENCIA DE COMPETENCIAS | R5: PRESUPUESTO
A6: No. | B6: EJE K´ATUN | C6: OBJETIVO DE DESARROLLO SOSTENIBLE (ODS) | D6: PRIORIDAD NACIONAL DE DESARROLLO | E6: META ESTRATÉGICA DE DESARROLLO | F6: RESULTADO ESTRATÉGICO (RE) | G6: RESULTADO INSTITUCIONAL | H6: Resultado PDM-OT 2032 | I6: Resultado PDM-OT/PEI 2025 -2029 intermedio/ inmediato | J6: EJE ESTRATÉGICO | K6: NOMBRE DEL PRODUCTO | L6: UNIDAD DE MEDIDA | M6: COMPETENCIA MUNICIPAL | N6: COMPLETENCIA DELEGADA | O6: INSTITUCIÓN RECTORA | P6: RESPONSABLE | Q6: CORRESPONSABLE | R6: NÚMERO PROGRAMA | S6: PROGRAMA PRESUPUESTARIO | T6: NÚMERO SUBPROGRAMA | U6: SUBPROGRAMA | V6: NOMBRE DE LA ACTIVIDAD PRESUPUESTARIA | W6: INDICADOR
A7: No_DE_VINCULACION | B7: EJE K´ATUN | C7: OBJETIVO DE DESARROLLO SOSTENIBLE (ODS) | D7: PRIORIDAD NACIONAL DE DESARROLLO | E7: META ESTRATÉGICA DE DESARROLLO | F7: RESULTADO ESTRATÉGICO (RE) | G7: RESULTADO INSTITUCIONAL | H7: Resultado PDM-OT 2032 | I7: Resultado PDM-OT/PEI 2025 -2029 intermedio/ inmediato/ | J7: POLITICA GENERAL DE GOBIERNO PGG 2024-2028/EJE ESTRATÉGICO | K7: NOMBRE DEL PRODUCTO | L7: UNIDAD DE MEDIDA | M7: COMPETENCIA MUNICIPAL | N7: COMPLETENCIA DELEGADA | O7: INSTITUCIÓN RECTORA | P7: RESPONSABLE | Q7: CORRESPONSABLE | R7: NÚMERO PROGRAMA | S7: PROGRAMA PRESUPUESTARIO | T7: NÚMERO SUBPROGRAMA | U7: SUBPROGRAMA | V7: NOMBRE DE LA ACTIVIDAD PRESUPUESTARIA | W7: Número de familias que cuentan con servicios de agua apta para consumo humano, al finalizar el año 2026.
A8: 1 | B8: Recursos naturales hoy y para el futuro | C8: ODS 6 Agua limpia y saneamiento | D8: PND 3 Acceso al agua y gestión de los recursos naturales | E8: MED 4 Para 2030, lograr la ordenación sostenible y el uso eficiente de los recursos naturales | F8: Para el 2029, se ha incrementado en 108 puntos porcentuales el acceso a agua potable domiciliar en los hogares guatemaltecos (de 763% en 2014 a 8710% en 2024) | H8: Para el año 2032, en el municipio XXX se ha incrementado en XX% las familias con acceso a agua potable, en el municipio XX (De XX% en el año XXX a XX% en el año 2032) | I8: Para el año 2029, se ha incrementado en XX% las familias con acceso a agua potable, en el municipio XXXX (De XX% en el año XXX a XX% en el año 2029) | J8: Lucha contra la desnutrición y malnutrición | K8: Familias con servicios de agua apta para consumo humano | L8: familia | M8: X | O8: MUNICIPALIDAD | P8: MUNICIPALIDAD | Q8: MUNICIPALIDAD | R8: 12 | S8: Nombre: Acceso al agua potable y Saneamiento básico Descripción: Acceso al agua potable y Saneamiento básico | T8: 1 | U8: Nombre: Incremento en el acceso al agua potable domiciliar Descripción: Incremento en el acceso al agua potable domiciliar | V8: Nombre: Familias con abastecimiento domiciliario de agua potable Descripción: Familias con servicios de agua apta para consumo humano | W8: Número de familias que cuentan con servicios de agua apta para consumo humano, al finalizar el año 2026.
A9: 2 | B9: Recursos naturales hoy y para el futuro | C9: ODS 6 Agua limpia y saneamiento | D9: PND 3 Acceso al agua y gestión de los recursos naturales | E9: MED 4 Para 2030, lograr la ordenación sostenible y el uso eficiente de los recursos naturales | F9: Para el 2029, se ha incrementado en 21 puntos porcentuales el acceso a saneamiento básico en los hogares guatemaltecos (De 533% en 2014 a 743% en 2024) | H9: Para el 2032 se ha incrementado en XX% el acceso a servicios de drenajes en el municipio de XXX (De XX % en el año XXX a XX% en el año XXX) | I9: Para el 2029 se ha incrementado en XX% el acceso a servicios de drenajes en el municipio de XXX (De XX % en el año XXX a XX% en el año XXX) | J9: Lucha contra la desnutrición y malnutrición | K9: Familias beneficiadas con drenajes, alcantarillado, fosa séptica y planta de tratamiento de agua | L9: familia | M9: X | O9: MUNICIPALIDAD | P9: MUNICIPALIDAD | Q9: MUNICIPALIDAD | R9: 12 | S9: Nombre: Acceso al agua potable y Saneamiento básico Descripción: Acceso al agua potable y Saneamiento básico | T9: 2 | U9: Nombre: Incremento al acceso a saneamiento básico Descripción: Incremento al acceso a saneamiento básico | V9: Nombre: Sistema de saneamiento de agua Descripción: Familias beneficiadas con drenajes, alcantarillado, fosa séptica y planta de tratamiento de agua | W9: Número de familias que cuentan con drenajes, alcantarillado, fosa séptica y planta de tratamiento de agua, al finalizar el año 2026.
A10: 3 | B10: Recursos naturales hoy y para el futuro | C10: ODS 6 Agua limpia y saneamiento | D10: PND 3 Acceso al agua y gestión de los recursos naturales | E10: MED 4 Para 2030, lograr la ordenación sostenible y el uso eficiente de los recursos naturales | F10: Para el 2029, se ha incrementado en 21 puntos porcentuales el acceso a saneamiento básico en los hogares guatemaltecos (De 533% en 2014 a 743% en 2024) | H10: Para el año 2032, se ha incrementado en XX% las familias con servicio de recolección, tratamiento y disposición final de desechos y residuos sólidos, en el municipio XX (De XX% en el año XXX a XX% en el año 2032) | I10: Para el año 2029, se ha incrementado en XX% las familias con servicio de recolección, tratamiento y disposición final de desechos y residuos sólidos, en el municipio XXX (De XX% en el año XXX a XX% en el año 2029) | J10: Lucha contra la desnutrición y malnutrición | K10: Familias con servicio de recolección, tratamiento y disposición final de desechos y residuos sólidos hasta su disposición final, Limpieza y ornato | L10: familia | M10: X | O10: MUNICIPALIDAD | P10: MUNICIPALIDAD | Q10: MUNICIPALIDAD | R10: 12 | S10: Nombre: Acceso al agua potable y Saneamiento básico Descripción: Acceso al agua potable y Saneamiento básico | T10: 2 | U10: Nombre: Incremento al acceso a saneamiento básico Descripción: Incremento al acceso a saneamiento básico | V10: Nombre: Servicios de recolección, tratamiento y disposición final de desechos y residuos sólidos Descripción: Familias con servicio de recolección, tratamiento y disposición final de desechos y residuos sólidos hasta su disposición final, Limpieza y ornato | W10: Número de familias que cuentan con servicio de recolección, tratamiento y disposición final de desechos y residuos sólidos hasta su disposición final, Limpieza y ornato, al finalizar el año 2026.
A11: 4 | B11: Recursos naturales hoy y para el futuro | C11: ODS 6 Agua limpia y saneamiento | D11: PND 3 Acceso al agua y gestión de los recursos naturales | E11: MED 4 Para 2030, lograr la ordenación sostenible y el uso eficiente de los recursos naturales | F11: Para el 2029, se ha incrementado en 21 puntos porcentuales el acceso a saneamiento básico en los hogares guatemaltecos (De 533% en 2014 a 743% en 2024) | H11: Para el año 2032, se ha incrementado en XX% las familias con servicio de alcantarillado, en el municipio XX (De XX% en el año XXX a XX% en el año 2032) | I11: Para el año 2029, se ha incrementado en XX% las familias con servicio de alcantarillado, en el municipio XXX (De XX% en el año XXX a XX% en el año 2029) | J11: Lucha contra la desnutrición y malnutrición | K11: Familias beneficiadas con sistema de aguas pluviales | L11: familia | M11: X | O11: MUNICIPALIDAD | P11: MUNICIPALIDAD | Q11: MUNICIPALIDAD | R11: 12 | S11: Nombre: Acceso al agua potable y Saneamiento básico Descripción: Acceso al agua potable y Saneamiento básico | T11: 2 | U11: Nombre: Incremento al acceso a saneamiento básico Descripción: Incremento al acceso a saneamiento básico | V11: Nombre: Sistema de aguas pluviales Descripción: Familias beneficiadas con sistema de aguas pluviales | W11: Número de familias que cuentan con sistema de aguas pluviales, al finalizar el año 2026.
A12: 5 | B12: Recursos naturales hoy y para el futuro | C12: ODS 6 Agua limpia y saneamiento | D12: PND 3 Acceso al agua y gestión de los recursos naturales | E12: MED 4 Para 2030, lograr la ordenación sostenible y el uso eficiente de los recursos naturales | F12: Para el 2029, se ha incrementado en 21 puntos porcentuales el acceso a saneamiento básico en los hogares guatemaltecos (De 533% en 2014 a 743% en 2024) | H12: Para el 2032 se ha incrementado en XX% el acceso a otros servicios de saneamiento, mercados, rastros y cementerios en el municipio de XXX (De XX % en el año XXX a XX% en el año 2032) | I12: Para el 2029 se ha incrementado en XX% el acceso a otros servicios de saneamiento, mercados, rastros y cementerios en el municipio de XXX (De XX % en el año XXX a XX% en el año 2029) | J12: Lucha contra la desnutrición y malnutrición | K12: Familias con servicios de mercados; rastros; administración de cementerios y la autorización y control de los cementerios privados; | L12: familia | M12: X | O12: MUNICIPALIDAD | P12: MUNICIPALIDAD | Q12: MUNICIPALIDAD | R12: 12 | S12: Nombre: Acceso al agua potable y Saneamiento básico Descripción: Acceso al agua potable y Saneamiento básico | T12: 2 | U12: Nombre: Incremento al acceso a saneamiento básico Descripción: Incremento al acceso a saneamiento básico | V12: Nombre: Familias con servicios de mercado, rastros y cementerios Descripción: Familias con servicios de mercados; rastros; administración de cementerios y la autorización y control de los cementerios privados; | W12: Número de familias que cuentan con servicios de mercados; rastros; administración de cementerios y la autorización y control de los cementerios privados;, al finalizar el año 2026.
A13: 6 | B13: Recursos naturales hoy y para el futuro | C13: ODS 6 Agua limpia y saneamiento | D13: PND 3 Acceso al agua y gestión de los recursos naturales | E13: Para 2030, lograr la ordenación sostenible y el uso eficiente de los recursos naturales | F13: Para el 2029, se ha incrementado en 21 puntos porcentuales el acceso a saneamiento básico en los hogares guatemaltecos (De 533% en 2014 a 743% en 2024) | H13: Para el año 2032, en el municipio XXX se ha incrementado en XX% las familias con servicio de recolección, tratamiento y disposición final de desechos y residuos sólidos (De XX% en el año XXX a XX% en el año 2032) | I13: Para el año 2029, en el municipio XXX se ha incrementado en XX% las familias con servicio de recolección, tratamiento y disposición final de desechos y residuos sólidos (De XX% en el año XXX a XX% en el año 2025) | K13: Recolección, manejo y disposición final de residuos y desechos sólidos | L13: Metro cúbico | M13: X | O13: MUNICIPALIDAD | P13: MUNICIPALIDAD | Q13: MUNICIPALIDAD | R13: 12 | S13: Nombre: Acceso al agua potable y Saneamiento básico Descripción: Acceso al agua potable y Saneamiento básico | T13: 2 | U13: Nombre: Incremento al acceso a saneamiento básico Descripción: Incremento al acceso a saneamiento básico | V13: Nombre: Recolección, manejo y disposición final de residuos y desechos sólidos Descripción: Recolección, manejo y disposición final de residuos y desechos sólidos | W13: Metros cúbicos recolectados para el manejo y disposición final de residuos y desechos sólidos, al finalizar el año 2026.
A14: 7 | B14: Recursos naturales hoy y para el futuro | C14: ODS 6 Agua limpia y saneamiento | D14: PND 3 Acceso al agua y gestión de los recursos naturales | E14: MED 4 Para 2030, lograr la ordenación sostenible y el uso eficiente de los recursos naturales | F14: Para el 2029, se ha incrementado en 21 puntos porcentuales el acceso a saneamiento básico en los hogares guatemaltecos (De 533% en 2014 a 743% en 2024) | H14: Para el 2032 se ha incrementado en XX% el acceso a otros serivicios de saneamiento, mercados, rastros y cementerios en el municipio de XXX (De XX % en el año XXX a XX% en el año XXX familias que reciben otros servicios de saneamiento, mercados, rastros y cementerios) | I14: Para el 2029, se ha incrementado en XX puntos porcentuales el % de equipamiento para el servicio de saneamiento en el municipio de XXX (De XX% en 2019 a XX% en 2024) | K14: Administración de mercados municipales | L14: Evento | M14: X | O14: MUNICIPALIDAD | P14: MUNICIPALIDAD | Q14: MUNICIPALIDAD | R14: 12 | S14: Nombre: Acceso al agua potable y Saneamiento básico Descripción: Acceso al agua potable y Saneamiento básico | T14: 2 | U14: Nombre: Incremento al acceso a saneamiento básico Descripción: Incremento al acceso a saneamiento básico | V14: Nombre: Administración de mercados municipales Descripción: Administración de mercados municipales | W14: Número de eventos realizados para la administración de mercados, al finalizar el año 2026.
A15: 8 | B15: Recursos naturales hoy y para el futuro | C15: ODS 15 Vida de ecosistemas terrestres | D15: PND 3 Acceso al agua y gestión de los recursos naturales | E15: MED 4 Para 2030, lograr la ordenación sostenible y el uso eficiente de los recursos naturales | G15: Para 2027, se ha mantenido en 100% las gestiones integradas de recursos hídricos con procesos de vigilancia y mecanismos de control que permitan su protección y conservación a nivel nacional (De 100%en 2021 a 10% en 2027) | H15: Para el 2032 el XX% de la población a ha sido sensibilizada y capacitada en el manejo sostenible de los recursos naturales, del municipio de XXX (De XX% en el año XXX a XX% en el año 2032) | I15: Para el 2029, se ha incremento a XX% de la población sensibilizada en el manejo sostenible de los recursos naturales, del municipio de XXXXX (De XX% en el año XXXX a XX% en el año 2029) | J15: Cuidado de la Naturaleza | K15: Monitoreo de calidad del agua y de descarga de aguas residuales | L15: EVENTO | N15: X | O15: MARN | P15: MARN | Q15: MUNICIPALIDAD | R15: 12 | S15: Nombre: Acceso al agua potable y Saneamiento básico Descripción: Acceso al agua potable y Saneamiento básico | T15: 3 | U15: Nombre: Gestión integrada de recursos hídricos Descripción: Gestión integrada de recursos hídricos | V15: Nombre: Monitoreo de calidad del agua y de descargar de aguas residuales Descripción: Eventos de Monitoreo y Análisis de intervención general para la protección y conservación de cuencas | W15: Número de eventos realizados relacionados con Monitoreo de calidad del agua y de descarga de aguas residuales, al finalizar el año 2026.
A16: 9 | B16: Recursos naturales hoy y para el futuro | C16: ODS 15 Vida de ecosistemas terrestres | D16: PND 3 Acceso al agua y gestión de los recursos naturales | E16: MED 4 Para 2030, lograr la ordenación sostenible y el uso eficiente de los recursos naturales | G16: Para 2027, se ha mantenido en 100% las gestiones integradas de recursos hidricos con procesos de vigilancia y mecanismos de control que permitan su protección y conservación a nivel nacional (De 100%en 2021 a 10% en 2027) | H16: Para el 2032 el XX% de la población a ha sido sensibilizada y capacitada en el manejo sostenible de los recursos naturales, del municipio de XXX (De XX% en el año XXX a XX% en el año 2032) | I16: Para el 2029, se ha incrementdo a XX% de la población sensibilizada en el manejo sostenible de los recursos naturales, del municipio de XXXXX (De XX% en el año XXXX a XX% en el año 2029) | J16: Cuidado de la Naturaleza | K16: Eventos de control sobre contaminación hídrica para la prevención de la contaminación de ecosistemas | L16: EVENTO | N16: X | O16: MARN | P16: MARN | Q16: Municipalidad | R16: 12 | S16: Nombre: Acceso al agua potable y Saneamiento básico Descripción: Acceso al agua potable y Saneamiento básico | T16: 3 | U16: Nombre: Gestión integrada de recursos hídricos Descripción: Gestión integrada de recursos hídricos | V16: Nombre: Control sobre contaminación hídrica Descripción: Eventos de control sobre contaminación hídrica para la prevención de la contaminación de ecosistemas | W16: Número de eventos realizados de control sobre contaminación hídrica para la prevención de la contaminación de ecosistemas, al finalizar el año 2026.
A17: 10 | B17: Bienestar para la gente | C17: ODS 2 Hambre cero ODS 3 Salud y bienestar | D17: PND 4 Seguridad Alimentaria y Nutricional | E17: MED 9 Para el 2032, reducir en no menos de 25 puntos porcentuales, la desnutrición crónica en niños menores de cinco años, con énfasis en los niños y niñas de los pueblos maya, xinca y garífuna, y del área rural | F17: Para el 2029, se ha disminuido la razón de la mortalidad en menores de 5 años a 19 muertes (De 35 muertes en 2015 a 19 muertes por cada mil nacidos vivos en 2029); y, para el 2029, se ha disminuido a 405 por ciento la prevalencia de desnutrición crónica en niñas y niños menores de 5 años de edad (De 465% en 2014-2015 a 405% en 2029) | H17: En 2032 se habrá reducido la desnutrición crónica en XX puntos porcentuales en niños menores de cinco años en el municipio de XXX (de XX% en 20XX a XX% en el 20XX) | I17: Para el 2029, se ha capacitado al XX% de personas en temas de producción de alimentos y sistemas productivos, en el municipio de XXX (De XX% en 20XX a XX% en el 2029) | J17: Lucha contra la Desnutrición y Malnutrición | K17: Productores (a) beneficiados con capacitación, asistencia técnica e insumos agropecuarios para promover la alimentación en el área rural | L17: Persona | N17: X | O17: Ministerio de Agricultura, Ganadería y Alimentación -MAGA- | P17: MAGA | Q17: MUNICIPALIDAD | R17: 13 | S17: Nombre: Prevención de la mortalidad Descripción: Prevención de la mortalidad | T17: 1 | U17: Nombre: Prevención de la mortalidad de la niñez Descripción: Prevención de la mortalidad de la niñez y de la desnutrición crónica | V17: Nombre: Insumos agropecuarios en el área rural Descripción: Productores (a) beneficiados con capacitación, asistencia técnica e insumos agropecuarios para promover la alimentación en el área rural | W17: Número de Productores (a) beneficiados con capacitación, asistencia técnica e insumos agropecuarios para promover la alimentación en el área rural, al finalizar el año 2026.
A18: 11 | B18: Bienestar para la gente | C18: ODS 2 Hambre cero ODS 3 Salud y bienestar | D18: PND 4 Seguridad Alimentaria y Nutricional | E18: MED 9 Para el 2032, reducir en no menos de 25 puntos porcentuales, la desnutrición crónica en niños menores de cinco años, con énfasis en los niños y niñas de los pueblos maya, xinca y garífuna, y del área rural | F18: Para el 2029, se ha disminuido la razón de la mortalidad en menores de 5 años a 19 muertes (De 35 muertes en 2015 a 19 muertes por cada mil nacidos vivos en 2029); y, para el 2029, se ha disminuido a 405 por ciento la prevalencia de desnutrición crónica en niñas y niños menores de 5 años de edad (De 465% en 2014-2015 a 405% en 2029) | H18: En 2032 se habrá reducido la desnutrición crónica en XX puntos porcentuales en niños menores de cinco años en el municipio de XXX (De XX% en 20XX a XX% en el 20XX) | I18: Para el 2029, se ha capacitado al XX% de personas en temas de producción de alimentos y sistemas productivos, en el municipio de XXX (De XX% en 20XX a XX% en el 2029) | J18: Lucha contra la Desnutrición y Malnutrición | K18: Productores (as) familiares capacitados y asistidos técnicamente para mejorar sus sistemas productivos | L18: Persona | N18: X | O18: Ministerio de Agricultura, Ganadería y Alimentación -MAGA- | P18: MAGA | Q18: MUNICIPALIDAD | R18: 13 | S18: Nombre: Prevención de la mortalidad Descripción: Prevención de la mortalidad | T18: 1 | U18: Nombre: Prevención de la mortalidad de la niñez Descripción: Prevención de la mortalidad de la niñez y de la desnutrición crónica | V18: Nombre: Mejora en los sistemas productivos Descripción: Productores (as) familiares capacitados y asistidos técnicamente para mejorar sus sistemas productivos | W18: Número de Productores (as) familiares capacitados y asistidos técnicamente para mejorar sus sistemas productivos, al finalizar el año 2026.
A19: 12 | B19: Bienestar para la gente | C19: ODS 2 Hambre cero ODS 3 Salud y bienestar | D19: PND 4 Seguridad Alimentaria y Nutricional | E19: MED 9 Para el 2032, reducir en no menos de 25 puntos porcentuales, la desnutrición crónica en niños menores de cinco años, con énfasis en los niños y niñas de los pueblos maya, xinca y garífuna, y del área rural | F19: Para el 2029, se ha disminuido la razón de la mortalidad en menores de 5 años a 19 muertes (De 35 muertes en 2015 a 19 muertes por cada mil nacidos vivos en 2029); y, para el 2029, se ha disminuido a 405 por ciento la prevalencia de desnutrición crónica en niñas y niños menores de 5 años de edad (De 465% en 2014-2015 a 405% en 2029) | H19: En 2032 se habrá reducido la desnutrición crónica en XX puntos porcentuales en niños menores de cinco años en el municipio de XXX (de XX% en 20XX a XX% en el 20XX) | I19: Para el 2029, se ha beneficiado el XX% de familias por la entrega de alimentos, en el municipio de XXX (De XX% en 20XX a XX% en el 2029) | J19: Lucha contra la Desnutrición y Malnutrición | K19: Asistencia y dotación alimentaria a familias en riesgo de inseguridad alimentaria por pérdida y por acciones productivas | L19: Ración | N19: X | O19: Ministerio de Agricultura, Ganadería y Alimentación -MAGA- | P19: MAGA | Q19: MUNICIPALIDAD | R19: 13 | S19: Nombre: Prevención de la mortalidad Descripción: Prevención de la mortalidad | T19: 1 | U19: Nombre: Prevención de la mortalidad de la niñez Descripción: Prevención de la mortalidad de la niñez y de la desnutrición crónica | V19: Nombre: Atención para el acceso alimentario Descripción: Asistencia y dotación alimentaria a familias en riesgo de inseguridad alimentaria por pérdida y por acciones productivas | W19: Número de raciones entregadas mediante Asistencia y dotación alimentaria a familias en riesgo de inseguridad alimentaria por pérdida y por acciones productivas, al finalizar el año 2026.
A20: 13 | B20: Bienestar para la gente | C20: ODS 2 Hambre cero ODS 3 Salud y bienestar | D20: PND 2 Acceso a servicios de salud | E20: MED 3 Lograr la cobertura sanitaria universal, en particular la protección contra los riesgos financieros, el acceso a servicios de salud esenciales de calidad y el acceso a medicamentos y vacunas seguros, eficaces, asequibles y de calidad para todos | F20: Para el 2029, se ha disminuido la razón de la mortalidad en menores de 5 años a 19 muertes (De 35 muertes en 2015 a 19 muertes por cada mil nacidos vivos en 2029); y, para el 2029, se ha disminuido a 405 por ciento la prevalencia de desnutrición crónica en niñas y niños menores de 5 años de edad (De 465% en 2014-2015 a 405% en 2029) | H20: Para el año 2032, se ha disminuido la tasa de mortalidad en la niñez en XX puntos por cada mil nacidos vivos, en el municipio de XXX (De XX muertes en XXX a XX muertes por cada mil nacidos vivos en 2032) | I20: Para el año 2029, se ha aumentado en XX% la atención integral en el tema de salud a niños y niñas menores de 5 años, en el municipio de XXX (De XX en el año XXX a XX en el año 2029) | J20: Desarrollo Social | K20: Niño y niña menor de 5 años con monitoreo de crecimiento | L20: Persona | N20: X | O20: Ministerio de Salud Pública y Asistencia Social -MSPAS- | P20: MSPAS | Q20: MUNICIPALIDAD | R20: 13 | S20: Nombre: Prevención de la mortalidad Descripción: Prevención de la mortalidad | T20: 1 | U20: Nombre: Prevención de la mortalidad de la niñez Descripción: Prevención de la mortalidad de la niñez y de la desnutrición crónica | V20: Nombre: Monitoreo de crecimiento Descripción: Niño y niña menor de 5 años con monitoreo de crecimiento | W20: Número de niño y niña menor de 5 años beneficiados con monitoreo de crecimiento, al finalizar el año 2026.
A21: 14 | B21: Bienestar para la gente | C21: ODS 2 Hambre cero ODS 3 Salud y bienestar | D21: PND 2 Acceso a servicios de salud | E21: MED 3 Lograr la cobertura sanitaria universal, en particular la protección contra los riesgos financieros, el acceso a servicios de salud esenciales de calidad y el acceso a medicamentos y vacunas seguros, eficaces, asequibles y de calidad para todos | F21: Para el 2029, se ha disminuido la razón de la mortalidad en menores de 5 años a 19 muertes (De 35 muertes en 2015 a 19 muertes por cada mil nacidos vivos en 2029); y, para el 2029, se ha disminuido a 405 por ciento la prevalencia de desnutrición crónica en niñas y niños menores de 5 años de edad (De 465% en 2014-2015 a 405% en 2029) | H21: Para el año 2032, se ha disminuido la tasa de mortalidad en la niñez en XX puntos por cada mil nacidos vivos, en el municipio de XXX (De XX muertes en XXX a XX muertes por cada mil nacidos vivos en 2032) | I21: Para el año 2029, se ha aumentado en XX% la atención integral en el tema de salud a niños y niñas menores de 5 años, en el municipio de XXX (De XX en el año XXX a XX en el año 2029) | J21: Desarrollo Social | K21: Niño y niña menor de 5 años con suplementación de micronutrientes | L21: Persona | N21: X | O21: Ministerio de Salud Pública y Asistencia Social -MSPAS- | P21: MSPAS | Q21: MUNICIPALIDAD | R21: 13 | S21: Nombre: Prevención de la mortalidadca Descripción: Prevención de la mortalidad | T21: 1 | U21: Nombre: Prevención de la mortalidad de la niñez Descripción: Prevención de la mortalidad de la niñez y de la desnutrición crónica | V21: Nombre: Suplementación de micronutrientes Descripción: Niño y niña menor de 5 años con suplementación de micronutrientes | W21: Número de niño y niña menor de 5 años beneficiados con suplementación alimentaria, al finalizar el año 2026.
A22: 15 | B22: Bienestar para la gente | C22: ODS 2 Hambre cero ODS 3 Salud y bienestar | D22: PND 2 Acceso a servicios de salud | E22: MED 3 Lograr la cobertura sanitaria universal, en particular la protección contra los riesgos financieros, el acceso a servicios de salud esenciales de calidad y el acceso a medicamentos y vacunas seguros, eficaces, asequibles y de calidad para todos | F22: Para el 2029, se ha disminuido la razón de la mortalidad en menores de 5 años a 19 muertes (De 35 muertes en 2015 a 19 muertes por cada mil nacidos vivos en 2029); y, para el 2029, se ha disminuido a 405 por ciento la prevalencia de desnutrición crónica en niñas y niños menores de 5 años de edad (De 465% en 2014-2015 a 405% en 2029) | H22: Para el año 2032, se ha disminuido la tasa de mortalidad en la niñez en XX puntos por cada mil nacidos vivos, en el municipio de XXX (De XX muertes en XXX a XX muertes por cada mil nacidos vivos en 2032) | I22: Para el año 2029, se ha aumentado en XX% la atención integral en el tema de salud a niños y niñas menores de 5 años, en el municipio de XXX (De XX en el año XXX a XX en el año 2029) | J22: Desarrollo Social | K22: Niño y niña de 1 a menor de 5 años con desparasitación | L22: Persona | N22: X | O22: Ministerio de Salud Pública y Asistencia Social -MSPAS- | P22: MSPAS | Q22: MUNICIPALIDAD | R22: 13 | S22: Nombre: Prevención de la mortalidad Descripción: Prevención de la mortalidad | T22: 1 | U22: Nombre: Prevención de la mortalidad de la niñez Descripción: Prevención de la mortalidad de la niñez y de la desnutrición crónica | V22: Nombre: Desparasitación en niños y niñas Descripción: Niño y niña de 1 a menor de 5 años con desparasitación | W22: Número de niño y niña menor de 5 años beneficiados con desparasitación, al finalizar el año 2026.
A23: 16 | B23: Bienestar para la gente | C23: ODS 2 Hambre cero ODS 3 Salud y bienestar | D23: PND 2 Acceso a servicios de salud | E23: MED 3 Lograr la cobertura sanitaria universal, en particular la protección contra los riesgos financieros, el acceso a servicios de salud esenciales de calidad y el acceso a medicamentos y vacunas seguros, eficaces, asequibles y de calidad para todos | F23: Para el 2029, se ha disminuido la razón de la mortalidad en menores de 5 años a 19 muertes (De 35 muertes en 2015 a 19 muertes por cada mil nacidos vivos en 2029); y, para el 2029, se ha disminuido a 405 por ciento la prevalencia de desnutrición crónica en niñas y niños menores de 5 años de edad (De 465% en 2014-2015 a 405% en 2029) | H23: Para el año 2032, se ha disminuido la tasa de mortalidad en la niñez en XX puntos por cada mil nacidos vivos, en el municipio de XXX (De XX muertes en XXX a XX muertes por cada mil nacidos vivos en 2032) | I23: Para el año 2029 se ha aumentado en XX% la atención integral en el tema de salud a niños y niñas menores de 5 años, en el municipio de XXX (De XX en el año 20XX a XX en el año 2029) | J23: Desarrollo Social | K23: Construcción, ampliación y mejoramiento de centros comunitarios, centros y puestos de salud, maternidades periféricas, centro de atención permanente y centro de atención integral materno infantil | L23: METRO CUADRADO | N23: X | O23: Ministerio de Salud Pública y Asistencia Social -MSPAS- | P23: MSPAS | Q23: MUNICIPALIDAD | R23: 13 | S23: Nombre: Prevención de la mortalidad Descripción: Prevención de la mortalidad | T23: 1 | U23: Nombre: Prevención de la mortalidad de la niñez Descripción: Prevención de la mortalidad de la niñez y de la desnutrición crónica | V23: Nombre: Infraestructura en salud Descripción: Construcción, ampliación y mejoramiento de centros comunitarios, centros y puestos de salud, maternidades periféricas, centro de atención permanente y centro de atención integral materno infantil | W23: Cantidad de metros cuadrados para Construcción, ampliación y mejoramiento de centros comunitarios, centros y puestos de salud, maternidades periféricas, centro de atención permanente y centro de atención integral materno infantil, al finalizar el año 2026.
A24: 17 | B24: Bienestar para la gente | C24: ODS 2 Hambre cero ODS 3 Salud y bienestar | D24: PND 2 Acceso a servicios de salud | E24: MED 3 Lograr la cobertura sanitaria universal, en particular la protección contra los riesgos financieros, el acceso a servicios de salud esenciales de calidad y el acceso a medicamentos y vacunas seguros, eficaces, asequibles y de calidad para todos | F24: Para el 2029, se ha disminuido la razón de la mortalidad en menores de 5 años a 19 muertes (De 35 muertes en 2015 a 19 muertes por cada mil nacidos vivos en 2029); y, para el 2029, se ha disminuido a 405 por ciento la prevalencia de desnutrición crónica en niñas y niños menores de 5 años de edad (De 465% en 2014-2015 a 405% en 2029) | H24: Para el año 2032, se ha disminuido la tasa de mortalidad en la niñez en XX puntos por cada mil nacidos vivos, en el municipio de XXX (De XX muertes en XXX a XX muertes por cada mil nacidos vivos en 2032) | I24: Para el año 2029, se ha aumentado en XX% la atención integral en el tema de salud a niños y niñas menores de 5 años, en el municipio de XXX (De XX en el año 20XX a XX en el año 2029) | J24: Desarrollo Social | K24: Madre de niño y niña menor de 5 años, que recibe consejería sobre prácticas para el cuidado infantil | L24: Persona | N24: X | O24: Ministerio de Salud Pública y Asistencia Social -MSPAS- | P24: MSPAS | Q24: MUNICIPALIDAD | R24: 13 | S24: Nombre: Prevención de la mortalidad Descripción: Prevención de la mortalidad | T24: 1 | U24: Nombre: Prevención de la mortalidad de la niñez Descripción: Prevención de la mortalidad de la niñez y de la desnutrición crónica | V24: Nombre: Consejería para el cuidado infantil Descripción: Madre de niño y niña menor de 5 años, que recibe consejería sobre prácticas para el cuidado infantil | W24: Número de madres de niño y niña menor de 5 años beneficiadas con consejería sobre prácticas para el cuidado infantil, al finalizar el año 2026.
A25: 18 | B25: Bienestar para la gente | C25: ODS 3 Salud y bienestar | D25: PND 2 Acceso a servicios de salud | E25: MED 3 Lograr la cobertura sanitaria universal, en particular la protección contra los riesgos financieros, el acceso a servicios de salud esenciales de calidad y el acceso a medicamentos y vacunas seguros, eficaces, asequibles y de calidad para todos | F25: Para el 2029, se ha disminuido la razón de la mortalidad materna a 69 muertes maternas por cada cien mil nacidos vivos (De 105 muertes en 2019, a 69 muertes maternas por cada cien mil nacidos vivos en 2029) | H25: Para el 2024, se ha disminuido la razón de mortalidad materna en 90 muertes por cada cien mil nacidos vivos, en el municipio XX (De 108 muertes en 2018, a 90 muertes por cada cien mil nacidos vivos en 2024) (MSPAS) | I25: Para el año 2029, se ha aumentado en XX% la atención especializada con obstetras a las mujeres del municipio de XXX (De XX en el año XXX a XX en el año 2029) | J25: Desarrollo Social | K25: Mujer que recibe atención prenatal oportuna | L25: Persona | N25: X | O25: Ministerio de Salud Pública y Asistencia Social -MSPAS- | P25: MSPAS | Q25: MUNICIPALIDAD | R25: 13 | S25: Nombre: Prevención de la mortalidad Descripción: Prevención de la mortalidad | T25: 2 | U25: Nombre: Prevención de la mortalidad materna Descripción: Prevención de la mortalidad materna | V25: Nombre: Atención prenatal Descripción: Mujer que recibe atención prenatal oportuna | W25: Número de mujeres que reciben atención prenatal oportuna.
A26: 19 | B26: Bienestar para la gente | C26: ODS 3 Salud y bienestar | D26: PND 2 Acceso a servicios de salud | E26: MED 3 Lograr la cobertura sanitaria universal, en particular la protección contra los riesgos financieros, el acceso a servicios de salud esenciales de calidad y el acceso a medicamentos y vacunas seguros, eficaces, asequibles y de calidad para todos | F26: Para el 2029, se ha disminuido la razón de la mortalidad materna a 69 muertes maternas por cada cien mil nacidos vivos (De 105 muertes en 2019, a 69 muertes maternas por cada cien mil nacidos vivos en 2029) | H26: Para el 2032, se ha disminuido la razón de mortalidad materna en XX muertes por cada cien mil nacidos vivos, en el municipio de XXX (De XXX muertes en 20XX, a XX muertes por cada cien mil nacidos vivos en 20XX) (MSPAS) | I26: Para el año 2029, se ha capacitado a XX% de la población en edad reproductiva, en métodos de planificación familiar, en el municipio de XXX (De XX% en el año 20XX a XX% en el año 2029) Para el 2029 se ha reducido en XX% los embarazos en adolescentes, en el municipio de XXX (De XX% en el año XXX a XX% en el año 2029) | J26: Desarrollo Social | K26: Población con acceso a métodos de planificación familiar | L26: Persona | N26: X | O26: Ministerio de Salud Pública y Asistencia Social -MSPAS- | P26: MSPAS | Q26: MUNICIPALIDAD | R26: 13 | S26: Nombre: Prevención de la mortalidad Descripción: Prevención de la mortalidad | T26: 2 | U26: Nombre: Prevención de la mortalidad materna Descripción: Prevención de la mortalidad materna | V26: Nombre: Planificación familiar Descripción: Población con acceso a métodos de planificación familiar | W26: Número de población beneficiada con acceso a métodos de planificación familiar, al finalizar el año 2026.
A27: 20 | B27: Bienestar para la gente | C27: ODS 3 Salud y bienestar | D27: PND 2 Acceso a servicios de salud | E27: MED 3 Lograr la cobertura sanitaria universal, en particular la protección contra los riesgos financieros, el acceso a servicios de salud esenciales de calidad y el acceso a medicamentos y vacunas seguros, eficaces, asequibles y de calidad para todos | F27: Para el 2029, se ha disminuido la razón de la mortalidad materna a 69 muertes maternas por cada cien mil nacidos vivos (De 105 muertes en 2019, a 69 muertes maternas por cada cien mil nacidos vivos en 2029) | H27: Para el 2032, se ha disminuido la razón de mortalidad materna en XX muertes por cada cien mil nacidos vivos (De XXX muertes en 20XX, a XX muertes por cada cien mil nacidos vivos en 20XX) (MSPAS) en el municipio de XXX | I27: Para el año 2029 , el XX% de la población en edad reproductiva, ha recibido capacitación en métodos de planificación familiar, en e municipio de XXX (De XX% en el año 20XX a XX% en el año 20XX) Para el 2029 se ha reducido en XX% los embarazos en adolescentes en el municipio de XXX (De XX% en el año XXX a XX% en el año 20XX) | J27: Desarrollo Social | K27: Adolescentes beneficiados con consejería sobre educación integral en sexualidad y entrega de métodos de anticoncepción para adolescentes | L27: Persona | N27: X | O27: Ministerio de Salud Pública y Asistencia Social -MSPAS- | P27: MSPAS | Q27: MUNICIPALIDAD | R27: 13 | S27: Nombre: Prevención de la mortalidad Descripción: Prevención de la mortalidad | T27: 2 | U27: Nombre: Prevención de la mortalidad materna Descripción: Prevención de la mortalidad materna | V27: Nombre: Consejería sobre educación integral en sexualidad para adolescentes Descripción: Adolescentes beneficiados con consejería sobre educación integral en sexualidad y entrega de métodos de anticoncepción | W27: Número Adolescentes beneficiados con consejería sobre educación integral en sexualidad y entrega de métodos de anticoncepción para adolescentes, al finalizar el año 2026.
A28: 21 | B28: Bienestar para la gente | C28: ODS 4 Educación de calidad | D28: PND 8 Educación | E28: MED 13 Para 2030, velar porque todas las niñas y todos los niños tengan una enseñanza primaria y secundaria completa, gratuita, equitativa y de calidad que produzca resultados de aprendizajes pertinentes y efectivos | F28: Para el 2029, se ha incrementado a 495% la población que alcanza el nivel satisfactorio y excelente en Lectura y a 515% en Matemática, en niñas y niños del sexto grado del nivel primario (De 474% en 2022 a 495% en 2029, en Lectura; de 507% en 2022 a 515% en 2029, en Matemática) | H28: Para el 2032, se ha incrementado en XX% el acceso a la educación primaria bilingüe, en el municipio de XXX (De XX% en 20XX a XXX% en el 2032) | I28: Para el 2029, se ha incrementado en XX% la atención del sistema escolar en el nivel primario bilingüe, incluyendo alimentación escolar, en el municipio de XXX (De XX% en el XXX a XX% en el 2029) | J28: Desarrollo Social | K28: Estudiantes del nivel primario bilingües atendidos en el sistema escolar | L28: Persona | N28: X | O28: Ministerio de Educación -MINEDUC- | P28: MINEDUC | Q28: MUNICIPALIDAD | R28: 14 | S28: Nombre: Gestión de la educación local de calidad Descripción: Gestión de la educación local de calidad | T28: 1 | U28: Nombre: Cobertura de educación primaria Descripción: Educación escolar de primaria | V28: Nombre: Primaria bilingüe Descripción: Estudiantes del nivel primario bilingües atendidos en el sistema escolar | W28: Número de estudiantes del nivel primario bilingües atendidos en el sistema escolar, al finalizar el año 2026.
A29: 22 | B29: Bienestar para la gente | C29: ODS 4 Educación de calidad | D29: PND 8 Educación | E29: MED 13 Para 2030, velar porque todas las niñas y todos los niños tengan una enseñanza primaria y secundaria completa, gratuita, equitativa y de calidad que produzca resultados de aprendizajes pertinentes y efectivos | F29: Para el 2029, se ha incrementado a 495% la población que alcanza el nivel satisfactorio y excelente en Lectura y a 515% en Matemática, en niñas y niños del sexto grado del nivel primario (De 474% en 2022 a 495% en 2029, en Lectura; de 507% en 2022 a 515% en 2029, en Matemática) | H29: Para el 2032, se ha incrementado en XX% el acceso a la educación primaria en el municipio de XXX (De XX% en 20XX a XXX% en el 2032) | I29: Para el 2029, se ha incrementado en XX% la atención del sistema escolar en el nivel primario monolingüe urbana, incluyendo alimentación escolar, en el municipio de XXX (De XX% en el XXX a XX% en el 2029) | J29: Desarrollo Social | K29: Estudiantes de primaria monolingüe urbana atendidos en el sistema escolar | L29: Persona | N29: X | O29: Ministerio de Educación -MINEDUC- | P29: MINEDUC | Q29: MUNICIPALIDAD | R29: 14 | S29: Nombre: Gestión de la educación local de calidad Descripción: Gestión de la educación local de calidad | T29: 1 | U29: Nombre: Cobertura de educación primaria Descripción: Educación escolar de primaria | V29: Nombre: Primaria monolingüe urbana Descripción: Estudiantes de primaria monolingüe urbana atendidos en el sistema escolar | W29: Número de estudiantes de primaria monolingüe urbana atendidos en el sistema escolar, al finalizar el año 2026.
A30: 23 | B30: Bienestar para la gente | C30: ODS 4 Educación de calidad | D30: PND 8 Educación | E30: MED 13 Para 2030, velar porque todas las niñas y todos los niños tengan una enseñanza primaria y secundaria completa, gratuita, equitativa y de calidad que produzca resultados de aprendizajes pertinentes y efectivos | F30: Para el 2029, se ha incrementado a 495% la población que alcanza el nivel satisfactorio y excelente en Lectura y a 515% en Matemática, en niñas y niños del sexto grado del nivel primario (De 474% en 2022 a 495% en 2029, en Lectura; de 507% en 2022 a 515% en 2029, en Matemática) | H30: Para el 2032, se ha incrementado en XX% el acceso a la educación primaria en el municipio de XXX (De XX% en 20XX a XXX% en el 2032) | I30: Para el 2029, se ha incrementado en XX% la atención del sistema escolar en el nivel primario monolingüe rural, incluyendo alimentación escolar, en el municipio de XXX (De XX% en el XXX a XX% en el 2029) | J30: Desarrollo Social | K30: Estudiantes de primaria monolingüe rural atendidos en el sistema escolar | L30: Persona | N30: X | O30: Ministerio de Educación -MINEDUC- | P30: MINEDUC | Q30: MUNICIPALIDAD | R30: 14 | S30: Nombre: Gestión de la educación local de calidad Descripción: Gestión de la educación local de calidad | T30: 1 | U30: Nombre: Cobertura de educación primaria Descripción: Educación escolar de primaria | V30: Nombre: Primaria monolingüe rural Descripción: Estudiantes de primaria monolingüe rural atendidos en el sistema escolar | W30: Número de estudiantes de primaria monolingüe rural atendidos en el sistema escolar, al finalizar el año 2026.
A31: 24 | B31: Bienestar para la gente | C31: ODS 4 Educación de calidad | D31: PND 8 Educación | E31: MED 13 Para 2030, velar porque todas las niñas y todos los niños tengan una enseñanza primaria y secundaria completa, gratuita, equitativa y de calidad que produzca resultados de aprendizajes pertinentes y efectivos | G31: Para el 2025, se ha incrementado la tasa de variación acumulada de la matrícula oficial de preprimaria a 65% (de 22% en 2020 a 65% en 2025) | H31: Para el 2032 se ha incrementado en XX% el acceso a educación preprimaria para los niños del municipio de XXX (De XX% en el 20XX a XX% en el 2032) | I31: Para el 2029, se ha incrementado en XX% la atención en el sistema escolar en el nivel preprimario del municipio de XXX (De XX% en el año XXX a XX% en el año 2029) | J31: Desarrollo Social | K31: Estudiantes del nivel preprimario atendidos en el sistema escolar | L31: Persona | N31: X | O31: Ministerio de Educación -MINEDUC- | P31: MINEDUC | Q31: MUNICIPALIDAD | R31: 14 | S31: Nombre: Gestión de la educación local de calidad Descripción: Gestión de la educación local de calidad | T31: 2 | U31: Nombre: Cobertura de educación preprimaria Descripción: Educación escolar de preprimaria | V31: Nombre: Preprimaria monolingüe Descripción: Estudiantes del nivel preprimario atendidos en el sistema escolar | W31: Número de estudiantes del nivel preprimario atendidos en el sistema escolar, al finalizar el año 2026.
A32: 25 | B32: Bienestar para la gente | C32: ODS 4 Educación de calidad | D32: PND 8 Educación | E32: MED 13 Para 2030, velar porque todas las niñas y todos los niños tengan una enseñanza primaria y secundaria completa, gratuita, equitativa y de calidad que produzca resultados de aprendizajes pertinentes y efectivos | F32: Para el 2029, se ha incrementado a 250% la población que alcanza el nivel satisfactorio y excelente en Lectura y en 243% en Matemática, en jóvenes del tercer grado del ciclo básico del nivel medio (De 242% en 2022 a 25% en 2029, en Lectura; de 163% en 2022 a 243% en 2029, en Matemática) | H32: Para el 2032, se ha incrementado en XX %, el acceso la cobertura de educación básica en el municipio de XXX (De XX% en 2016 a XX% en el 2032) | I32: Para el 2029, se ha incrementado en XX% la atención en el sistema escolar en el nivel básico, del municipio de XX (De XX% en el XXX a XX% en el año 2029) | J32: Desarrollo Social | K32: Estudiantes del ciclo básico atendidos en el sistema escolar | L32: Persona | N32: X | O32: Ministerio de Educación -MINEDUC- | P32: MINEDUC | Q32: MUNICIPALIDAD | R32: 14 | S32: Nombre: Gestión de la educación local de calidad Descripción: Gestión de la educación local de calidad | T32: 3 | U32: Nombre: Cobertura de educación básica Descripción: Educación escolar básica | V32: Nombre: Educación escolar básica Descripción: Estudiantes del ciclo básico atendidos en el sistema escolar | W32: Número de estudiantes del ciclo básico atendidos en el sistema escolar, al finalizar el año 2026.
A33: 26 | B33: Bienestar para la gente | C33: ODS 4 Educación de calidad | D33: PND 8 Educación | E33: MED 13 Para 2030, velar porque todas las niñas y todos los niños tengan una enseñanza primaria y secundaria completa, gratuita, equitativa y de calidad que produzca resultados de aprendizajes pertinentes y efectivos | F33: Para el 2029, se ha incrementado a 250% la población que alcanza el nivel satisfactorio y excelente en Lectura y en 243% en Matemática, en jóvenes del tercer grado del ciclo básico del nivel medio (De 242% en 2022 a 25% en 2029, en Lectura; de 163% en 2022 a 243% en 2029, en Matemática) | H33: Para el 2032, se ha incrementado en XX %, el acceso la cobertura de educación básica en el municipio de XXX (De XX% en 2016 a XX% en el 2032) | I33: Para el 2029, se ha incrementado en XX% la atención en el sistema escolar en el nivel básico, del municipio de XX (De XX% en el XXX a XX% en el año 2029) | J33: Desarrollo Social | K33: Estudiantes del ciclo básico de telesecundaria atendidos en el sistema escolar | L33: Persona | N33: X | O33: Ministerio de Educación -MINEDUC- | P33: MINEDUC | Q33: MUNICIPALIDAD | R33: 14 | S33: Nombre: Gestión de la educación local de calidad Descripción: Gestión de la educación local de calidad 13 Educación escolar básica | T33: 3 | U33: Nombre: Cobertura de educación básica Descripción: Educación escolar básica | V33: Nombre: Educación escolar básica telesecundaria Descripción: Estudiantes del ciclo básico de telesecundaria atendidos en el sistema escolar | W33: Número de estudiantes del ciclo básico de telesecundaria atendidos en el sistema escolar, al finalizar el año 2026.
A34: 27 | B34: Bienestar para la gente | C34: ODS 4 Educación de calidad | D34: PND 8 Educación | E34: MED 13 Para 2030, velar porque todas las niñas y todos los niños tengan una enseñanza primaria y secundaria completa, gratuita, equitativa y de calidad que produzca resultados de aprendizajes pertinentes y efectivos | G34: Para el 2025, se ha incrementado la tasa de promoción de los estudiantes en el nivel medio, ciclo diversificado del sector oficial a 90% (de 821% en 2015 a 90% en 2025) | H34: Para el 2032, se ha incrementado el acceso a la educación diversificada en XX puntos porcentuales en el municipio de XXX (XX% en 2016 a XX% en el 2032) | I34: Para el 2029 se ha aumentado a XX% el número de carreras a nivel diversificado para ampliar la oferta educativa a los adolescentes en el municipio de XXX (De XX% en el año XXX a XX% en el año 2029) | J34: Desarrollo Social | K34: Establecimientos del ciclo diversificado atendidos con gratuidad | L34: Entidad | N34: X | O34: Ministerio de Educación -MINEDUC- | P34: MINEDUC | Q34: MUNICIPALIDAD | R34: 14 | S34: Nombre: Gestión de la educación local de calidad Descripción: Gestión de la educación local de calidad | T34: 4 | U34: Nombre: Cobertura de educación diversificada Descripción: Educación escolar diversificada | V34: Nombre: Educación escolar diversificada gratuita Descripción: Establecimientos del ciclo diversificado atendidos con gratuidad | W34: Número de Establecimientos del ciclo diversificado atendidos con gratuidad, al finalizar el año 2026.
A35: 28 | B35: Bienestar para la gente | C35: ODS 4 Educación de calidad | D35: PND 8 Educación | E35: MED 13 Para 2030, velar porque todas las niñas y todos los niños tengan una enseñanza primaria y secundaria completa, gratuita, equitativa y de calidad que produzca resultados de aprendizajes pertinentes y efectivos | F35: Para el 2029, se ha disminuido en 46 puntos porcentuales el analfabetismo en personas de 15 años en adelante (De 160% en 2023 a 114% en 2029) | H35: Para el 2032 se ha reducido el analfabetismo en XX% en el municipio de XXX (De XX% en el año XXX a XX% enel año XXX) | I35: Para el 2029, se ha reducido el XX% el analfabetismo en la población de 15 años en adelante, en el municipio de XXXXX (De XXX% en al año XXX a XX% en el año 2029) | J35: Desarrollo Social | K35: Personas de 15 años en adelante atendidas en idioma español | L35: Persona | N35: X | O35: Comité Nacional de Alfabetización -CONALFA- | P35: CONALFA | Q35: MUNICIPALIDAD | R35: 14 | S35: Nombre: Gestión de la educación local de calidad Descripción: Gestión de la educación local de calidad | T35: 5 | U35: Nombre: Reducción del analfabetismo Descripción: Reducción del analfabetismo | V35: Nombre: Personas alfabetizadas en el idioma español Descripción: Personas de 15 años en adelante atendidas en idioma español | W35: Número de personas con 15 años en adelante atendidas en idioma español, al finalizar el año 2026.
A36: 29 | B36: Bienestar para la gente | C36: ODS 4 Educación de calidad | D36: PND 8 Educación | E36: MED 13 Para 2030, velar porque todas las niñas y todos los niños tengan una enseñanza primaria y secundaria completa, gratuita, equitativa y de calidad que produzca resultados de aprendizajes pertinentes y efectivos | F36: Para el 2029, se ha disminuido en 46 puntos porcentuales el analfabetismo en personas de 15 años en adelante (De 160% en 2023 a 114% en 2029) | H36: Para el 2032, se ha reducido en XX% el analfabetismo en la población de 15 años en adelante, por medio de la educación bilingüe intercultural en XX% en el municipio de XXX (De XX% en el año XXX a XX% en el año XXX) | I36: Para el 2029, se ha reducido en XX% el analfabetismo en la población de 15 años en adelante, por medio de la educación bilingüe intercultural, en el municipio de XX (De XXX% en al año XXX a XX% en el año 2029) | J36: Desarrollo Social | K36: Personas de 15 años en adelante atendidas en idioma Maya, Garífuna y Xinca | L36: Persona | N36: X | O36: Comité Nacional de Alfabetización -CONALFA- | P36: CONALFA | Q36: MUNICIPALIDAD | R36: 14 | S36: Nombre: Gestión de la educación local de calidad Descripción: Gestión de la educación local de calidad | T36: 5 | U36: Nombre: Reducción del analfabetismo Descripción: Reducción del analfabetismo | V36: Nombre: Personas alfabetizadas en idioma Maya, Garífuna y Xinca Descripción: Personas de 15 años en adelante atendidas en idioma Maya, Garífuna y Xinca | W36: Número de personas con 15 años en adelante atendidas en idioma Maya, Garífuna y Xinca, al finalizar el año 2026.
A37: 30 | B37: Bienestar para la gente | C37: ODS 4 Educación de calidad | D37: PND 8 Educación | E37: MED 13 Para 2030, velar porque todas las niñas y todos los niños tengan una enseñanza primaria y secundaria completa, gratuita, equitativa y de calidad que produzca resultados de aprendizajes pertinentes y efectivos | G37: Para el 2025, se ha reducido la tasa de deserción escolar en 05 (de 45 en 2021 a 40 en 2025) | H37: Para el 2032, se ha incrementado en XX% el acceso a la educación primaria en el municipio de XXX (De XX% en 20XX a XXX% en el 2032) | I37: Para el 2029, se ha incrementado en XX% de niños que cursan el nivel primario atendidos con alimentación escolar, en el municipio de XXX (De XX% en el XXX a XX% en el 2029) | J37: Desarrollo Social | K37: Estudiantes del nivel preprimario de establecimientos que prestan servicios educativos gratuitos atendidos con alimentación escolar | L37: Persona | N37: X | O37: Ministerio de Educación -MINEDUC- | P37: MINEDUC | Q37: MUNICIPALIDAD | R37: 14 | S37: Nombre: Gestión de la educación local de calidad Descripción: Gestión de la educación local de calidad | T37: 6 | U37: Nombre: Apoyo para el consumo adecuado de alimentos Descripción: Apoyo para el consumo adecuado de alimentos | V37: Nombre: Alimentación escolar nivel preprimario Descripción: Estudiantes del nivel preprimario de establecimientos que prestan servicios educativos gratuitos atendidos con alimentación escolar | W37: Número de estudiantes del nivel preprimario de establecimientos que prestan servicios educativos gratuitos atendidos con alimentación escolar, al finalizar el año 2026.
A38: 31 | B38: Bienestar para la gente | C38: ODS 4 Educación de calidad | D38: PND 8 Educación | E38: MED 13 Para 2030, velar porque todas las niñas y todos los niños tengan una enseñanza primaria y secundaria completa, gratuita, equitativa y de calidad que produzca resultados de aprendizajes pertinentes y efectivos | G38: Para el 2025, se ha reducido la tasa de deserción escolar en 05 (de 45 en 2021 a 40 en 2025) | H38: Para el 2032, se ha incrementado en XX% el acceso a la educación primaria en el municipio de XXX (De XX% en 20XX a XXX% en el 2032) | I38: Para el 2029, se ha incrementado en XX% de niños que cursan el nivel primario atendidos con alimentación escolar, en el municipio de XXX (De XX% en el XXX a XX% en el 2029) | J38: Desarrollo Social | K38: Estudiantes del nivel primario de establecimientos que prestan servicios educativos gratuitos atendidos con alimentación escolar | L38: Persona | N38: X | O38: Ministerio de Educación -MINEDUC- | P38: MINEDUC | Q38: MUNICIPALIDAD | R38: 14 | S38: Nombre: Gestión de la educación local de calidad Descripción: Gestión de la educación local de calidad | T38: 6 | U38: Nombre: Apoyo para el consumo adecuado de alimentos Descripción: Apoyo para el consumo adecuado de alimentos | V38: Nombre: Alimentación escolar nivel primario Descripción: Estudiantes del nivel primario de establecimientos que prestan servicios educativos gratuitos atendidos con alimentación escolar | W38: Número de estudiantes del nivel primario de establecimientos que prestan servicios educativos gratuitos atendidos con alimentación escolar, al finalizar el año 2026.
A39: 32 | B39: Bienestar para la gente | C39: ODS 4 Educación de calidad | D39: PND 8 Educación | E39: MED 13 Para 2030, velar porque todas las niñas y todos los niños tengan una enseñanza primaria y secundaria completa, gratuita, equitativa y de calidad que produzca resultados de aprendizajes pertinentes y efectivos | G39: Para el 2025, se ha incrementado la atención a niños con desarrollo integral temprano en 21,937 (de 35,663 en 2022 a 57,600 en 2025) | H39: Para el 2032 se ha incrementado en XX% el acceso a educación de primera infancia del municipio de XXXXX (De XX% en el 20XX a XX% en el 2032) Primera infancia 0 a 5 años OMS | I39: Para el año 2029, se ha incrementado en xx% de niños que reciben atención en centros educativos especializados en primera infancia en el municipio de XXXXX (De XX% en el año XXXX a XX% en el año 2029) | J39: Desarrollo Social | K39: Niños de primera infancia de 0 a 3 años atendidos en aprendizaje temprano | L39: Persona | N39: X | O39: Ministerio de Educación -MINEDUC- | P39: MINEDUC | Q39: MUNICIPALIDAD | R39: 14 | S39: Nombre: Gestión de la educación local de calidad Descripción: Gestión de la educación local de calidad | T39: 7 | U39: Nombre: Educación inicial Descripción: Educación inicial | V39: Nombre: Aprendizaje temprano Descripción: Descripción: Niños de primera infancia de 0 a 3 años atendidos en aprendizaje temprano | W39: Número de niños de primera infancia de 0 a 3 años atendidos en aprendizaje temprano, al finalizar el año 2026.
A40: 33 | B40: Bienestar para la gente | C40: ODS 4 Educación de calidad | D40: PND 8 Educación | E40: MED 13 Para 2030, velar porque todas las niñas y todos los niños tengan una enseñanza primaria y secundaria completa, gratuita, equitativa y de calidad que produzca resultados de aprendizajes pertinentes y efectivos | G40: Para el 2027, se ha incrementado en 200% la matrícula de los Programas de Educación Extraescolar de todos los sectores, (de 55,170 estudiantes en 2022 a 66,204 estudiantes al 2027) | H40: Para el 2032 ha incrementado en XX% el número de población que tiene acceso a los Centros Municipales de Capacitación y Formación Humana en el municipio de XXX (De XX% en el 20XX a XX% en el 2032) | I40: Para el 2029 se cuenta con XXX centros municipales de Capacitación y Formación Humana en el municipio de XXX (De XX CEMUCAF en e l año XXX a XX en el año 2029) | J40: Desarrollo Social | K40: Estudiantes del Programa Centros Municipales de Capacitación y Formación Humana (CEMUCAF), atendidos en áreas técnico-laborales | L40: Persona | N40: X | O40: Ministerio de Educación -MINEDUC- | P40: MINEDUC | Q40: MUNICIPALIDAD | R40: 14 | S40: Nombre: Gestión de la educación local de calidad Descripción: Gestión de la educación local de calidad | T40: 8 | U40: Nombre: Educación extraescolar Descripción extraescolar | V40: Nombre: CEMUCAF Descripción: Estudiantes del Programa Centros Municipales de Capacitación y Formación Humana (CEMUCAF), atendidos en áreas técnico-laborales | W40: Número de estudiantes del Programa Centros Municipales de Capacitación y Formación Humana (CEMUCAF), atendidos en áreas técnico-laborales, al finalizar el año 2026.
A41: 34 | B41: Bienestar para la gente | C41: ODS 4 Educación de calidad | D41: PND 8 Educación | E41: MED 13 Para 2030, velar porque todas las niñas y todos los niños tengan una enseñanza primaria y secundaria completa, gratuita, equitativa y de calidad que produzca resultados de aprendizajes pertinentes y efectivos | G41: Educación superior (Sin resultado estratégico) | H41: Para el 2032, se ha incrementado el acceso a la educación superior en XX puntos porcentuales en el municipio de XXX (XX% en 2016 a XX% en el 2032) | I41: Para el 2029, se ha incrementado el acceso a la educación superior en XX puntos porcentuales, en el municipio de XXX (XX% en 2016 a XX% en el 2029) | K41: Estudiantes atendidos en educación superior | L41: Persona | N41: x | O41: Universidad de San Carlos de Guatemala -USAC- | P41: USAC | Q41: MUNICIPALIDAD | R41: 14 | S41: Nombre: Gestión de la educación local de calidad Descripción: Gestión de la educación local de calidad | T41: 10 | U41: Nombre: Educación superior Descripción: Educación superior | V41: Nombre: Educación superior Descripción: Estudiantes atendidos en educación superior | W41: Número de estudiantes atendidos en educación superior, al finalizar el año 2026.
A42: 35 | B42: Riqueza para todas y todos | C42: ODS 8 Trabajo decente y crecimiento económico | D42: PND 5 Empleo e inversión | E42: MED 8 Para 2030, elaborar y poner en práctica políticas encaminadas a promover un turismo sostenible que cree puestos de trabajo y promueva la cultura y los productos locales | G42: Para el 2027, algunos atractivos de 4 destinos turísticos priorizados, se han fomentado y desarrollado de manera integral, diversificando la oferta turística | H42: Para el 2023 se ha aumentado en XX% el número de visitantes en el municipio de XXX (De XX% en el año XXX a XX% en el año 2032) | I42: Para el 2029, se ha aumentado en XX % las acciones para la conservación de su patrimonio tangible e intangible, el municipio de XXX (De 0% en el año XXX a XX% en el año 2029) | J42: Avance para Disminuir la Brecha Digital con Tecnología e Innovación | K42: Actividades para la conservación del patrimonio y atractivos turísticos en beneficio de personas individuales y jurídicas en Guatemala | L42: Evento | N42: X | O42: Instituto Guatemalteco de Turismo -INGUAT- | P42: INGUAT | Q42: MUNICIPALIDAD | R42: 15 | S42: Nombre: Incremento a la competitividad turística Descripción: Incremento a la competitividad turística | T42: 1 | U42: Nombre: Incremento de la competitividad Descripción: Incremento de la competitividad | V42: Nombre: Conservación del patrimonio Descripción: Actividades para la conservación y del patrimonio y atractivos turísticos en beneficio de personas individuales y jurídicas en Guatemala | W42: Número de eventos realizados relacionados con Actividades para la conservación del patrimonio y atractivos turísticos en beneficio de personas individuales y jurídicas en Guatemala, al finalizar el año 2026.
A43: 36 | B43: Riqueza para todas y todos | C43: ODS 8 Trabajo decente y crecimiento económico | D43: PND 5 Empleo e inversión | E43: MED 8 Para 2030, elaborar y poner en práctica políticas encaminadas a promover un turismo sostenible que cree puestos de trabajo y promueva la cultura y los productos locales | G43: Para el 2027, el ingreso de divisas ha incrementado en 21% respecto al año 2019, por el aumento del posicionamiento turístico de Guatemala, como producto de la inversión en acciones de mercadeo (campañas nacionales, campañas internacionales, viajes de fam & press, ferias, caravanas, material promocional e información turística) | H43: En el 2032, se ubica entre las 10 primeras posiciones de lugares turísticos para visitar a nivel nacional, reconocido por el INGUAT, el municipio de XXXX (De la posición XXX en el año XXXX a la posición XXX en el año XXXX) | I43: En el 2029, se ubica entre las 10 primeras posiciones de lugares turísticos para visitar a nivel nacional, reconocido por el INGUAT, el municipio de XXXX (De la posición XXX en el año XXXX a la posición XXX en el año XXXX) | J43: Avance para Disminuir la Brecha Digital con Tecnología e Innovación | K43: Promoción de destinos turísticos de Guatemala a nivel nacional e internacional | L43: Evento | N43: X | O43: Instituto Guatemalteco de Turismo -INGUAT- | P43: INGUAT | Q43: MUNICIPALIDAD | R43: 15 | S43: Nombre: Incremento a la competitividad turística Descripción: Incremento a la competitividad turística | T43: 2 | U43: Nombre: Promoción del potencial turístico en Guatemala Descripción: Promoción del potencial turístico en Guatemala | V43: Nombre: Promoción turística Descripción: Promoción de destinos turísticos de Guatemala a nivel nacional e internacional | W43: Número de eventos realizados relacionados con Promoción de destinos turísticos de Guatemala a nivel nacional e internacional, al finalizar el año 2026.
A44: 37 | B44: Bienestar para la gente | C44: ODS 1 Fin de la pobreza | D44: PND 1 Reducción de la Pobreza y Protección Social | E44: MED 102 Para 2030, potenciar y promover la inclusión social, económica y política de todos, independientemente de su edad, sexo, discapacidad, raza, etnia, origen, religión o situación económica u otra condición | F44: Para el 2029, se ha disminuido en 100% el déficit habitacional en familias a nivel nacional (De 753,140 en 2024 a 677,826 familias en el 2029) | H44: Para el año 2032, se ha incrementado en XX% el número de personas atendidas que se encuentran en situación de pobreza y pobreza extrema en el municipio de XXX (De XX% en el año XXX a XX% en el año 2032) | I44: Para el 2029, el XX% de familias en situación de pobreza y pobreza extrema han sido atendidas con programas de acceso y/o mejora a la vivienda, en el municipio de XXXX (De XX% en el año XXXX a XX% en el año ) | J44: Desarrollo Social | K44: Familias beneficiadas con subsidios para la vivienda | L44: FAMILIA | N44: X | O44: Ministerio de Comunicaciones, Infraestructura y Vivienda -CIV- | P44: CIV | Q44: MUNICIPALIDAD | R44: 16 | S44: Nombre: Reducción del déficit habitacional Descripción: Desarrollo de la vivienda | T44: 0 | U44: Nombre: Sin Subprograma Descripción: Sin subprograma | V44: Nombre: Familias con subsidios de vivienda Descripción: Familias beneficiadas con subsidios para la vivienda | W44: Número de familias beneficiadas con subsidios para la vivienda.
A45: 38 | B45: Estado garante de los derechos humanos y conductor del desarrollo | C45: ODS 16 Paz, Justicia e instituciones sólidas | D45: PND 7 Fortalecimiento institucional, seguridad y justicia | E45: MED 12 Crear instituciones eficaces, responsables y transparentes a todos los niveles | F45: Para el 2029, se ha disminuido en 84 puntos la tasa de delitos cometidos contra el patrimonio de las personas (De 554 en 2023 a 470 en 2029 por cada cien mil habitantes) | H45: Para el 2032, se ha disminuido en XX puntos el número de hechos delictivos en el municipio de XXX (De XX en 2020 a XX en 2032) | I45: Para el 2029, se ha disminuido en XX% las áreas (zonas) identificadas con mayor incidencia criminal de delitos cometidos contra el patrimonio, en el municipio XXX (De XX% en el año XXX a XX% en el año 2029) | J45: Seguridad Democrática en un país | K45: Seguridad preventiva y del delito en áreas de mayor incidencia criminal | L45: Evento | N45: X | O45: Ministerio de Gobernación -MINGOB- | P45: MINGOB | Q45: MUNICIPALIDAD | R45: 17 | S45: Nombre: Seguridad integral Descripción: Seguridad integral | T45: 1 | U45: Nombre: Prevención de hechos delictivos contra el patrimonio Descripción: Prevención de hechos delictivos contra el patrimonio | V45: Nombre: Seguridad preventiva y del delito Descripción: Seguridad preventiva y del delito en áreas de mayor incidencia criminal | W45: Número de eventos realizados relacionados con Seguridad preventiva y del delito en áreas de mayor incidencia criminal, al finalizar el año 2026.
A46: 39 | B46: Estado garante de los derechos humanos y conductor del desarrollo | C46: ODS 16 Paz, Justicia e instituciones sólidas | D46: PND 7 Fortalecimiento institucional, seguridad y justicia | E46: MED 12 Crear instituciones eficaces, responsables y transparentes a todos los niveles | F46: Para el 2029, se ha disminuido en 6 puntos la tasa de hechos de tránsito (De 153 en el 2023 a 93 en 2029 por cada diez mil vehículos) | H46: Para el 2032, se ha disminuido en XX puntos el número de hechos delictivos en el municipio de XXX (De XX en 2020 a XX en 2032) | I46: Para el 2029, se ha disminuido en XX% el número de homicidios de las áreas (zonas) identificadas con mayor incidencia criminal, del municipio de XXX (De XX% en el año XXX a XX% en el año 2029) | J46: Seguridad Democrática en un país | K46: Programas de Educación y Seguridad Vial | L46: Evento | N46: X | O46: Ministerio de Gobernación -MINGOB- | P46: MINGOB | Q46: MUNICIPALIDAD | R46: 17 | S46: Nombre: Seguridad integral Descripción: Seguridad integral | T46: 3 | U46: Nombre: Disminución de hechos de tránsito Descripción: Disminución de hechos de tránsito | V46: Nombre: Programas de Educación y Seguridad Vial Descripción: Programas de Educación y Seguridad Vial | W46: Número de programas de educación y seguridad vial.
A47: 40 | B47: Estado garante de los derechos humanos y conductor del desarrollo | C47: ODS 16 Paz, Justicia e instituciones sólidas | D47: PND 7 Fortalecimiento institucional, seguridad y justicia | E47: MED 12 Crear instituciones eficaces, responsables y transparentes a todos los niveles | G47: Para el 2029, se ha incrementado la implementación de Políticas Públicas Municipales de Prevención de la Violencia y el Delito en 48 municipios a nivel nacional a través de estrategias, políticas, planes, programas y proyectos de prevención de la violencia y el delito (De 262 municipios en 2023 a 310 municipios en 2029) | H47: Para el 2032, se ha disminuido en XX puntos el número de hechos delictivos en el municipio de XXX (De XX en 2020 a XX en 2032) | I47: Para el 2029, se han implementado XX programas de actividades municipales para la prevención de la violencia, en el municipio de XXXXX (De XX% en el año XXX a XX% en el año 2029) | J47: Seguridad Democrática en un país | K47: Niños, niñas, adolescentes y jóvenes en situación de riesgo social reciben servicios de orientación sobre prevención de la violencia | L47: Persona | N47: X | O47: Ministerio de Gobernación -MINGOB- | P47: MINGOB | Q47: MUNICIPALIDAD | R47: 17 | S47: Nombre: Seguridad integral Descripción: Seguridad integral | T47: 8 | U47: Nombre: Prevención de la violencia y del delito Descripción: Prevención de la violencia y del delito | V47: Nombre: Prevención de la violencia en niños, adolescentes y jóvenes Descripción: Niños, niñas, adolescentes y jóvenes en situación de riesgo social reciben servicios de orientación sobre prevención de la violencia | W47: Número de Niños, niñas, adolescentes y jóvenes en situación de riesgo social reciben servicios de orientación sobre prevención de la violencia, al finalizar el año 2026.
A48: 41 | B48: Estado garante de los derechos humanos y conductor del desarrollo | C48: ODS 16 Paz, Justicia e instituciones sólidas | D48: PND 7 Fortalecimiento institucional, seguridad y justicia | E48: MED 12 Crear instituciones eficaces, responsables y transparentes a todos los niveles | G48: Para el 2029, se ha incrementado la implementación de Políticas Públicas Municipales de Prevención de la Violencia y el Delito en 48 municipios a nivel nacional a través de estrategias, políticas, planes, programas y proyectos de prevención de la violencia y el delito (De 262 municipios en 2023 a 310 municipios en 2029) | H48: Para el año 2032 se ha disminuido en XX% la incidencia criminal en el municipio de XXX (De XX% en el año XXX a XX% en el año 2032) | I48: Para el año XXX el XX% de población del municipio de XXX, beneficiados con el patrimonio bibliográfico y documental (De XX en el año XXX a XX en el año XXX) | J48: Seguridad Democrática en un país | K48: Asesoría y acompañamiento policial a mujeres victimas de la violencia | L48: Evento | N48: X | O48: Ministerio de Gobernación -MINGOB- | P48: MINGOB | Q48: MUNICIPALIDAD | R48: 17 | S48: Nombre: Seguridad integral Descripción: Seguridad integral | T48: 8 | U48: Nombre: Prevención de la violencia y del delito Descripción: Prevención de la violencia y del delito | V48: Nombre: Protección y atención a mujeres victimas de violencia Descripción: Asesoría y acompañamiento policial a mujeres victimas de la violencia | W48: Número de eventos realizados relacionados con Asesoría y acompañamiento policial a mujeres victimas de la violencia, al finalizar el año 2026.
A49: 42 | B49: Estado garante de los derechos humanos y conductor del desarrollo | C49: ODS 16 Paz, Justicia e instituciones sólidas | D49: PND 7 Fortalecimiento institucional, seguridad y justicia | E49: Sin vinculación | G49: Para el 2029, se ha incrementado el promedio nacional (1554) de la Gestión Estratégica Municipal, en función de sus competencias (De categoría "baja" en 2021 a categoría "media baja" en 2029, considerando la Medición del Desempeño de la Gestión Municipal) | H49: Para el 2032, se ha incrementado en XX% la cobertura de alumbrado público en el municipio de XXX (De XX en 2020 a XX en 2032) | I49: Para el 2029 se ha aumentado en XX% las áreas (zonas), que cuentan con alumbrado público, del municipio de XXX (De XX% en el año XXX a XX% en el año XXX) | J49: Hacia una Función Pública, Legítima y Eficaz | K49: Personas beneficiadas con áreas del municipio urbano y rural con ampliación, reposición y mejoramiento de alumbrado público | L49: Metro cuadrado | M49: X | O49: MUNICIPALIDAD | P49: MUNICIPALIDAD | Q49: MUNICIPALIDAD | R49: 17 | S49: Nombre: Seguridad integral Descripción: Seguridad integral | T49: 9 | U49: Nombre: Gestión estratégica municipal en alumbrado público Descripción: Gestión estratégica municipal en alumbrado público | V49: Nombre: Áreas con alumbrado público Descripción: Personas beneficiadas con áreas del municipio urbano y rural con ampliación, reposición y mejoramiento de alumbrado público | W49: Número de personas beneficiadas con la ampliación, reposición y mejoramiento del alumbrado público en áreas del municipio urbano y rural, al finalizar el año 2026.
A50: 43 | B50: Estado garante de los derechos humanos y conductor del desarrollo | C50: ODS 16 Paz, Justicia e instituciones sólidas | D50: PND 7 Fortalecimiento institucional, seguridad y justicia | E50: MED 12 Crear instituciones eficaces, responsables y transparentes a todos los niveles | F50: Para el 2029, se ha incrementado en 12 puntos de tasa de atención a las denuncias por violencia contra la mujer (De 1446 en 2023 a 1566 en 2029 por cada cien mil mujeres) | H50: Para el 2032, se ha disminuido en XX puntos el número de hechos delictivos en el municipio de XXX (De XX en 2020 a XX en 2032) | I50: Para el 2029, se han implementado XX programas de actividades municipales para la prevención de la violencia, en el municipio de XXXXX (De XX% en el año XXX a XX% en el año 2029) | J50: Seguridad Democrática en un país | K50: Personas capacitadas, informadas y asistidas para prevenir y disminuir la violencia intrafamiliar | L50: persona | N50: X | O50: Ministerio de Gobernación -MINGOB- | P50: MINGOB | Q50: MUNICIPALIDAD,MP, SVET | R50: 17 | S50: Nombre: Seguridad integral Descripción: Seguridad integral | T50: 10 | U50: Nombre: Prevención de la violencia intrafamiliar Descripción: Prevención de la violencia intrafamiliar | V50: Nombre: Disminución de la violencia intrafamiliar Descripción: Personas capacitadas, informadas y asistidas para prevenir y disminuir la violencia intrafamiliar | W50: Número de personas capacitadas, informadas y asistidas para prevenir y disminuir la violencia intrafamiliar, al finalizar el año 2026.
A51: 44 | B51: Recursos naturales hoy y para el futuro | C51: ODS 15 Vida de ecosistemas terrestres | D51: PND 3 Acceso al agua y gestión de los recursos naturales | E51: MED 5 Para 2020, promover la ordenación sostenible de todos los tipos de bosques, poner fin a la deforestación, recuperar los bosques degradados e incrementar la forestación y la reforestación | F51: Para el 2029, se ha mantenido la cobertura forestal en 333 por ciento a nivel nacional (De 333% en 2020 a 333% en 2029) | H51: Para el 2032, se han incrementado XX ha conservadas, de las áreas protegidas del municipio XXXX (De XX ha en el año XXXX a XX ha en el año 2032) | I51: Para el 2029, se han incrementado XX ha conservadas, de las áreas protegidas del municipio XXX (De XX ha en el año XXX a XX ha en el año 2029) | J51: Cuidado de la Naturaleza | K51: Prevención, protección, conservación y mantenimiento de las áreas protegidas | L51: Hectárea | N51: X | O51: Consejo Nacional de Áreas Protegidas -CONAP- | P51: CONAP | Q51: MUNICIPALIDAD | R51: 18 | S51: Nombre: Ambiente y recursos naturales Descripción: Ambiente y recursos naturales | T51: 1 | U51: Nombre: Cobertura Forestal Descripción: Cobertura Forestal para la protección, conservación, restauración para el uso sostenible del sistema Guatemalteco de áreas protegidas en el marco de la gobernanza | V51: Nombre: Ecosistemas protegidos y restaurados Descripción: Prevención, protección, conservación y mantenimiento de las áreas protegidas | W51: Cantidad de hectáreas gestionadas para Prevención, protección, conservación y mantenimiento de las áreas protegidas, al finalizar el año 2026.
A52: 45 | B52: Recursos naturales hoy y para el futuro | C52: ODS 15 Vida de ecosistemas terrestres | D52: PND 3 Acceso al agua y gestión de los recursos naturales | E52: MED 5 Para 2020, promover la ordenación sostenible de todos los tipos de bosques, poner fin a la deforestación, recuperar los bosques degradados e incrementar la forestación y la reforestación | F52: Para el 2029, se ha mantenido la cobertura forestal en 333 por ciento a nivel nacional (De 333% en 2020 a 333% en 2029) | J52: Cuidado de la Naturaleza | K52: Bosques naturales, plantaciones y sistemas agroforestales bajo manejo forestal, proveen bienes y servicios ambientales a la población | L52: Hectáreas | N52: X | O52: INAB | P52: INAB | Q52: MUNICIPALIDAD | R52: 18 | S52: Nombre: Ambiente y recursos naturales Descripción: Ambiente y recursos naturales | T52: 1 | U52: Nombre: Cobertura Forestal Descripción: Cobertura Forestal para la protección, conservación, restauración para el uso sostenible del sistema Guatemalteco de áreas protegidas en el marco de la gobernanza | V52: Nombre: Recursos forestales manejados Descripción: Bosques naturales, plantaciones y sistemas agroforestales bajo manejo forestal, proveen bienes y servicios ambientales a la población | W52: Cantidad de hectáreas gestionadas para Bosques naturales, plantaciones y sistemas agroforestales bajo manejo forestal, proveen bienes y servicios ambientales a la población, al finalizar el año 2026.
A53: 46 | B53: Recursos naturales hoy y para el futuro | C53: ODS 15 Vida de ecosistemas terrestres | D53: PND 3 Acceso al agua y gestión de los recursos naturales | E53: MED 5 Para 2020, promover la ordenación sostenible de todos los tipos de bosques, poner fin a la deforestación, recuperar los bosques degradados e incrementar la forestación y la reforestación | F53: Para el 2029, se ha mantenido la cobertura forestal en 333 por ciento a nivel nacional (De 333% en 2020 a 333% en 2029) | H53: Para el 2032, se ha mantenido/incrementado en XX% la cobertura forestal del territorio en el municipio de XXX (De XX% en el año XXX a XX% en el año XXX) | I53: Para el 2029, se ha mantenido/incrementado en XX% la cobertura forestal del territorio, en el municipio de XXX (De XX% en el año XXX a XX% en el año XX) | J53: Cuidado de la Naturaleza | K53: Áreas municipales reforestadas, protegidas, viveros forestales municipales, cuidado de la biodiversidad (flora y fauna) | L53: hectáreas | M53: X | O53: MUNICIPALIDAD | P53: MUNICIPALIDAD | Q53: MUNICIPALIDAD | R53: 18 | S53: Nombre: Ambiente y recursos naturales Descripción: Ambiente y recursos naturales | T53: 1 | U53: Cobertura Forestal | V53: Nombre: Ecosistemas municipales, conservados y restaurados Descripción: Áreas municipales reforestadas, protegidas, viveros forestales municipales, cuidado de la biodiversidad (flora y fauna) | W53: Cantidad de hectáreas gestionadas para Áreas municipales reforestadas, protegidas, viveros forestales municipales, cuidado de la biodiversidad (flora y fauna), al finalizar el año 2026.
A54: 47 | B54: Recursos naturales hoy y para el futuro | C54: ODS 7 Energía asequible y no contaminante | D54: PND 3 Acceso al agua y gestión de los recursos naturales | E54: Sin vinculación | F54: Para el 2028, se ha incrementado en 961 puntos porcentuales los hogares con acceso a energía eléctrica asequible, limpia y renovable (De 9039% en 2023 a 100% en 2028) | H54: Para el 2032, se ha incrementado a XX% de GW/h la energía renovable en la matriz energética en el municipio XXX (de XXX% en XXX a XXX% en 2032) | I54: Para el 2029, se han implementado XX proyectos de energía renovable, en el municipio de XXXXX (De XX en el XXX a XX en el 2029) | K54: Autorización de proyectos de generación de energías renovables | L54: GW/h | N54: X | O54: Ministerio de Energía y Minas | P54: MEM | Q54: MUNICIPALIDAD | R54: 18 | S54: Nombre: Ambiente y recursos naturales Descripción: Ambiente y recursos naturales 18 Ambiente y Recursos Naturales | T54: 3 | U54: Nombre: Incremento de la matriz energética renovable Descripción: Incremento de la matriz energética renovable | V54: Nombre: Autorización de proyectos de generación de energías renovables Descripción: Autorización de proyectos de generación de energías renovables | W54: Cantidad de energía generada en GW/h mediante Autorización de proyectos de generación de energías renovables, al finalizar el año 2026.
A55: 48 | B55: Recursos naturales hoy y para el futuro | C55: ODS 7 Energía asequible y no contaminante | D55: PND 3 Acceso al agua y gestión de los recursos naturales | E55: MED 5 Para 2020, promover la ordenación sostenible de todos los tipos de bosques, poner fin a la deforestación, recuperar los bosques degradados e incrementar la forestación y la reforestación | F55: Para el 2028, se ha incrementado en 961 puntos porcentuales los hogares con acceso a energía eléctrica asequible, limpia y renovable (De 9039% en 2023 a 100% en 2028) | H55: Para el 2032, se ha incrementado a XX% la población sensibilizada en temas de energías renovables en el municipio XXX (de XX% en XXX a XX% en 2032) | I55: Para el 2029, se ha incrementado a XX% la población sensibilizada en temas de energías renovables, en el municipio XXXX (de XX% en XXXX a XX% en 2029) | K55: Promoción de proyectos de generación de energías renovables | L55: Hogares | N55: X | O55: Ministerio de Energía y Minas | P55: MEM | Q55: MUNICIPALIDAD | R55: 18 | S55: Nombre: Ambiente y recursos naturales Descripción: Ambiente y recursos naturales | T55: 3 | U55: Nombre: Incremento de la matriz energética renovable Descripción: Incremento de la matriz energética renovable | V55: Nombre: Proyectos de generación de energías renovables Descripción: Promoción de proyectos de generación de energías renovables | W55: Número de hogares beneficiados con Promoción de proyectos de generación de energías renovables, al finalizar el año 2026.
A56: 49 | B56: Recursos naturales hoy y para el futuro | C56: ODS 15 Vida de ecosistemas terrestres | D56: PND 3 Acceso al agua y gestión de los recursos naturales | E56: MED 4 Para 2030, lograr la ordenación sostenible y el uso eficiente de los recursos naturales | G56: Para el año 2027 se ha incrementado en un 15% la participación de la población en programas educativos relacionados a medio ambiente (De 15% en 2021 a 30% en 2027) | H56: Para el 2032 el XX% de la población ha sido sensibilizada y capacitada en el manejo sostenible de los recursos naturales, del municipio de XXX (De XX% en el año XXX a XX% en el año 2032) | I56: Para el 2029, se ha incremento a XX% de la población sensibilizada en el manejo sostenible de los recursos naturales, del municipio de XXXXX (De XX% en el año XXXX a XX% en el año 2029) | J56: Cuidado de la Naturaleza | K56: Personas capacitadas y sensibilizadas en temas relacionados con la conservación y protección del recurso hídrico en Guatemala | L56: Persona | N56: X | O56: Ministerio de Ambiente y Recursos Naturales -MARN- | P56: MARN | Q56: MUNICIPALIDAD | R56: 18 | S56: Nombre: Ambiente y recursos naturales Descripción: Ambiente y recursos naturales | T56: 7 | U56: Nombre: Sensibilización y concientización ambiental Descripción: Sensibilización y concientización ambiental | V56: Nombre: Personas capacitadas y sensibilizadas en temas de conservación y protección del recurso hídrico Descripción: Personas capacitadas y sensibilizadas en temas relacionados con la conservación y protección del recurso hídrico en Guatemala | W56: Número de personas capacitadas y sensibilizadas en temas relacionados con la conservación y protección del recurso hídrico en Guatemala, al finalizar el año 2026.
A57: 50 | B57: Recursos naturales hoy y para el futuro | C57: ODS 15 Vida de ecosistemas terrestres | D57: PND 3 Acceso al agua y gestión de los recursos naturales | E57: MED 4 Para 2030, lograr la ordenación sostenible y el uso eficiente de los recursos naturales | G57: Para el año 2027 se ha incrementado en un 15% la participación de la población en programas educativos relacionados a medio ambiente (De 15% en 2021 a 30% en 2027) | H57: Para el 2032 el XX% de la población a ha sido sensibilizada y capacitada en el manejo sostenible de los recursos naturales, del municipio de XXX (De XX% en el año XXX a XX% en el año 2032) | I57: Para el 2029, se ha incremento a XX% de la población sensibilizada en el manejo sostenible de los recursos naturales, del municipio de XXXXX (De XX% en el año XXXX a XX% en el año 2029) | J57: Cuidado de la Naturaleza | K57: Personas sensibilizadas y con concientización ambiental con énfasis de género y multiculturalidad | L57: Persona | N57: X | O57: Ministerio de Ambiente y Recursos Naturales -MARN- | P57: MARN | Q57: MUNICIPALIDAD | R57: 18 | S57: Nombre: Ambiente y recursos naturales Descripción: Ambiente y recursos naturales | T57: 7 | U57: Nombre: Sensibilización y concientización ambiental Descripción: Sensibilización y concientización ambiental | V57: Nombre: Concientización ambiental con énfasis en genero y multiculturalidad Descripción: Personas sensibilizadas y con concientización ambiental con énfasis de género y multiculturalidad | W57: Número de personas sensibilizadas y con concientización ambiental con énfasis de género y multiculturalidad, al finalizar el año 2026.
A58: 51 | B58: Recursos naturales hoy y para el futuro | C58: ODS 13 Acción por el clima | D58: PND 1 Reducción de la Pobreza y Protección Social | E58: MED 4 Para 2030, lograr la ordenación sostenible y el uso eficiente de los recursos naturales | G58: Para el 2027, se ha incrementado en 300 puntos porcentuales las acciones de eficiencia en los procesos de gestión ambiental, implementado medidas de cambio climático (de 20% en 2021 a500% en 2027) | I58: Para 2027, se han mantenido en 5% los controles ambientales para prevenir el deterioro del ambiente y los recursos naturales a nivel nacional (De 15% en 2021 a 20% en 2027) | J58: Cuidado de la Naturaleza | K58: Personas beneficiadas con acciones para la adaptación al Cambio Climático en Guatemala | L58: Persona | N58: X | O58: MARN | P58: MARN | Q58: MUNICIPALIDAD | R58: 18 | S58: Nombre: Ambiente y recursos naturales Descripción: Ambiente y recursos naturales | T58: 8 | U58: Nombre: Adaptación al cambio clirmático Descripción: Adaptación al cambio climático | V58: Nombre: Acciones para la adaptación de cambio climático Descripción: Personas beneficiadas con acciones para la adaptación al Cambio Climático en Guatemala | W58: Número de personas beneficiadas con acciones para la adaptación al Cambio Climático en Guatemala, al finalizar el año 2026.
A59: 52 | B59: Guatemala Urbana y Rural | C59: ODS 11 Ciudades y comunidades sostenibles | D59: PND 10 Ordenamiento Territorial | E59: MED 15 El 100% de los municipios cuentan con planes de ordenamiento territorial integral que se implementan satisfactoriamente | F59: Al final del 2029 el 268 % de los municipios implementan los Planes de Desarrollo Municipal y Ordenamiento Territorial PDM-OT (De 0% en 2018 a 2688% en 2024) | H59: Para el año 2032, el municipio XXX ha incrementado en XX% la infraestructura vial (De XX% en el año XX a XX% al año 2032) | I59: Para el año 2029, el municipio XXX ha incrementado en XX% la infraestructura vial (De XX% en el año XX a XX% al año 2025) | K59: Áreas con ordenamiento vial | L59: Metro Cuadrado | M59: X | O59: MUNICIPALIDAD | P59: MUNICIPALIDAD | Q59: MUNICIPALIDAD | R59: 19 | S59: Nombre: Movilidad urbana y espacios públicos Descripción: Movilidad urbana y espacios públicos | T59: 1 | U59: Nombre: Desarrollo Municipal y Ordenamiento Territorial Descripción: Desarrollo Municipal y Ordenamiento Territorial | V59: Nombre: Áreas con ordenamiento vial Descripción: Áreas con ordenamiento vial | W59: Cantidad de metros cuadrados gestionados para el ordenamiento vial, al finalizar el año 2026.
A60: 53 | B60: Guatemala Urbana y Rural | C60: ODS 11 Ciudades y comunidades sostenibles | D60: PND 10 Ordenamiento Territorial | E60: MED 15 El 100% de los municipios cuentan con planes de ordenamiento territorial integral que se implementan satisfactoriamente | F60: Al final del 2029 el 268 % de los municipios implementan los Planes de Desarrollo Municipal y Ordenamiento Territorial PDM-OT (De 0% en 2018 a 2688% en 2024) | H60: Para el 2032, se ha incrementado XX las áreas públicas del municipio de XXX han sido establecidos (De un XXX en el año XXX a XXX en el año 2032) | I60: Para el 2029, se ha incrementado XX las áreas públicas del municipio de XXX han sido establecidos (De un XXX en el año XXX a XXX en el año 2025) | K60: Areas de uso urbano regulado | L60: m2 | M60: X | O60: MUNICIPALIDAD | P60: MUNICIPALIDAD | Q60: MUNICIPALIDAD | R60: 19 | S60: Nombre: Movilidad urbana y espacios públicos Descripción: Movilidad urbana y espacios públicos | T60: 1 | U60: Nombre: Desarrollo Municipal y Ordenamiento Territorial Descripción: Desarrollo Municipal y Ordenamiento Territorial | V60: Nombre: Áreas de uso urbano regulado Descripción: Áreas de uso urbano regulado | W60: Cantidad de metros cuadrados gestionados para Areas de uso urbano regulado, al finalizar el año 2026.
A61: 54 | B61: Guatemala Urbana y Rural | C61: ODS 11 Ciudades y comunidades sostenibles | D61: PND 10 Ordenamiento Territorial | E61: MED 15 El 100% de los municipios cuentan con planes de ordenamiento territorial integral que se implementan satisfactoriamente | F61: Al final del 2029 el 268 % de los municipios implementan los Planes de Desarrollo Municipal y Ordenamiento Territorial PDM-OT (De 0% en 2018 a 2688% en 2024) | H61: Para el 2032, se ha regulado el XX% del transporte público y se cuenta con XX áreas públicas de apoyo a la movilidad, en el municipio de XXX (De un XX% en el año XXX a un XXXX% en 2032) | I61: Para el 2029, se ha regulado el XX% del transporte público y se cuenta con XX áreas públicas de apoyo a la movilidad, en el municipio de XXX (De un XX% en el año XXX a un XXXX% en 2029) | J61: La Infraestructura Económica para el Buen Vivir | K61: Personas beneficiadas con regulación del transporte de pasajeros y carga, y sus terminales locales | L61: Persona | M61: X | O61: MUNICIPALIDAD | P61: MUNICIPALIDAD | Q61: MUNICIPALIDAD | R61: 19 | S61: Nombre: Movilidad urbana y espacios públicos Descripción: Movilidad urbana y espacios públicos | T61: 1 | U61: Nombre: Desarrollo Municipal y Ordenamiento Territorial Descripción: Desarrollo Municipal y Ordenamiento Territorial | V61: Nombre: Transporte público regulado Descripción: Personas beneficiadas con regulación del transporte de pasajeros y carga, y sus terminales locales | W61: Número de personas beneficiadas con regulación del transporte de pasajeros y carga, y sus terminales locales, al finalizar el año 2026.
A62: 55 | B62: Estado garante de los derechos humanos y conductor del desarrollo | C62: ODS 16 Paz, Justicia e instituciones sólidas | D62: PND 10 Ordenamiento Territorial | E62: MED 16 En 2032 los gobiernos municipales alcanzan una mayor capacidad de gestión para atender las necesidades y demandas de la ciudadanía | F62: Para el 2029, se ha incrementado en 36 puntos porcentuales los gobiernos locales que mejoran la gestión municipal en función de sus competencias (De 14% en categorias media a alta en 2016 a 50% en 2024, según el Ranking de la gestión municipal) | H62: Para el 2032, el municipio XXX ha incrementado XX% su posición en el indicador 0404 del ranking de la gestión municipal (de XX% en en el año 2020 - 2021 a XX% en el año 2032) | I62: Para el 2029, el municipio XXX ha incrementado XX% su posición en el indicador 0404 del ranking de la gestión municipal (de XX% en en el año 2020 - 2021 a XX% en el año 2025) | K62: Recurso humano capacitado y fortalecido en gestión municipal | L62: Persona | M62: X | O62: MUNICIPALIDAD | P62: MUNICIPALIDAD | Q62: MUNICIPALIDAD | R62: 19 | S62: Nombre: Movilidad urbana y espacios públicos Descripción: Movilidad urbana y espacios públicos | T62: 2 | U62: Nombre: Mejora de la gestión municipal Descripción: Mejora de la gestión municipal | V62: Nombre: Recurso humano capacitado y fortalecido en gestión municipal Descripción: Recurso humano capacitado y fortalecido en gestión municipal | W62: Número de personas capacitadas y fortalecidas en gestión municipal, al finalizar el año 2026.
A63: 56 | B63: Estado garante de los derechos humanos y conductor del desarrollo | C63: ODS 16 Paz, Justicia e instituciones sólidas | D63: PND 7 Fortalecimiento institucional, seguridad y justicia | E63: MED 12 Crear instituciones eficaces, responsables y transparentes a todos los niveles | F63: Para el 2029, se ha incrementado en 36 puntos porcentuales los gobiernos locales que mejoran la gestión municipal en función de sus competencias (De 14% en categorias media a alta en 2016 a 50% en 2024, según el Ranking de la gestión municipal) | H63: Para el 2032 se cuenta con equipamiento en las áreas urbanas del municipio de XXXXXX, para el desarrollo de Capacidades Técnicas, tecnológicas y culturales de los habitantes (De un XXX en el año XXXX a XXX en el año 2032) | I63: Para el 2029 se cuenta con equipamiento en las áreas urbanas del municipio de XXXXXX, para el desarrollo de Capacidades Técnicas, tecnológicas y culturales de los habitantes (De un XXX en el año XXXX a XXX en el año 2029) | J63: Hacia una Función Pública, Legítima y Eficaz | K63: Personas atendidas en bibliotecas y mediatecas municipales | L63: Persona | M63: X | O63: MUNICIPALIDAD | P63: MUNICIPALIDAD | Q63: MUNICIPALIDAD | R63: 19 | S63: Nombre: Movilidad urbana y espacios públicos Descripción: Movilidad urbana y espacios públicos | T63: 2 | U63: Nombre: Mejora de la gestión municipal Descripción: Mejora de la gestión municipal | V63: Nombre: Administración de la biblioteca pública Descripción: Personas atendidas en bibliotecas y mediatecas municipales | W63: Número de personas atendidas en bibliotecas y mediatecas municipales, al finalizar el año 2026.
A64: 57 | B64: Estado garante de los derechos humanos y conductor del desarrollo | C64: ODS 16 Paz, Justicia e instituciones sólidas | D64: PND 7 Fortalecimiento institucional, seguridad y justicia | E64: MED 12 Crear instituciones eficaces, responsables y transparentes a todos los niveles | F64: Para el 2029, se ha incrementado en 36 puntos porcentuales los gobiernos locales que mejoran la gestión municipal en función de sus competencias (De 14% en categorias media a alta en 2016 a 50% en 2024, según el Ranking de la gestión municipal) | H64: Para el 2032, se ha incrementado XX% la calidad en la gestión administrativa, en el municipio xxx (de XX puntos en 2020-2021 a XX en XX año) y en XX% en la gestión de la información a la ciudadanía (de XX puntos en 2020-2021 a XX en el año 2032) | I64: Para el 2029, ha incrementado XX% la calidad en la gestión administrativa (de XX puntos en 2020-2021 a XX en XX año) y en XX% en la gestión de la información a la ciudadanía, en el municipio XXX (de XX puntos en 2020-2021 a XX en el año XX) | J64: Hacia una Función Pública, Legítima y Eficaz | K64: Personas atendidas con calidad en los servicios municipales | L64: Persona | M64: X | O64: MUNICIPALIDAD | P64: MUNICIPALIDAD | Q64: MUNICIPALIDAD | R64: 19 | S64: Nombre: Movilidad urbana y espacios públicos Descripción: Movilidad urbana y espacios públicos | T64: 2 | U64: Nombre: Mejora de la gestión municipal Descripción: Mejora de la gestión municipal | V64: Nombre: Servicios públicos municipales Descripción: Personas atendidas con calidad en los servicios municipales | W64: Número de personas atendidas con calidad en los servicios municipales, al finalizar el año 2026.
A65: 58 | B65: Guatemala Urbana y Rural | C65: ODS 11 Ciudades y comunidades sostenibles | D65: PND 10 Ordenamiento Territorial | E65: MED 15 El 100% de los municipios cuentan con planes de ordenamiento territorial integral que se implementan satisfactoriamente | G65: Para el 2029, se ha disminuido en 6 puntos la tasa de hechos de tránsito (De 153 en 2023 a 93 en 2029 por cada diez mil vehículos) | H65: Para el año 2032, se ha incrementado/mejorado en XX% el equipamiento vinculado a la movilidad, del municipio XXX (De XX% en el año XX a XX% al año 2032) | I65: Para el año 2029, se ha incrementado/mejorado en XX% el equipamiento vinculado a la movilidad, del municipio XXX (De XX% en el año XX a XX% al año 2029) | J65: La Infraestructura Económica para el Buen Vivir | K65: Personas beneficiadas con conjunto de normas medidas, servicios y señales que regulan el tránsito de vehículos y peatones en las vías públicas | L65: Persona | M65: X | O65: MUNICIPALIDAD | P65: MUNICIPALIDAD | Q65: MUNICIPALIDAD | R65: 19 | S65: Nombre: Movilidad urbana y espacios públicos Descripción: Movilidad urbana y espacios públicos | T65: 3 | U65: Nombre: Disminución de hechos de tránsito Descripción: Disminución de hechos de tránsito | V65: Nombre: Ordenamiento Vial Descripción: Personas beneficiadas con conjunto de normas medidas, servicios y señales que regulan el tránsito de vehículos y peatones en las vías públicas | W65: Número de personas beneficiadas con conjunto de normas medidas, servicios y señales que regulan el tránsito de vehículos y peatones en las vías públicas, al finalizar el año 2026.
A66: 59 | B66: Guatemala Urbana y Rural | C66: ODS 11 Ciudades y comunidades sostenibles | D66: PND 10 Ordenamiento Territorial | E66: MED 15 El 100% de los municipios cuentan con planes de ordenamiento territorial integral que se implementan satisfactoriamente | G66: Para el 2029, se ha incrementado el promedio nacional (1554) de la Gestión Estratégica Municipal, en función de sus competencias (De categoría "baja" en 2021 a categoría "media baja" en 2029, considerando la Medición del Desempeño de la Gestión Municipal)) | H66: Para el 2032, se ha incrementado en XX m2 las áreas de parques, jardínes y lugares de recreación gestionadas para su mejora, el municipio XXX (De un XXX en el año XXX a XXX en el año 2032) | I66: Para el 2029, se ha incrementado en XX m2 las áreas de parques, jardínes y lugares de recreación gestionadas para su mejora, en el municipio (De un XXX en el año XXX a XXX en el año 2029) | J66: La Infraestructura Económica para el Buen Vivir | K66: Control de la contaminación ambiental (Denuncias por contaminación Auditiva, Visual y Basureros auditivos) en el municipio | L66: Evento | M66: X | O66: MUNICIPALIDAD | P66: MUNICIPALIDAD | Q66: MUNICIPALIDAD | R66: 19 | S66: Nombre: Movilidad urbana y espacios públicos Descripción: Movilidad urbana y espacios públicos | T66: 4 | U66: Nombre: Gestión estratégica municipal Descripción: Gestión estratégica municipal | V66: Control de la contaminación ambiental (Auditiva y Visual) en el municipio | W66: Número de eventos realizados relacionados con Control de la contaminación ambiental (Denuncias por contaminación Auditiva, Visual y Basureros auditivos) en el municipio, al finalizar el año 2026.
A67: 60 | B67: Guatemala Urbana y Rural | C67: ODS 11 Ciudades y comunidades sostenibles | D67: PND 10 Ordenamiento Territorial | E67: MED 15 El 100% de los municipios cuentan con planes de ordenamiento territorial integral que se implementan satisfactoriamente | H67: Para el 2032, se ha incrementado en las áreas de parques, jardines y lugares de recreación, del municipio | I67: Para el 2029, se ha incrementado en XX m2 las áreas de parques, jardines y lugares de recreación, del municipio XXX (De un XXX en el año XXX a XXX en el año 2029) | J67: La Infraestructura Económica para el Buen Vivir | K67: Promoción y gestión de parques, jardines y lugares de recreación | L67: Metros cuadrado | M67: X | O67: MUNICIPALIDAD | P67: MUNICIPALIDAD | Q67: MUNICIPALIDAD | R67: 19 | S67: Nombre: Movilidad urbana y espacios públicos Descripción: Movilidad urbana y espacios públicos | T67: 5 | U67: Nombre: Parques, jardines y recreación Descripción: Parques, jardines y recreación | V67: Nombre: Gestión de áreas para la recreación Descripción: Personas beneficiadas con promoción y gestión de parques, jardines y lugares de recreación | W67: Cantidad de metros cuadrados gestionados para Promoción y gestión de parques, jardines y lugares de recreación, al finalizar el año 2026.
A68: 61 | B68: Guatemala Urbana y Rural | C68: ODS 11 Ciudades y comunidades sostenibles | D68: PND 10 Ordenamiento Territorial | E68: MED 15 El 100% de los municipios cuentan con planes de ordenamiento territorial integral que se implementan satisfactoriamente | H68: Para el 2032, se han implementado instrumentos de regulación territorial, en el municipio | I68: Para el 2029, se han implementado instrumentos de regulación territorial, en el municipio XXX (De un XXX reglamentos en el año XXX a XXX reglamentos en el año 2029) | J68: Desarrollo Social | K68: Personas beneficiadas con autorización de las licencias de construcción, modificación y demolición de obras públicas o privadas, en la circunscripción del municipio | L68: Persona | M68: X | O68: MUNICIPALIDAD | P68: MUNICIPALIDAD | Q68: MUNICIPALIDAD | R68: 19 | S68: Nombre: Movilidad urbana y espacios públicos Descripción: Movilidad urbana y espacios públicos | T68: 6 | U68: Nombre: Regulación territorial Descripción: Regulación territorial | V68: Nombre: Uso urbano regulado Descripción: Personas beneficiadas con autorización de las licencias de construcción, modificación y demolición de obras públicas o privadas, en la circunscripción del municipio | W68: Número de personas beneficiadas con autorización de las licencias de construcción, modificación y demolición de obras públicas o privadas, en la circunscripción del municipio, al finalizar el año 2026.
A69: 62 | B69: Guatemala Urbana y Rural | C69: ODS 11 Ciudades y comunidades sostenibles | D69: PND 7 Fortalecimiento institucional, seguridad y justicia | E69: MED 12 Crear instituciones eficaces, responsables y transparentes a todos los niveles | H69: Para el 2032, se han implementado instrumentos de regulación territorial, en el municipio | I69: Para el 2029, se han implementado instrumentos de regulación territorial, en el municipio XXX (De un XXX reglamentos en el año XXX a XXX reglamentos en el año 2029) | J69: Hacia una Función Pública, Legítima y Eficaz | K69: Personas individuales y jurídicas beneficiadas con monitoreo y licencias que regulan los medios de difusión | L69: Persona | M69: X | O69: MUNICIPALIDAD | P69: MUNICIPALIDAD | Q69: MUNICIPALIDAD | R69: 19 | S69: Nombre: Movilidad urbana y espacios públicos Descripción: Movilidad urbana y espacios públicos | T69: 6 | U69: Nombre: Regulación territorial Descripción: Regulación territorial | V69: Nombre: Control de la contaminación Auditiva en el municipio Descripción: Personas individuales y jurídicas beneficiadas con monitoreo y licencias que regulan los medios de difusión | W69: Número de personas individuales y jurídicas beneficiadas con monitoreo y licencias que regulan los medios de difusión, al finalizar el año 2026.
A70: 63 | B70: Guatemala Urbana y Rural | C70: ODS 11 Ciudades y comunidades sostenibles | D70: PND 10 Ordenamiento Territorial | E70: MED 15 El 100% de los municipios cuentan con planes de ordenamiento territorial integral que se implementan satisfactoriamente | H70: Para el 2032, se han implementado instrumentos de regulación territorial, en el municipio | I70: Para el 2029, se han implementado instrumentos de regulación territorial, en el municipio XXX (De un XXX reglamentos en el año XXX a XXX reglamentos en el año 2029) | J70: La Infraestructura Económica para el Buen Vivir | K70: Personas beneficiadas con delimitación del área o áreas que puedan ser autorizadas para el funcionamiento de: expendio de alimentos y bebidas, hospedaje, higiene o arreglo personal, recreación, cultura y otros que por su naturaleza estén abiertos al público | L70: Persona | M70: X | O70: MUNICIPALIDAD | P70: MUNICIPALIDAD | Q70: MUNICIPALIDAD | R70: 19 | S70: Nombre: Movilidad urbana y espacios públicos Descripción: Movilidad urbana y espacios públicos | T70: 6 | U70: Nombre: Regulación territorial Descripción: Regulación territorial | V70: Nombre: Establecimientos abiertos regulados Descripción: Personas beneficiadas con delimitación del área o áreas que puedan ser autorizadas para el funcionamiento de: expendio de alimentos y bebidas, hospedaje, higiene o arreglo personal, recreación, cultura y otros que por su naturaleza estén abiertos al público | W70: Número de personas beneficiadas con delimitación del área o áreas que puedan ser autorizadas para el funcionamiento de: expendio de alimentos y bebidas, hospedaje, higiene o arreglo personal, recreación, cultura y otros que por su naturaleza estén abiertos al público, al finalizar el año 2026.
A71: 64 | B71: Guatemala Urbana y Rural | C71: ODS 11 Ciudades y comunidades sostenibles | D71: PND 10 Ordenamiento Territorial | E71: MED 15 El 100% de los municipios cuentan con planes de ordenamiento territorial integral que se implementan satisfactoriamente | H71: Para el 2032, se ha regulado el transporte público y se cuenta con áreas públicas de apoyo a la movilidad, en el municipio | I71: Para el 2029, se ha regulado el XX% del transporte público y se cuenta con XX áreas públicas de apoyo a la movilidad, en el municipio de XXX (De un XX% en el año XXX a un XXXX% en 2029) | J71: La Infraestructura Económica para el Buen Vivir | K71: Personas beneficiadas con regulación del transporte de pasajeros y carga, y sus terminales locales; | L71: Persona | M71: X | O71: MUNICIPALIDAD | P71: MUNICIPALIDAD | Q71: MUNICIPALIDAD | R71: 19 | S71: Nombre: Movilidad urbana y espacios públicos Descripción: Movilidad urbana y espacios públicos | T71: 7 | U71: Nombre: Regulación del transporte público Descripción: Regulación del transporte público | V71: Nombre: Transporte público regulado Descripción: Personas beneficiadas con regulación del transporte de pasajeros y carga, y sus terminales locales; | W71: Número de personas beneficiadas con regulación del transporte de pasajeros y carga, y sus terminales locales;, al finalizar el año 2026.
A72: 65 | B72: Estado garante de los derechos humanos y conductor del desarrollo | C72: ODS 16 Paz, Justicia e instituciones sólidas | D72: PND 7 Fortalecimiento institucional, seguridad y justicia | E72: MED 12 Crear instituciones eficaces, responsables y transparentes a todos los niveles | H72: Para el 2032, se ha incrementado la calidad en la gestión administrativa, en el municipio y en la gestión de la información a la ciudadanía | I72: Para el 2029, ha incrementado XX% la calidad en la gestión administrativa (de XX puntos en 2020-2021 a XX en XX año) y en XX% en la gestión de la información a la ciudadanía, en el municipio XXX (de XX puntos en 2020-2021 a XX en el año XX) | J72: Hacia una Función Pública, Legítima y Eficaz | K72: Personas beneficiadas por medio de procesos de modernización tecnológica en servicios municipales | L72: Persona | M72: X | O72: MUNICIPALIDAD | P72: MUNICIPALIDAD | Q72: MUNICIPALIDAD | R72: 19 | S72: Nombre: Movilidad urbana y espacios públicos Descripción: Movilidad urbana y espacios públicos | T72: 8 | U72: Nombre: Calidad en la gestión administrativa Descripción: Calidad en la gestión administrativa | V72: Nombre: Modernización tecnológica municipal Descripción: Personas beneficiadas por medio de procesos de modernización tecnológica en servicios municipales | W72: Número de personas beneficiadas por medio de procesos de modernización tecnológica en servicios municipales, al finalizar el año 2026.
A73: 66 | B73: Guatemala Urbana y Rural | C73: ODS 11 Ciudades y comunidades sostenibles | D73: PND 5 Empleo e inversión | E73: MED 6 En 2032, el crecimiento del PIB real ha sido paulatino y sostenido, hasta alcanzar una tasa no menor del 54%: a) Rango entre 34 y 44% en el quinquenio 2015-2020 b) Rango entre 44 y 54% en el quinquenio 2021-2025 c) No menor del 54% en los siguientes años, hasta llegar a 2032 | H73: Para el 2032 se ha ampliado/mejorado la infraestructura de la red vial en las áreas urbanas del municipio | I73: Para el 2029 se ha ampliado/mejorado en un XX% la infraestructura de la red vial en las áreas urbanas del municipio de XXXXX (De XX % en XXXX a XXX% en 2029) | J73: La Infraestructura Económica para el Buen Vivir | K73: Personas beneficiadas con construcción, ampliación, mejoramiento, reposición y mantenimiento de vías urbanas | L73: Persona | M73: x | O73: MUNICIPALIDAD | P73: MUNICIPALIDAD | Q73: MUNICIPALIDAD | R73: 19 | S73: Nombre: Movilidad urbana y espacios públicos Descripción: Movilidad urbana y espacios públicos | T73: 9 | U73: Nombre: Insfraestructura de la red vial en áreas urbanas Descripción: Infraestructura d ela red vial en áreas urbanas | V73: Nombre: Pavimentación de las vías públicas urbanas y mantenimiento de las mismas Descripción: Personas beneficiadas con construcción, ampliación, mejoramiento, reposición y mantenimiento de vías urbanas | W73: Número de personas beneficiadas con contrucción, ampliación, mejoramiento, reposición y mantenimiento de vías urbanas, al finalizar el año 2026.
A74: 67 | B74: Guatemala Urbana y Rural | C74: ODS 11 Ciudades y comunidades sostenibles | D74: PND 1 Reducción de la Pobreza y Protección Social | E74: MED 2 Implementar a nivel nacional sistemas y medidas apropiados de protección social para todos, incluidos niveles mínimos y, de aquí a 2030, lograr una amplia cobertura de las personas pobres y vulnerables | H74: Para 2032, implementa proyectos de generación de energía, en el municipio | I74: Para 2029, implementa XX proyectos de generación de energía, en el municipio de XXXX (De un XXX en el año XXXX a XXX en el año 2029) | J74: La Infraestructura Económica para el Buen Vivir | K74: Familias beneficiadas con generación de la energía eléctrica necesaria para cubrir el consumo municipal y privado | L74: familia | M74: x | O74: MUNICIPALIDAD | P74: MUNICIPALIDAD | Q74: MUNICIPALIDAD | R74: 19 | S74: Nombre: Movilidad urbana y espacios públicos Descripción: Movilidad urbana y espacios públicos | T74: 10 | U74: Nombre: Proyectos de generación de energía eléctrica Descripción: Proyectos de generación de energía eléctrica | V74: Nombre: Generación de energía eléctrica municipal Descripción: Familias beneficiadas con generación de la energía eléctrica necesaria para cubrir el consumo municipal y privado | W74: Número de familias beneficiadas con generación de la energía eléctrica necesaria para cubrir el consumo municipal y privado, al finalizar el año 2026.
A75: 68 | B75: Guatemala Urbana y Rural | C75: ODS 11 Ciudades y comunidades sostenibles | D75: PND 10 Ordenamiento Territorial | E75: MED 15 El 100% de los municipios cuentan con planes de ordenamiento territorial integral que se implementan satisfactoriamente | G75: Para el año 2024, 40 municipios, o sea el 1176% del total de municipios del país, contarán con una base predial municipal para uso multifinalitario | H75: Para el 2032 el xx% del territorio del municipio de XXX cuenta con su levantamiento de información catastral (De 0% en el año 20XX a XX% en el año 2032) | I75: Al 2025 el municipio de XXX inicia su proceso de levantamiento para establecer una Base Inmobiliaria Georeferenciada (De 0 en el XXX a 1 en el 2025) | J75: Avance para Disminuir la Brecha Digital con Tecnología e Innovación | K75: Mantenimiento y actualización del catastro municipal | L75: Evento | N75: X | O75: MUNICIPALIDAD | P75: MUNICIPALIDAD | Q75: MUNICIPALIDAD | R75: 19 | S75: Nombre: Movilidad urbana y espacios públicos Descripción: Movilidad urbana y espacios públicos | T75: 11 | U75: Nombre: Sin Subprograma Descripción: Sin subprograma | V75: Nombre: Mantenimiento y actualización del catastro municipal Descripción: Mantenimiento y actualización del catastro municipal | W75: Número de eventos realizados relacionados con Mantenimiento y actualización del catastro municipal, al finalizar el año 2026.
A76: 69 | B76: Riqueza para todas y todos | C76: ODS 1 Fin de la pobreza | D76: PND 1 Reducción de la Pobreza y Protección Social | E76: MED 1 Para 2030, potenciar y promover la inclusión social, económica y política de todos, independientemente de su edad, sexo, discapacidad, raza, etnia, origen, religión o situación económica u otra condición | F76: Para el 2029, se ha incrementado en 250% la cobertura de programas sociales destinados a personas en pobreza y vulnerabilidad (De 5,555,640 en 2023 a 6,944,550 en 2029) | H76: Para el 2032, se ha incrementado el XX% de personas beneficiadas con alimentos en el municipio XXXXXX que viven en pobreza y pobreza extrema (De XX en el año a XX en el año XXXX) | I76: Para el 2029, se ha incrementado el XX% de personas beneficiadas con alimentos en el municipio XXXXXX que viven en pobreza y pobreza extrema (De XX en el año a XX en el año XXXX) | J76: Desarrollo Social | K76: Personas en pobreza y pobreza extrema beneficiadas con dotación de alimentos | L76: Persona | N76: X | O76: Ministerio de Desarrollo Social -MIDES- | P76: MIDES | Q76: MUNICIPALIDAD | R76: 20 | S76: Nombre: Protección social Descripción: Protección social | T76: 1 | U76: Nombre: Programas sociales Descripción: Sin subprograma | V76: Nombre: Personas beneficiadas con alimentos Descripción: Personas en pobreza y pobreza extrema beneficiadas con dotación de alimentos | W76: Número de personas con pobreza y pobreza extrema beneficiadas con dotación de alimentos, al finalizar el año 2026.
A77: 70 | B77: Bienestar para la gente | C77: ODS 1 Fin de la pobreza | D77: PND 1 Reducción de la Pobreza y Protección Social | E77: MED 1 Para 2030, potenciar y promover la inclusión social, económica y política de todos, independientemente de su edad, sexo, discapacidad, raza, etnia, origen, religión o situación económica u otra condición | F77: Para el 2029, se ha incrementado en 250% la cobertura de programas sociales destinados a personas en pobreza y vulnerabilidad (De 5,555,640 en 2023 a 6,944,550 en 2029) | H77: Para el 2032, se ha incrementado en XX el número de niños y niñas en situación de pobreza y pobreza extrema que han recibido atención integral, en hogares comunitarios en el municipio de XXXXXX (de XXX niños y niñas en el XXXXX a XXXX niños y niñas a 2032) | I77: Para el 2029, se ha incrementado en XX el número de niños y niñas en situación de pobreza y pobreza extrema que han recibido atención integral, en hogares comunitarios en el municipio de XXXXXX (de XXX niños y niñas en el XXXXX a XXXX niños y niñas a 2029) | J77: Protección, Asistencia y Seguridad Social | K77: Niños y niñas de 6 meses a 7 años de edad en situación de pobreza y pobreza extrema beneficiados con atención integral | L77: Persona | N77: X | O77: Secretaria de Obras Sociales de la Esposa del Presidente --SOSEP- | P77: SOSEP | Q77: MUNICIPALIDAD | R77: 20 | S77: Nombre: Protección social Descripción: Protección social | T77: 1 | U77: Nombre: Programas sociales Descripción: Sin subprograma | V77: Nombre: Niños con atención integral Descripción: Niños y niñas de 6 meses a 7 años de edad en situación de pobreza y pobreza extrema beneficiados con atención integral | W77: Número de niños y niñas de 6 meses a 7 años de edad en situación de pobreza y pobreza extrema beneficiados con atención integral, al finalizar el año 2026.
A78: 71 | B78: Bienestar para la gente | C78: ODS 1 Fin de la pobreza | D78: PND 1 Reducción de la Pobreza y Protección Social | E78: MED 1 Para 2030, potenciar y promover la inclusión social, económica y política de todos, independientemente de su edad, sexo, discapacidad, raza, etnia, origen, religión o situación económica u otra condición | G78: Para el año 2029, se ha incrementado en 41% el servicio de asistencia y promoción social dirigido a 56,745 personas en condición de pobreza o extrema pobreza | H78: Para el 2032 se aumenta en XX% el porcentaje de mujeres que han sido capacitadas y beneficiadas con programas de emprendimiento, en el municipio de XXX (De XX% en XXX a XX% en 2032) | I78: Para el 2029, se ha aumentado en XX% el porcentaje de mujeres que han sido capacitadas y beneficiadas con programas de emprendimiento, en el municipio de XXX (De XX% ene l año XXX a XX% en el año 2029) | J78: Protección, Asistencia y Seguridad Social | K78: Mujeres beneficiadas con capacitación, asistencia técnica en proyectos productivos y empresariales | L78: Persona | N78: X | O78: Secretaria de Obras Sociales de la Esposa del Presidente --SOSEP- | P78: SOSEP | Q78: MUNICIPALIDAD | R78: 20 | S78: Nombre: Protección social Descripción: Protección social | T78: 2 | U78: Nombre: Obras sociales Descripción: Obras sociales | V78: Nombre: Mujeres capacitadas en proyectos productivos y empresariales Descripción: Mujeres beneficiadas con capacitación, asistencia técnica en proyectos productivos y empresariales | W78: Número de mujeres beneficiadas con capacitación, asistencia técnica en proyectos productivos y empresariales, al finalizar el año 2026.
A79: 72 | B79: Bienestar para la gente | C79: ODS 1 Fin de la pobreza | D79: PND 1 Reducción de la Pobreza y Protección Social | E79: MED 1 Para 2030, potenciar y promover la inclusión social, económica y política de todos, independientemente de su edad, sexo, discapacidad, raza, etnia, origen, religión o situación económica u otra condición | G79: Para el año 2029, se ha incrementado en 41% el servicio de asistencia y promoción social dirigido a 56,745 personas en condición de pobreza o extrema pobreza | H79: Para el año 2032, se ha incrementado en XX% el número de personas atendidas que se encuentran en situación de pobreza y pobreza extrema, en el municipio de XXX (De XX% en el año XXX a XX% en el año 2032) | I79: Para el año 2029, se ha incrementado en XX% el número de adultos mayores que han recibido atención integral, en el municipio de XXX (De XX% en el XXX a XX% en el año 2029) | J79: Protección, Asistencia y Seguridad Social | K79: Adultos mayores en condición de pobreza y pobreza extrema beneficiados con atención integral | L79: Persona | N79: X | O79: Secretaria de Obras Sociales de la Esposa del Presidente --SOSEP- | P79: SOSEP | Q79: MUNICIPALIDAD | R79: 20 | S79: Nombre: Protección social Descripción: Protección social | T79: 2 | U79: Nombre: Obras sociales Descripción: Obras sociales | V79: Nombre: Adultos mayores con atención integral Descripción: Adultos mayores en condición de pobreza y pobreza extrema beneficiados con atención integral | W79: Número de Adultos mayores en condición de pobreza y pobreza extrema beneficiados con atención integral, al finalizar el año 2026.
A80: 73 | B80: Bienestar para la gente | C80: ODS 3 Salud y bienestar | D80: PND 2 Acceso a servicios de salud | E80: MED 3 Lograr la cobertura sanitaria universal, en particular la protección contra los riesgos financieros, el acceso a servicios de salud esenciales de calidad y el acceso a medicamentos y vacunas seguros, eficaces, asequibles y de calidad para todos | G80: Prevención y control de ITS, VIH/SIDA | H80: Para el año 2032 se ha ampliado el acceso al servicio de salud en un XX % en el municipio de XXX (De un XX% en el año XXX a un XXX% en el año 2032) | I80: Para el año 2029, se ha ampliado el acceso al servicio de salud en un XX % en personas atendidas con programas de atención a la prevención y control de ITS, VIH/SIDA en el municipio de XXX (De un XX% en el año XXX a un XX% en el año 2029) | J80: Desarrollo Social | K80: Persona atendidas para la prevención de ITS, VIH/SIDA | L80: Persona | N80: X | O80: Ministerio de Salud Pública y Asistencia Social -MSPAS- | P80: MSPAS | Q80: MUNICIPALIDAD | R80: 21 | S80: Nombre: Apoyo a la salud preventiva Descripción: Apoyo a la salud preventiva | T80: 1 | U80: Nombre: Prevención de control de ITS, VIH / SIDA Descripción: Prevención y control de ITS, VIH/SIDA | V80: Nombre: Diagnóstico y tratamiento ITS, VIH/SIDA Descripción: Persona atendidas para la prevención de ITS, VIH/SIDA | W80: Número de personas beneficiadas con para la prevención de ITS, VIH/SIDA, al finalizar el año 2026.
A81: 74 | B81: Bienestar para la gente | C81: ODS 3 Salud y bienestar | D81: PND 2 Acceso a servicios de salud | E81: MED 3 Lograr la cobertura sanitaria universal, en particular la protección contra los riesgos financieros, el acceso a servicios de salud esenciales de calidad y el acceso a medicamentos y vacunas seguros, eficaces, asequibles y de calidad para todos | F81: Para el 2029, se ha disminuido en 480% la mortalidad por Tuberculosis (De 25 por cada 100,000 habitantes en 2015 a 13 por cada 100,000 habitantes en 2029) | H81: Para el año 2032 se ha ampliado el acceso al servicio de salud en un XX % en el municipio de XXX (De un XX% en el año XXX a un XXX% en el año 2032) | I81: Para el año 2029, se ha reducido en XX% el número de casos de tuberculosis respiratoria, en el municipio XXX (De XX% en el año XXX a un XX% en el año 2029) | J81: Desarrollo Social | K81: Persona con diagnóstico de la tuberculosis que recibe tratamiento | L81: Persona | N81: X | O81: Ministerio de Salud Pública y Asistencia Social -MSPAS- | P81: MSPAS | Q81: MUNICIPALIDAD | R81: 21 | S81: Nombre: Apoyo a la salud preventiva Descripción: Apoyo a la salud preventiva | T81: 2 | U81: Nombre: Prevención y control de la tuberculosis Descripción: Prevención y control de la tuberculosis | V81: Nombre: Diagnóstico de la tuberculosis Descripción: Persona con diagnóstico de la tuberculosis que recibe tratamiento | W81: Número de personas beneficiadas con diagnóstico de la tuberculosis que recibe tratamiento, al finalizar el año 2026.
A82: 75 | B82: Bienestar para la gente | C82: ODS 3 Salud y bienestar | D82: PND 2 Acceso a servicios de salud | E82: MED 3 Lograr la cobertura sanitaria universal, en particular la protección contra los riesgos financieros, el acceso a servicios de salud esenciales de calidad y el acceso a medicamentos y vacunas seguros, eficaces, asequibles y de calidad para todos | G82: Para el 2029, se ha eliminado en 1000% la malaria en Guatemala (De 3,018 casos en 2018 a 0 casos en 2029) | H82: Para el año 2032 se ha ampliado el acceso al servicio de salud en un XX % en el municipio de XXX (De un XX% en el año XXX a un XXX% en el año 2032) | I82: Para el año 2029, se ha incrementado en XX% las personas atendidas y beneficiadas con acciones de prevención, control y vigilancia de enfermedades zoonóticas y vectoriales, en el municipio XXX (De XX% en el año XXX a XX% en el año 2029) | J82: Desarrollo Social | K82: Persona beneficiada con acciones de prevención, control y vigilancia de la malaria | L82: Persona | N82: X | O82: Ministerio de Salud Pública y Asistencia Social -MSPAS- | P82: MSPAS | Q82: MUNICIPALIDAD | R82: 21 | S82: Nombre: Apoyo a la salud preventiva Descripción: Apoyo a la salud preventiva | T82: 3 | U82: Nombre: Prevención y control de las enfermedades vectoriales y zoonóticas Descripción: Prevención y control de las enfermedades vectoriales y zoonóticas | V82: Nombre: Persona beneficiada con acciones de prevención, control y vigilancia de la malaria Descripción: Persona beneficiada con acciones de prevención, control y vigilancia de la malaria | W82: Número de personas beneficiadas con acciones de prevención, control y vigilancia de la malaria, al finalizar el año 2026.
A83: 76 | B83: Bienestar para la gente | C83: ODS 3 Salud y bienestar | D83: PND 2 Acceso a servicios de salud | E83: MED 3 Lograr la cobertura sanitaria universal, en particular la protección contra los riesgos financieros, el acceso a servicios de salud esenciales de calidad y el acceso a medicamentos y vacunas seguros, eficaces, asequibles y de calidad para todos | G83: La población guatemalteca goza de salud, las enfermedades infecciosas, parasitarias y las crónico-degenerativas han disminuido y son tratadas eficientemente | H83: Para el año 2032 se ha ampliado el acceso al servicio de salud en un XX % en el municipio de XXX (De un XX% en el año XXX a un XXX% en el año 2032) | I83: Para el 2029, el XX% de población, ha tenido acceso a servicios de prevención y promoción de la salud, en el municipio XX (De XX% de población en el año XXXX a XX% en el año XXXX) | J83: Desarrollo Social | K83: Población con servicios de prevención y promoción de la salud | L83: Persona | N83: X | O83: MSPAS | P83: MSPAS | Q83: MUNICIPALIDAD | R83: 21 | S83: Nombre: Apoyo a la salud preventiva Descripción: Apoyo a la salud preventiva | T83: 4 | U83: Nombre: Prevención de enfermedades infecciosas, parasitarias y crónico degenerativas Descripción: Prevención de enfermedades infecciosas, parasitarias y crónico degenerativas | V83: Nombre: Población con servicios de prevención y promoción de la salud Descripción: Población con servicios de prevención y promoción de la salud | W83: Número de personas beneficiadas con servicios de prevención y promoción de la salud, al finalizar el año 2026.
A84: 77 | B84: Riqueza para todas y todos | C84: ODS 8 Trabajo decente y crecimiento económico | D84: PND 5 Empleo e inversión | E84: MED 7 Se ha reducido la precariedad laboral mediante la generación de empleos decentes y de calidad | F84: Para el 2029, se ha incrementado en 37 puntos porcentuales la formalidad del empleo (De 323% en 2021 a 360% en 2029) | H84: Para el 2032, se ha incrementado el XX% de adolescentes y jóvenes beneficiados con beca artesano, en el municipio XX, (De XX en el año a XX en el año XXXX) | I84: Para el 2029, se ha incrementado el XX% de adolescentes y jóvenes beneficiados con beca artesano, en el municipio XX (De XX en el año a XX en el año XXXX) | J84: Desarrollo Social | K84: Beca artesano entregada a adolescentes y jóvenes | L84: Beca | N84: X | O84: Ministerio de Desarrollo Social -MIDES- | P84: MIDES | Q84: MUNICIPALIDAD | R84: 22 | S84: Nombre: Apoyo al desarrollo económico local Descripción: Apoyo al desarrollo económico local | T84: 1 | U84: Nombre: Incremento en la formalidad del empleo Descripción: Becas de Educación y Artesano | V84: Nombre: Beca artesano a adolescentes Descripción: Beca artesano entregada a adolescentes y jóvenes | W84: Número de becas artesano entregadas a adolescentes y jóvenes, al finalizar el año 2026.
A85: 78 | B85: Riqueza para todas y todos | C85: ODS 8 Trabajo decente y crecimiento económico | D85: PND 5 Empleo e inversión | E85: MED 7 Se ha reducido la precariedad laboral mediante la generación de empleos decentes y de calidad | F85: Para el 2029, se ha incrementado en 37 puntos porcentuales la formalidad del empleo (De 323% en 2021 a 360% en 2029) | H85: Para el año 2032, se ha incrementado la formalidad del empleo XX%, en el municipio XXX (De XX% en el año XXX a XX% en el año 2032) | I85: Para el año 2029,se ha incrementado en XX% el número de personas atendidas en eventos y/o actividades de promoción de empleo, en el municipio XXX (De un XX% en el año XXX a un XX% en el año 2029) | J85: N/A | K85: Personas Orientadas e Intermediadas en el Mercado Laboral | L85: Persona | N85: X | O85: Ministerio de Trabajo -MINTRAB- | P85: MINTRAB | Q85: MUNICIPALIDAD | R85: 22 | S85: Nombre: Apoyo al desarrollo económico local Descripción: Apoyo al desarrollo económico local | T85: 1 | U85: Nombre: Incremento en la formalidad del empleo Descripción: Incremento en la formalidad del empleo | V85: Nombre: Mercado laboral Descripción: Personas Orientadas e Intermediadas en el Mercado Laboral | W85: Número de personas Orientadas e Intermediadas en el Mercado Laboral, al finalizar el año 2026.
A86: 79 | B86: Riqueza para todas y todos | C86: ODS 8 Trabajo decente y crecimiento económico | D86: PND 5 Empleo e inversión | E86: MED 7 Se ha reducido la precariedad laboral mediante la generación de empleos decentes y de calidad | F86: Para el 2029, se ha incrementado en 37 puntos porcentuales la formalidad del empleo (De 323% en 2021 a 360% en 2029) | H86: Para el año 2032, se ha incrementado la formalidad del empleo XX%, en el municipio XXX (De XX% en el año XXX a XX% en el año 2032) | I86: Para el año 2029, se ha incrementado en XX% el número de personas atendidas en eventos y/o actividades de promoción de empleo en el municipio XXX (De un XX% en el año XXX a un XX% en el año 2029) | J86: Hacia una Función Pública, Legítima y Eficaz | K86: Entidades beneficiadas con asistencia técnica para la mejora de la productividad y competitividad a nivel departamental | L86: Entidad | N86: X | O86: Ministerio de Economía -MINECO- | P86: MINECO | Q86: MUNICIPALIDAD | R86: 22 | S86: Nombre: Apoyo al desarrollo económico local Descripción: Apoyo al desarrollo económico local | T86: 1 | U86: Nombre: Incremento en la formalidad del empleo Descripción: Incremento en la formalidad del empleo | V86: Nombre: Productividad y competitividad departamental Descripción: Entidades beneficiadas con asistencia técnica para la mejora de la productividad y competitividad a nivel departamental | W86: Número de entidades beneficiadas con asistencia técnica para la mejora de la productividad y competitividad a nivel departamental, al finalizar el año 2026.
A87: 80 | B87: Riqueza para todas y todos | C87: ODS 8 Trabajo decente y crecimiento económico | D87: PND 5 Empleo e inversión | E87: MED 6 En 2032, el crecimiento del PIB real ha sido paulatino y sostenido, hasta alcanzar una tasa no menor del 54%: a) Rango entre 34 y 44% en el quinquenio 2015-2020 b) Rango entre 44 y 54% en el quinquenio 2021-2025 c) No menor del 54% en los siguientes años, hasta llegar a 2032 | F87: Para el 2029, se ha incrementado en 37 puntos porcentuales la formalidad del empleo (De 323% en 2021 a 360% en 2029) | H87: Para el año 2032, se ha incrementado la formalidad del empleo XX%, en el municipio XXX (De XX% en el año XXX a XX% en el año 2032) | I87: Para el año 2029, se ha incrementado en XX% el número de personas atendidas en eventos y/o actividades de promoción de empleo en el municipio XXX (De un XX% en el año XXX a un XX% en el año 2029) | J87: Desarrollo Social | K87: Empresario de Micro, pequeña y mediana empresa beneficiados con asistencia técnica en desarrollo empresarial a nivel departamental | L87: Persona | N87: X | O87: MINECO | P87: MINECO | Q87: MUNICIPALIDAD | R87: 22 | S87: Nombre: Apoyo al desarrollo económico local Descripción: Apoyo al desarrollo económico local | T87: 1 | U87: Nombre: Incremento en la formalidad del empleo Descripción: Incremento en la formalidad del empleo | V87: Nombre: Asistencia técnica en desarrollo empresarial a nivel departamental Descripción: Empresario de Micro, pequeña y mediana empresa beneficiados con asistencia técnica en desarrollo empresarial a nivel departamental | W87: Número de empresario de Micro, pequeña y mediana empresa beneficiados con asistencia técnica en desarrollo empresarial a nivel departamental, al finalizar el año 2026.
A88: 81 | B88: Bienestar para la gente | C88: ODS 3 Salud y bienestar | D88: PND 2 Acceso a servicios de salud | E88: MED 3 Lograr la cobertura sanitaria universal, en particular la protección contra los riesgos financieros, el acceso a servicios de salud esenciales de calidad y el acceso a medicamentos y vacunas seguros, eficaces, asequibles y de calidad para todos | G88: Mantener la atención en los servicios de emergencias solicitados por la población a través de la dirección y coordinación de los mismos | H88: Para el año 2032 se ha ampliado el acceso al servicio de salud en un XX % en el municipio de XXX (De un XX% en el año XXX a un XX% en 2032) | I88: Para el 2029, se ha brindado asistencia a la población en atención a emergencias, en el municipio XXX (De XX% en el año XXX a XX% en el año 2029) | J88: Protección, Asistencia y Seguridad Social | K88: Servicios de emergencia proporcionados a la población | L88: Evento | N88: X | O88: Benemérito Cuerpo Voluntario de Bomberos -BCVB- | P88: BCVB | Q88: MUNICIPALIDAD | R88: 25 | S88: Nombre: Servicios de emergencia Descripción: Servicios de emergencia | T88: 0 | U88: Nombre: Sin Subprograma Descripción: Sin subprograma | V88: Nombre: Servicios de emergencia Descripción: Servicios de emergencia proporcionados a la población | W88: Número de eventos realizados relacionados con Servicios de emergencia proporcionados a la población, al finalizar el año 2026.
A89: 82 | B89: Estado garante de los derechos humanos y conductor del desarrollo | C89: ODS 16 Paz, Justicia e instituciones sólidas | D89: PND 7 Fortalecimiento institucional, seguridad y justicia | E89: MED 12 Crear instituciones eficaces, responsables y transparentes a todos los niveles | G89: Para el 2032, se ha incrementado en 211% la participación de personas en las diferentes disciplinas del arte (De 9,469 personas en 2014 a 11,468 en 2032) | H89: Para el año 2032 se ha incrementado en XX% la participación de personas en las diferentes disciplinas del arte en el municipio de XXX (De XX% en el año XXX a XX% en el año 2032) | I89: Para el año 2029, el XX% de población tiene acceso actividades de formación en diferentes disciplinas del arte, en el municipio de XXX (De XX en el año XXX a XX en el año 2029) | J89: Desarrollo Social | K89: Autorización y control de espectáculos públicos en beneficio de personas | L89: Persona | N89: X | O89: Ministerio de Cultura y Deportes -MCD- | P89: MCD | Q89: MUNICIPALIDAD | R89: 26 | S89: Nombre: Participación en disciplinas del arte Descripción: Participación en disciplinas del arte | T89: 2 | U89: Nombre: Formación, fomento y difusión de las artes Descripción: Formación, fomento y difusión de las artes | V89: Nombre: Autorización y control de espectáculos públicos Descripción: Autorización y control de espectáculos públicos en beneficio de personas | W89: Número de personas beneficiadas con Autorización y control de espectáculos públicos, al finalizar el año 2026.
A90: 83 | B90: Estado garante de los derechos humanos y conductor del desarrollo | C90: ODS 16 Paz, Justicia e instituciones sólidas | D90: PND 7 Fortalecimiento institucional, seguridad y justicia | E90: MED 12 Crear instituciones eficaces, responsables y transparentes a todos los niveles | G90: Para el 2032, se ha incrementado en 211% la participación de personas en las diferentes disciplinas del arte (De 9,469 personas en 2014 a 11,468 en 2032) | H90: Para el año 2032 se ha incrementado en XX% la participación de personas en las diferentes disciplinas del arte en el municipio de XXX (De XX% en el año XXX a XX% en el año 2032) | I90: Para el año 2029, el XX% de población tiene acceso actividades de formación en diferentes disciplinas del arte, en el municipio de XXX (De XX en el año XXX a XX en el año 2029) | J90: Desarrollo Social | K90: Personas beneficiadas con formación profesional en las diferentes disciplinas del Arte | L90: Persona | N90: X | O90: Ministerio de Cultura y Deportes -MCD- | P90: MCD | Q90: MUNICIPALIDAD | R90: 26 | S90: Nombre: Participación en disciplinas del arte Descripción: Participación en disciplinas del arte | T90: 2 | U90: Nombre: Formación, fomento y difusión de las artes Descripción: Formación, fomento y difusión de las artes | V90: Nombre: Formación profesional en disciplinas del arte Descripción: Hombres y mujeres beneficiadas con formación profesional en diferentes disciplinas del arte | W90: Número de personas beneficiadas con formación profesional en las diferentes disciplinas del Arte, al finalizar el año 2026.
A91: 84 | B91: Estado garante de los derechos humanos y conductor del desarrollo | C91: ODS 16 Paz, Justicia e instituciones sólidas | D91: PND 7 Fortalecimiento institucional, seguridad y justicia | E91: MED 12 Crear instituciones eficaces, responsables y transparentes a todos los niveles | G91: Para el 2032, se ha incrementado en 211% la participación de personas en las diferentes disciplinas del arte (De 9,469 personas en 2014 a 11,468 en 2032) | H91: Para el año 2032 se ha disminuido en XX% la incidencia criminal en el municipio de XXX (De XX% en el año XXX a XX% en el año 2032) | I91: Para el año XXX el XX% de población del municipio de XXX tiene acceso actividades culturales, recreativas y deportivas (De XX en el año XXX a XX en el año XXX) | J91: Desarrollo Social | K91: Conciertos y Presentaciones de Instituciones Artisticas en Beneficio de Personas | L91: Evento | N91: X | O91: Ministerio de Cultura y Deportes -MCD- | P91: MCD | Q91: MUNICIPALIDAD | R91: 26 | S91: Nombre: Participación en disciplinas del arte Descripción: Participación en disciplinas del arte | T91: 2 | U91: Nombre: Formación, fomento y difusión de las artes Descripción: Formación, fomento y difusión de las artes | V91: Nombre: Conciertos y Presentaciones de Instituciones Artisticas Descripción: Conciertos y Presentaciones de Instituciones Artisticas en Beneficio de Personas | W91: Número de eventos realizados relacionados con Conciertos y Presentaciones de Instituciones Artisticas, al finalizar el año 2026.
A92: 85 | B92: Estado garante de los derechos humanos y conductor del desarrollo | C92: ODS 16 Paz, Justicia e instituciones sólidas | D92: PND 7 Fortalecimiento institucional, seguridad y justicia | E92: MED 12 Crear instituciones eficaces, responsables y transparentes a todos los niveles | G92: Para el 2032, se ha incrementado en 211% la participación de personas en las diferentes disciplinas del arte (De 9,469 personas en 2014 a 11,468 en 2032) | H92: Para el año 2032 se ha incrementado en XX% la participación de personas en las diferentes disciplinas del arte en el municipio de XXX (De XX% en el año XXX a XX% en el año 2032) | I92: Para el año 2029, el XX% de población tiene acceso actividades de formación en diferentes disciplinas del arte, en el municipio de XXX (De XX en el año XXX a XX en el año 2029) | J92: Desarrollo Social | K92: Personas beneficiadas con difusión cultural, artistica y literaria | L92: Persona | N92: X | O92: Ministerio de Cultura y Deportes -MCD- | P92: MCD | Q92: MUNICIPALIDAD | R92: 26 | S92: Nombre: Participación en disciplinas del arte Descripción: Participación en disciplinas del arte | T92: 2 | U92: Nombre: Formación, fomento y difusión de las artes Descripción: Formación, fomento y difusión de las artes | V92: Nombre: Difusión cultural, artística y literaria Descripción: Personas beneficiadas con difusión cultural, artística y literaria | W92: Número de personas beneficiadas con difusión cultural, artistica y literaria, al finalizar el año 2026.
A93: 86 | B93: Estado garante de los derechos humanos y conductor del desarrollo | C93: ODS 11 Ciudades y comunidades sostenibles | D93: PND 7 Fortalecimiento institucional, seguridad y justicia | E93: MED 12 Crear instituciones eficaces, responsables y transparentes a todos los niveles | G93: Promover la institucionalización y cultura en Gestión Integral de la Reducción del Riesgo a Desastres, en los distintos niveles sectoriales y territoriales del país con el fin de no incrementar la cantidad de personas fallecidas debido a la ocurrencia de desastres en los años 2023 a 2027 | H93: Para el 2032, se ha reducido en XX% la ocupación de áreas vulnerables o en riesgo en el municipio de XXX (De XX % en XXX a XXX% en 2032) | I93: Para el 2029, se cuenta con XXX COLREDES equipadas y capacitadas ubicadas en áreas de alto riesgo, en el municipio de XXX (De un XXX en el año XXX a XXX en el año 2029) | J93: Cuidado de la Naturaleza | K93: Población guatemalteca beneficiada con ayuda y asistencia humanitaria en el momento de un desastre o por medio de actividades, iniciativas, proyectos, obras e investigaciones en todas las áreas de reducción de desastres | L93: REGISTRO | N93: X | O93: Secretaria Ejecutiva de la Coordinadora Nacional para la Reducción de Desastres -SE CONRED- | P93: SE CONRED | Q93: MUNICIPALIDAD | R93: 27 | S93: Nombre: Gestión integral de riesgo Descripción: Gestión integral de riesgo | T93: 2 | U93: Nombre: Programa de apoyo para la reducción de riesgo Descripción: Programa de apoyo para la reducción de riesgo | V93: Nombre: Ayuda y asistencia humanitaria en el momento de un desastre Descripción: Población guatemalteca beneficiada con ayuda y asistencia humanitaria en el momento de un desastre o por medio de actividades, iniciativas, proyectos, obras e investigaciones en todas las áreas de reducción de desastres | W93: Número de registros generados por Población guatemalteca beneficiada con ayuda y asistencia humanitaria en el momento de un desastre o por medio de actividades, iniciativas, proyectos, obras e investigaciones en todas las áreas de reducción de desastres, al finalizar el año 2026.
A94: 87 | B94: Estado garante de los derechos humanos y conductor del desarrollo | C94: ODS 11 Ciudades y comunidades sostenibles | D94: PND 7 Fortalecimiento institucional, seguridad y justicia | E94: MED 12 Crear instituciones eficaces, responsables y transparentes a todos los niveles | G94: Para el 2026 se ha incrementado a 124 el número de instituciones del Sistema CONRED con capacidades para aplicar normativas y lineamientos para la prevención y mitigación de riesgos | H94: Para el 2032 se ha reducido en XX% la ocupación de áreas vulnerables o en riesgo en el municipio de XXX (De XX % en XXX a XXX% en 2032) | I94: Para el 2029, se cuenta con XXX COLREDES equipadas y capacitadas ubicadas en áreas de alto riesgo, en el municipio de XXX (De un XXX en el año XXX a XXX en el año 2029) | J94: Cuidado de la Naturaleza | K94: Sistema CONRED fortalecido con procesos formativos y de organización en gestión del riesgo de desastres | L94: Entidad | N94: X | O94: Secretaria Ejecutiva de la Coordinadora Nacional para la Reducción de Desastres -SE CONRED- | P94: SE CONRED | Q94: MUNICIPALIDAD | R94: 27 | S94: Nombre: Gestión integral de riesgo Descripción: Gestión integral de riesgo | T94: 4 | U94: Nombre: Prevención y mitigación de riesgos Descripción: Prevención y mitigación de riesgos | V94: Nombre: Gestión del riesgo de desastres Descripción: Sistema CONRED fortalecido con procesos formativos y de organización en gestión del riesgo de desastres | W94: Número de entidades que participan en Sistema CONRED fortalecido con procesos formativos y de organización en gestión del riesgo de desastres, al finalizar el año 2026.
A95: 88 | B95: Estado garante de los derechos humanos y conductor del desarrollo | C95: ODS 11 Ciudades y comunidades sostenibles | D95: PND 7 Fortalecimiento institucional, seguridad y justicia | E95: MED 12 Crear instituciones eficaces, responsables y transparentes a todos los niveles | G95: Para el 2026 se ha incrementado a 152 el número de instituciones del Sistema CONRED con planes de respuesta | H95: Para el 2032, se ha reducido en XX% la ocupación de áreas vulnerables o en riesgo en el municipio de XXX (De XX % en XXX a XXX% en 2032) | I95: Para el 2029, se cuenta con XXX COLREDES equipadas y capacitadas ubicadas en áreas de alto riesgo, en el municipio de XXX (De un XXX en el año XXX a XXX en el año 2029) | J95: Hacia una Función Pública, Legítima y Eficaz | K95: Fortalecimiento de recursos, asistencia y ayuda humanitaria | L95: Entidad | N95: X | O95: Secretaria Ejecutiva de la Coordinadora Nacional para la Reducción de Desastres -SE CONRED- | P95: SE CONRED | Q95: MUNICIPALIDAD | R95: 27 | S95: Nombre: Gestión integral de riesgo Descripción: Gestión integral de riesgo | T95: 5 | U95: Nombre: Planes de respuesta Descripción: Planes de respuesta | V95: Nombre: Fortalecimiento de recursos, asistencia y ayuda humanitaria Descripción: Fortalecimiento de recursos, asistencia y ayuda humanitaria | W95: Número de entidades que participan en fortalecimiento de recursos, asistencia y ayuda humanitaria, al finalizar el año 2026.
A96: 89 | B96: Bienestar para la gente | C96: ODS 3 Salud y bienestar | D96: PND 2 Acceso a servicios de salud | E96: MED 3 Lograr la cobertura sanitaria universal, en particular la protección contra los riesgos financieros, el acceso a servicios de salud esenciales de calidad y el acceso a medicamentos y vacunas seguros, eficaces, asequibles y de calidad para todos | G96: La población guatemalteca goza de salud, las enfermedades infecciosas, parasitarias y las crónico-degenerativas han disminuido y son tratadas eficientemente" | H96: Para el año 2032 se ha ampliado el acceso al servicio de salud en un XX % en el municipio de XXX (De un XX% en el año XXX a un XXX% en el año 2032) | I96: Para el 2029, el XX% de población, ha tenido acceso a servicios de prevención y promoción de la salud, en el municipio XX (De XX% de población en el año XXXX a XX% en el año XXXX) | J96: Desarrollo Social | K96: Personas atendidas en servicios de recuperación de la salud | L96: Persona | N96: X | O96: Ministerio de Salud Pública y Asistencia Social -MSPAS- | P96: MSPAS | Q96: MUNICIPALIDAD | R96: 29 | S96: Nombre: Recuperación de la salud Descripción: Recuperación de la salud | T96: 0 | U96: Nombre: Sin subprograma Descripción: Sin subprograma | V96: Nombre: Recuperación de la salud Descripción: Personas atendidas en servicios de recuperación de la salud | W96: Número de personas beneficiadas con servicios de recuperación de la salud, al finalizar el año 2026.
A97: 90 | B97: Bienestar para la gente | C97: ODS 11 Ciudades y comunidades sostenibles | D97: PND 7 Fortalecimiento institucional, seguridad y justicia | E97: Sin vinculación | G97: Para el 2032 se ha incrementado en un 5% el registro de bienes patrimoniales ampliando la cobertura (De 5,350 en 2023 a 6,150 en 2027) | H97: Para el año 2032, cuenta con programas para la restauración, preservación y protección del patrimonio cultural y natural, en el municipio XX (De XX% en el año XXX a XX% en el año XXX) | I97: Para el año 2029, se invierte en mejorar las condiciones de infraestructura y prestación de servicios en áreas públicas de XXX lugares turísticos y ecoturísticos del municipio de XXX (De XX lugares turísticos en el año XXX a XX lugares turísticos en el año XXX) | J97: Desarrollo Social | K97: Visitantes atendidos en parques, sitios arqueologicos y zonas de rescate cultural y natural | L97: Registro | N97: X | O97: Ministerio de Cultura y Deportes -MCD- | P97: MCD | Q97: MUNICIPALIDAD | R97: 30 | S97: Nombre: Restauración, preservación y protección del patrimonio cultural y natural Descripción: Restauración, preservación y protección del patrimonio cultural y natural | T97: 0 | U97: Nombre: Sin Subprograma Descripción: Sin subprograma | V97: Nombre: Visitantes atendidos en parques, sitios arqueologicos y zonas de rescate cultural y natural Descripción: Visitantes atendidos en parques, sitios arqueologicos y zonas de rescate cultural y natural | W97: Número de visitantes atendidos en parques, sitios arqueologicos y zonas de rescate cultural y natural, al finalizar el año 2026.
A98: 91 | B98: Bienestar para la gente | C98: ODS 11 Ciudades y comunidades sostenibles | D98: PND 7 Fortalecimiento institucional, seguridad y justicia | E98: Sin vinculación | G98: Para el 2032 se ha incrementado en un 5% el registro de bienes patrimoniales ampliando la cobertura (De 5,350 en 2023 a 6,150 en 2027) | H98: Para el año 2032, se cuenta con programas para la restauración, preservación y protección del patrimonio cultural y natural, el municipio XX (De XX% en el año XXX a XX% en el año XXX) | I98: Para el 2029, se cuenta con XX programas municipales de emprendimiento para fomentar el desarrollo turístico a nivel local, en el municipio de XXX (De un XXX en el año XXX a XXX en el año XXX) | J98: Desarrollo Social | K98: Visitantes atendidos en los museos | L98: Persona | N98: X | O98: Ministerio de Cultura y Deportes -MCD- | P98: MCD | Q98: MUNICIPALIDAD | R98: 30 | S98: Nombre: Restauración, preservación y protección del patrimonio cultural y natural Descripción: Restauración, preservación y protección del patrimonio cultural y natural | T98: 0 | U98: Nombre: Sin Subprograma Descripción: Sin subprograma | V98: Nombre: Visitantes atendidos en los museos Descripción: Visitantes atendidos en los museos | W98: Número de visitantes atendidos en los museos, al finalizar el año 2026.
A99: 92 | B99: Bienestar para la gente | C99: ODS 11 Ciudades y comunidades sostenibles | D99: PND 7 Fortalecimiento institucional, seguridad y justicia | E99: Sin vinculación | G99: Para el 2032 se ha incrementado en un 5% el registro de bienes patrimoniales ampliando la cobertura (De 5,350 en 2023 a 6,150 en 2027) | H99: Para el año 2032, el municipio XX, cuenta con programas para la restauración, preservación y protección del patrimonio cultural y natural, en el municipio de XXX (De XX% en el año XXX a XX% en el año XXX) | I99: Para el año 2029, el XX% de población, beneficiada con el patrimonio bibliográfico y documental, del municipio de XXX (De XX en el año XXX a XX en el año XXX) | J99: Desarrollo Social | K99: Usuarios beneficiados con el patrimonio bibliográfico y documental | L99: Persona | N99: X | O99: Ministerio de Cultura y Deportes -MCD- | P99: MCD | Q99: MUNICIPALIDAD | R99: 30 | S99: Nombre: Restauración, preservación y protección del patrimonio cultural y natural Descripción: Restauración, preservación y protección del patrimonio cultural y natural | T99: 0 | U99: Nombre: Sin Subprograma Descripción: Sin subprograma | V99: Nombre: Usuarios beneficiados con el patrimonio bibliográfico y documental Descripción: Usuarios beneficiados con el patrimonio bibliográfico y documental | W99: Número de usuarios beneficiados con el patrimonio bibliográfico y documental, al finalizar el año 2026.
A100: 93 | B100: Estado garante de los derechos humanos y conductor del desarrollo | C100: ODS 16 Paz, Justicia e instituciones sólidas | D100: PND 7 Fortalecimiento institucional, seguridad y justicia | E100: MED 12 Crear instituciones eficaces, responsables y transparentes a todos los niveles | G100: Para el 2032, se ha incrementado en 83 puntos porcentuales la participación y promoción de las personas en el deporte no federado, no escolar y de recreación (de 35% en 2022 a 118% en 2032) | H100: Para el año 2032, se ha incrementado en XX% la incidencia criminal en el municipio de XXX (De XX% en el año XXX a XX% en el año 2032) | I100: Para el año 2029, el XX% de población, tiene acceso a actividades deportivas no escolares, no federadas y de recreación, en el municipio de XXX (De XX en el año XXX a XX en el año XXX) | J100: Desarrollo Social | K100: Pesonas beneficiadas con actividades deportivas no escolares, no federadas y de recreación | L100: Persona | N100: X | O100: Ministerio de Cultura y Deportes -MCD- | P100: MCD | Q100: MUNICIPALIDAD | R100: 31 | S100: Nombre: Fomento al deporte y a la recreación Descripción: Fomento al deporte y a la creación | T100: 0 | U100: Nombre: Sin Subprograma Descripción: Sin subprograma | V100: Nombre: Fomento al deporte y a la creación Descripción: Fomento al deporte y a la creación | W100: Número de personas beneficiadas con actividades deportivas no escolares, no federadas y de recreación, al finalizar el año 2026.
A101: 94 | B101: Estado garante de los derechos humanos y conductor del desarrollo | C101: ODS 16 Paz, Justicia e instituciones sólidas | D101: PND 7 Fortalecimiento institucional, seguridad y justicia | E101: MED 12 Crear instituciones eficaces, responsables y transparentes a todos los niveles | G101: Para el 2032, se ha incrementado en 83 puntos porcentuales la participación y promoción de las personas en el deporte no federado, no escolar y de recreación (de 35% en 2022 a 118% en 2032) | H101: Para el año 2032 se ha disminuido en XX% la incidencia criminal en el municipio de XXX (De XX% en el año XXX a XX% en el año 2032) | I101: Para el año 2029, el XX% de población, tiene acceso a espacios para la práctica del deporte y la recreación física, del municipio de XXX (De XX en el año XXX a XX en el año 2029) | J101: Desarrollo Social | K101: Personas beneficiadas con acceso a espacios para la práctica del deporte y la recreación física | L101: Persona | N101: X | O101: Ministerio de Cultura y Deportes -MCD- | P101: MCD | Q101: MUNICIPALIDAD | R101: 31 | S101: Nombre: Fomento al deporte y a la recreación Descripción: Fomento al deporte y a la creación | T101: 0 | U101: Nombre: Sin Subprograma Descripción: Sin subprograma | V101: Nombre: Fomento al deporte y a la creación Descripción: Fomento al deporte y a la creación | W101: Número de personas beneficiadas con acceso a espacios para la práctica del deporte y la recreación física, al finalizar el año 2026.
A102: 95 | B102: Estado garante de los derechos humanos y conductor del desarrollo | C102: ODS 16 Paz, Justicia e instituciones sólidas | D102: PND 7 Fortalecimiento institucional, seguridad y justicia | E102: MED 12 Crear instituciones eficaces, responsables y transparentes a todos los niveles | G102: Para el 2032, se ha incrementado en 83 puntos porcentuales la participación y promoción de las personas en el deporte no federado, no escolar y de recreación (de 35% en 2022 a 118% en 2032) | H102: Para el año 2032 se ha disminuido en XX% la incidencia criminal en el municipio de XXX (De XX% en el año XXX a XX% en el año 2032) | I102: Para el año 2029, el XX% de población, tiene acceso a actividades físicas, recreativas y de sensibilización para la prevención de la violencia, en el municipio (De XX en el año XXX a XX en el año 2029) | J102: Desarrollo Social | K102: Mujeres beneficiadas con acceso a actividades físicas, recreativas y de sensibilización para la prevención de la violencia | L102: Persona | N102: X | O102: Ministerio de Cultura y Deportes -MCD- | P102: MCD | Q102: MUNICIPALIDAD | R102: 31 | S102: Nombre: Fomento al deporte y a la recreación Descripción: Fomento al deporte y a la creación | T102: 0 | U102: Nombre: Sin Subprograma Descripción: Sin subprograma | V102: Nombre: Fomento al deporte y a la creación Descripción: Fomento al deporte y a la creación | W102: Número de mujeres beneficiadas con acceso a actividades físicas, recreativas y de sensibilización para la prevención de la violencia, al finalizar el año 2026.
A103: 96 | B103: Estado garante de los derechos humanos y conductor del desarrollo | C103: ODS 16 Paz, Justicia e instituciones sólidas | D103: PND 7 Fortalecimiento institucional, seguridad y justicia | E103: MED 12 Crear instituciones eficaces, responsables y transparentes a todos los niveles | G103: Para el 2032, se ha incrementado en 83 puntos porcentuales la participación y promoción de las personas en el deporte no federado, no escolar y de recreación (de 35% en 2022 a 118% en 2032) | H103: Para el año 2032 se ha disminuido en XX% la incidencia criminal en el municipio de XXX (De XX% en el año XXX a XX% en el año 2032) | I103: Para el año 2029, el XX% de población tiene acceso a actividades físicas, deportivas y recreativas, en el municipio de XXX (De XX en el año XXX a XX en el año 2029) | J103: Desarrollo Social | K103: Jóvenes beneficiados con actividades físicas, deportivas y recreativas | L103: Persona | N103: X | O103: Ministerio de Cultura y Deportes -MCD- | P103: MCD | Q103: MUNICIPALIDAD | R103: 31 | S103: Nombre: Fomento al deporte y a la recreación Descripción: Fomento al deporte y a la creación | T103: 0 | U103: Nombre: Sin Subprograma Descripción: Sin subprograma | V103: Nombre: Jóvenes beneficiados con actividades físicas, deportivas y recreativas Descripción: Jóvenes beneficiados con actividades físicas, deportivas y recreativas | W103: Número de jóvenes beneficiados con actividades físicas, deportivas y recreativas, al finalizar el año 2026.
A104: 97 | B104: Estado garante de los derechos humanos y conductor del desarrollo | C104: ODS 16 Paz, Justicia e instituciones sólidas | D104: PND 7 Fortalecimiento institucional, seguridad y justicia | E104: MED 12 Crear instituciones eficaces, responsables y transparentes a todos los niveles | G104: Para el 2032, se ha incrementado en 83 puntos porcentuales la participación y promoción de las personas en el deporte no federado, no escolar y de recreación (de 35% en 2022 a 118% en 2032) | H104: Para el año 2032 se ha disminuido en XX% la incidencia criminal en el municipio de XXX (De XX% en el año XXX a XX% en el año 2032) | I104: Para el año 2029, el XX% de población tiene acceso a actividades físicas, deportivas y recreativas, en el municipio de XXX (De XX en el año XXX a XX en el año 2029) | J104: Desarrollo Social | K104: Festivales deportivos, recreativos y eventos especiales orientados a garantizar el acceso de la población a la actividad física, el deporte y la recreación | L104: Evento | N104: X | O104: Ministerio de Cultura y Deportes -MCD- | P104: MCD | Q104: MUNICIPALIDAD | R104: 31 | S104: Nombre: Fomento al deporte y a la recreación Descripción: Fomento al deporte y a la creación | T104: 0 | U104: Nombre: Sin Subprograma Descripción: Sin subprograma | V104: Nombre: Festivales deportivos, recreativos y eventos especiales Descripción: Festivales deportivos, recreativos y eventos especiales orientados a garantizar el acceso de la población a la actividad física, el deporte y la recreación | W104: Número de eventos realizados relacionados con Festivales deportivos, recreativos y eventos especiales orientados a garantizar el acceso de la población a la actividad física, el deporte y la recreación, al finalizar el año 2026.
A105: 98 | B105: Bienestar para la gente | C105: ODS 1 Fin de la pobreza | D105: PND 1 Reducción de la Pobreza y Protección Social | E105: MED 1 Para 2030, potenciar y promover la inclusión social, económica y política de todos, independientemente de su edad, sexo, discapacidad, raza, etnia, origen, religión o situación económica u otra condición | G105: Para el año 2032, incrementar a un 90% el total de la red vial en buen estado que equivale a (línea base) 18,17492 kilómetros del total de 19,99241 kilómetros proyectados para 2032 | H105: Para el año 2032, se ha aumentado/mejorado en XX km la infraestructura vial en buenas condiciones, en el municipio XXX (De XXkm en el año XXX a XX km en el año 2032) | I105: Para el año 2029, se ha incrementado XX kms con infraestructura vial en buenas condiciones, en el municipio XXX (De XX Kms en el año XXX a XX kms en el año 2029) | J105: La infraestructura económica para el buen vivir | K105: Mejoramiento caminos rurales | L105: KILOMETRO | N105: X | O105: Ministerio de Comunicaciones, Infraestructura y Vivienda -CIV- | P105: CIV | Q105: MUNICIPALIDAD | R105: 32 | S105: Nombre: Desarrollo de la infraestructura vial Descripción: Desarrollo de la infraestructura vial | T105: 0 | U105: Nombre: Sin Subprograma Descripción: Sin subprograma | V105: Nombre: Mejoramiento caminos rurales Descripción: Mejoramiento caminos rurales | W105: Cantidad de kilómetros para Mejoramiento caminos rurales, al finalizar el año 2026.
A106: 99 | B106: Bienestar para la gente | C106: ODS 1 Fin de la pobreza | D106: PND 1 Reducción de la Pobreza y Protección Social | E106: MED 1 Para 2030, potenciar y promover la inclusión social, económica y política de todos, independientemente de su edad, sexo, discapacidad, raza, etnia, origen, religión o situación económica u otra condición | G106: Para el año 2032, incrementar a un 90% el total de la red vial en buen estado que equivale a (línea base) 18,17492 kilómetros del total de 19,99241 kilómetros proyectados para 2032 | H106: Para el año 2032, el municipio XXX ha aumentado/mejorado en XX km la infraestructura vial en buenas condiciones (De XXkm en el año XXX a XX km en el año 2032) | I106: Para el año 2029, se ha incrementado XX kms con infraestructura vial en buenas condiciones s en el municipio XXX (De XX Kms en el año XXX a XX kms en el año 2029) | J106: La infraestructura económica para el buen vivir | K106: Construcción, ampliación, reposición y mejoramiento de carreteras terciarias | L106: KILOMETRO | N106: X | O106: Ministerio de Comunicaciones, Infraestructura y Vivienda -CIV- | P106: CIV | Q106: MUNICIPALIDAD | R106: 32 | S106: Nombre: Desarrollo de la infraestructura vial Descripción: Desarrollo de la infraestructura vial | T106: 0 | U106: Nombre: Sin Subprograma Descripción: Sin subprograma | V106: Nombre: Carreteras terciarias Descripción: Construcción, ampliación, reposición y mejoramiento de carreteras terciarias | W106: Cantidad de kilómetros para Construcción, ampliación, reposición y mejoramiento de carreteras terciarias, al finalizar el año 2026.
A107: 100 | B107: Bienestar para la gente | C107: ODS 1 Fin de la pobreza | D107: PND 1 Reducción de la Pobreza y Protección Social | E107: MED 1 Para 2030, potenciar y promover la inclusión social, económica y política de todos, independientemente de su edad, sexo, discapacidad, raza, etnia, origen, religión o situación económica u otra condición | G107: Para el año 2032, incrementar a un 90% el total de la red vial en buen estado que equivale a (línea base) 18,17492 kilómetros del total de 19,99241 kilómetros proyectados para 2032 | H107: Para el año 2032, el municipio XXX ha aumentado/mejorado en XX km la infraestructura vial en buenas condiciones (De XXkm en el año XXX a XX km en el año 2032) | I107: Para el año 2029, se ha incrementado XX kms con infraestructura vial en buenas condiciones s en el municipio XXX (De XX Kms en el año XXX a XX kms en el año 2029) | J107: La infraestructura económica para el buen vivir | K107: Construcción, ampliación, reposición y mejoramiento de puentes en caminos rurales | L107: KILOMETRO | N107: X | O107: Ministerio de Comunicaciones, Infraestructura y Vivienda -CIV- | P107: CIV | Q107: MUNICIPALIDAD | R107: 32 | S107: Nombre: Desarrollo de la infraestructura vial Descripción: Desarrollo de la infraestructura vial terciaria | T107: 0 | U107: Nombre: Sin Subprograma Descripción: Sin subprograma | V107: Nombre: Caminos rurales Descripción: Construcción, ampliación, reposición y mejoramiento de puentes en caminos rurales | W107: Cantidad de kilómetros para Construcción, ampliación, reposición y mejoramiento de puentes en caminos rurales, al finalizar el año 2026.
A108: 101 | B108: Estado garante de los derechos humanos y conductor del desarrollo | C108: ODS 16 Paz, Justicia e instituciones sólidas | D108: PND 7 Fortalecimiento institucional, seguridad y justicia | E108: MED 12 Crear instituciones eficaces, responsables y transparentes a todos los niveles | G108: Para el año 2032 se ha incrementado al 73% en jóvenes y adultos la práctica de elementos identitarios y expresiones culturales (de 78,536 personas atendidas en 2022 a 578,536 al 2032) | H108: Para el año 2032 se ha disminuido en XX% la incidencia criminal en el municipio de XXX (De XX% en el año XXX a XX% en el año 2032) | I108: Para el año 2029, el XX% de población tiene acceso a eventos de promoción cultural, en el municipio de XXX (De XX en el año XXX a XX en el año 2029) | J108: Desarrollo Social | K108: Personas beneficiadas con eventos de promoción cultural | L108: Persona | N108: X | O108: Ministerio de Cultura y Deportes -MCD- | P108: MCD | Q108: MUNICIPALIDAD | R108: 33 | S108: Nombre: Gestión del desarrollo cultural Descripción: Gestión del desarrollo cultural | T108: 0 | U108: Nombre: Sin Subprograma Descripción: Sin subprograma | V108: Nombre: Promoción cultural Descripción: Personas beneficiadas con eventos de promoción cultural | W108: Número de personas beneficiadas con promoción cultural, al finalizar el año 2026.
A109: 102 | B109: Bienestar para la gente | C109: ODS 10 Reducción de las desigualdades | D109: PND 1 Reducción de la Pobreza y Protección Social | E109: MED 2 Implementar a nivel nacional sistemas y medidas apropiados de protección social para todos, incluidos niveles mínimos y, de aquí a 2030, lograr una amplia cobertura de las personas pobres y vulnerables | G109: Para el 2032, se ha incrementado el diligenciamiento de la atención de niños, niñas, adolescentes, mujeres, adulto mayor y personas con discapacidad, en 3819% (20,994 personas) Línea base:2021 54,970 personas (NNA, Mujer, Adulto Mayor y Personas con Discapacidad, representados y atendidos para la protección de sus derechos) además, se atiende el total de las personas a través del Modelo de investigación y representación de casos | J109: Seguridad Democrática en un país | K109: Protección de los derechos de la mujer, adulto mayor y personas con discapacidad | L109: Persona | N109: X | O109: Procuraduría General de la Nación -PGN- | P109: PGN | Q109: MUNICIPALIDAD | R109: 34 | S109: Nombre: Protección de los derechos de la familia Descripción: Protección de los derechos de la familia | T109: 0 | U109: Nombre: Sin Subprograma Descripción: Sin subprograma | V109: Nombre: Protección de los derechos de la familia Descripción: Protección de los derechos de la mujer, adulto mayor y personas con discapacidad | W109: Número de personas beneficiadas mediante la protección de los derechos de la mujer, adulto mayor y personas con discapacidad, al finalizar el año 2026.
A110: 103 | B110: Bienestar para la gente | C110: ODS 3 Salud y bienestar | D110: PND 2 Acceso a servicios de salud | E110: MED 3 Lograr la cobertura sanitaria universal, en particular la protección contra los riesgos financieros, el acceso a servicios de salud esenciales de calidad y el acceso a medicamentos y vacunas seguros, eficaces, asequibles y de calidad para todos | H110: Para 2032, se tiene accesibilidad a medicamentos en el municipio | I110: Para 2029, se tiene un XX% de accesibilidad a medicamentos, en el municipio de XXXXX (De un XX% en el año XXXX a un XX% en el año 2029) | J110: Desarrollo Social | K110: Personas beneficiadas con gestión y administración de farmacias municipales populares | L110: Persona | M110: x | O110: MUNICIPALIDAD | P110: MUNICIPALIDAD | Q110: MUNICIPALIDAD | R110: 36 | S110: Nombre: Accesibilidad a medicamentos Descripción: Accesibilidad a medicamentos | T110: 0 | U110: Nombre: Sin Subprograma Descripción: Sin subprograma | V110: Nombre: Farmacias municipales Descripción: Personas beneficiadas con gestión y administración de farmacias municipales populares | W110: Número de personas beneficiadas con gestión y administración de farmacias municipales populares, al finalizar el año 2026.
A111: 104 | B111: Bienestar para la gente | C111: ODS 1 Fin de la pobreza | D111: PND 1 Reducción de la Pobreza y Protección Social | E111: Para 2030, fomentar la resiliencia de los pobres y las personas que se encuentran en situaciones vulnerables y reducir su exposición y vulnerabilidad a los fenómenos extremos relacionados con el clima y a otros desastres económicos, sociales y ambientales | G111: Para el 2029, se ha reducido la población que vive en condición de vulnerabilidad,, económica, cultural, ambiental, para mejorar su nivel de vida en los hogares de la población a nivel nacional | H111: Para el 2032, se ha reducido en XX% la condición de vulnerabilidad de las personas, en el municipio XX (De XX% en 2023, a XX% al 2032) | I111: Para el 2029, se ha reducido en XX% la condición de vulnerabilidad de las personas, en el municipio XX (De XX% en 2023, a XX% al 2029) | J111: Desarrollo Social | K111: Población en condición de vulnerabilidad atendida | L111: Persona | M111: X | O111: MUNICIPALIDAD | P111: MUNICIPALIDAD | Q111: MUNICIPALIDAD | R111: 37 | S111: Nombre: Atención a población vulnerable Descripción: Atención a población vulnerable | T111: 0 | U111: Nombre: Sin Subprograma Descripción: Sin subprograma | V111: Nombre: Población en condición de vulnerabilidad atendida Descripción: Población en condición de vulnerabilidad atendida | W111: Número de personas atendidas en condición de vulnerabilidad, al finalizar el año 2026.
A112: 105 | B112: Riqueza para todas y todos | C112: ODS 8 Trabajo decente y crecimiento económico | D112: PND 5 Empleo e inversión | E112: MED 7 Se ha reducido la precariedad laboral mediante la generación de empleos decentes y de calidad | F112: Para el 2029, se ha incrementado en 37 puntos porcentuales la formalidad del empleo (De 323% en 2021 a 360% en 2029) | H112: Para el año 2032, se ha incrementado la formalidad del empleo XX%, en el municipio XXX (De XX% en el año XXX a XX% en el año 2032) | I112: Para el año 2029, se ha incrementado en XX% el número de personas atendidas en eventos y/o actividades de promoción de empleo en el municipio XXX (De un XX% en el año XXX a un XX% en el año 2029) | J112: Avance para disminuir la brecha Digital con Tecnologías e Innovación | K112: Personas capacitadas e informadas sobre los beneficios económicos de la competencia en los mercados y en la competitividad del país a nivel departamental | L112: Persona | N112: X | O112: Ministerio de Economía -MINECO- | P112: MINECO | Q112: MUNICIPALIDAD | R112: 22 | S112: Nombre: Apoyo al desarrollo económico local Descripción: Apoyo al desarrollo económico local | T112: 5 | U112: Nombre: Promoción de la inversión y competencia Descripción: Promoción de la inversión y competencia | V112: Nombre: Competitividad a nivel departamental Descripción: Personas capacitadas e informadas sobre los beneficios económicos de la competencia en los mercados y en la competitividad del país a nivel departamental | W112: Número de personas capacitadas e informadas sobre los beneficios económicos de la competencia en los mercados y en la competitividad del país a nivel departamental, al finalizar el año 2026.
A113: 106 | B113: Riqueza para todas y todos | C113: ODS 8 Trabajo decente y crecimiento económico | D113: PND 5 Empleo e inversión | E113: MED 7 Se ha reducido la precariedad laboral mediante la generación de empleos decentes y de calidad | F113: Para el 2029, se ha incrementado en 37 puntos porcentuales la formalidad del empleo (De 323% en 2021 a 360% en 2029) | H113: Para el año 2032, se ha incrementado la formalidad del empleo XX%, en el municipio XXX (De XX% en el año XXX a XX% en el año 2032) | I113: Para el año 2029, se ha incrementado en XX% el número de personas atendidas en eventos y/o actividades de promoción de empleo, en el municipio XXX (De un XX% en el año XXX a un XX% en el año 2029) | K113: Jóvenes capacitados y certificados en formación profesional de emprendimiento e innovación, con énfasis en mujeres y discapacitados a nivel departamental | L113: Persona | N113: X | O113: Ministerio de Economía -MINECO- | P113: MINECO | Q113: MUNICIPALIDAD | R113: 22 | S113: Nombre: Apoyo al desarrollo económico local Descripción: Apoyo al desarrollo económico local | T113: 5 | U113: Nombre: Promoción de la inversión y competencia Descripción: Promoción de la inversión y competencia | V113: Nombre: Formación profesional de emprendimiento e innovación Descripción: Jóvenes capacitados y certificados en formación profesional de emprendimiento e innovación, con énfasis en mujeres y discapacitados a nivel departamental | W113: Número de jóvenes capacitados y certificados en formación profesional de emprendimiento e innovación, con énfasis en mujeres y discapacitados a nivel departamental, al finalizar el año 2026.
A114: 107 | B114: Estado garante de los derechos humanos y conductor del desarrollo | C114: ODS 16 Paz, Justicia e instituciones sólidas | D114: PND 7 Fortalecimiento institucional, seguridad y justicia | E114: MED 12 Crear instituciones eficaces, responsables y transparentes a todos los niveles | G114: Al año 2025, se ha alcanzado el 70% de las metas establecidas en la PGG y el 20% de las metas de las Prioridades Nacionales del Desarrollo, con base en los instrumentos, orientaciones, criterios y metodologías trasladadas por SEGEPLAN a las Instituciones Públicas | J114: Hacia una función pública legítima y eficaz | K114: Nombre: Asesoría técnica en procesos de capacitación Descripción: Entidades e instituciones públicas, y Sistema de Consejos de Desarrollo, con asesoría técnica en procesos de planificación y programación, con orientación a resultados | L114: Entidad | N114: X | O114: SEGEPLAN | P114: SEGEPLAN | Q114: MUNICIPALIDAD | R114: 35 | S114: Nombre: Fortalecimiento en la planificación nacional para desarrollo integral del país Descripción: Fortalecimiento en la planificación nacional para desarrollo integral del país | T114: 0 | U114: Nombre: Sin Subprograma Descripción: Sin subprograma | V114: Nombre: Asesoría técnica en procesos de capacitación Descripción: Entidades e instituciones públicas, y Sistema de Consejos de Desarrollo, con asesoría técnica en procesos de planificación y programación, con orientación a resultados | W114: Número de Asesoría técnica en procesos de capacitación, al finalizar el año 2026.
A115: 108 | B115: Guatemala Urbana y Rural | C115: ODS 11 Ciudades y comunidades sostenibles | D115: PND 10 Ordenamiento Territorial | E115: MED 15 El 100% de los municipios cuentan con planes de ordenamiento territorial integral que se implementan satisfactoriamente | G115: Para el 2029, se ha incrementado el promedio nacional (1554) de la Gestión Estratégica Municipal, en función de sus competencias (De categoría "baja" en 2021 a categoría "media baja" en 2029, considerando la Medición del Desempeño de la Gestión Municipal)) | H115: Para el 2032, se ha incrementado en XX m2 las áreas de parques, jardínes y lugares de recreación gestionadas para su mejora, el municipio XXX (De un XXX en el año XXX a XXX en el año 2032) | I115: Para el 2029, se ha incrementado en XX m2 las áreas de parques, jardínes y lugares de recreación gestionadas para su mejora, en el municipio (De un XXX en el año XXX a XXX en el año 2029) | J115: La Infraestructura Económica para el Buen Vivir | K115: Areas de espacio público gestionadas | L115: m2 | M115: X | O115: MUNICIPALIDAD | P115: MUNICIPALIDAD | Q115: MUNICIPALIDAD | R115: 19 | S115: Movilidad urbana y espacios públicos | T115: 2 | U115: Desarrollo Municipal y Ordenamiento Territorial | V115: Areas de espacio público gestionadas | W115: Número de metros cuadrados gestionados para áreas de espacio público.
A116: 109 | B116: Riqueza para todas y todos | C116: ODS 8 Trabajo decente y crecimiento económico | D116: PND 5 Empleo e inversión | E116: MED 6 En 2032, el crecimiento del PIB real ha sido paulatino y sostenido, hasta alcanzar una tasa no menor del 54%: a) Rango entre 34 y 44% en el quinquenio 2015-2020 b) Rango entre 44 y 54% en el quinquenio 2021-2025 c) No menor del 54% en los siguientes años, hasta llegar a 2032 | G116: Para el 2032, se ha disminuido la pobreza y pobreza extrema con énfasis en los departamentos priorizados en 20 puntos porcentuales (de 2014 a 2032 en: pobreza extrema*/ pobreza**;Alta Verapaz: 536 a 268 * /2950 a 1475 ; Sololá: 399 a 1995 * / 4110 a 2055; Totonicapán: 41 1 a 2055 * / 3640 a 182; Huehuetenango: 286 a 143 * / 4520 a 226; Quiché 418 a 209 * / 3290 a 1640; Chiquimula 411 a 2055 * / 2950 a 1475) | H116: Para el año 2032, se ha incrementado la formalidad del empleo XX%, en el municipio XXX (De XX% en el año XXX a XX% en el año 2032) | I116: Para el año 2029, se ha incrementado en XX% el número de personas atendidas en eventos y/o actividades de promoción de empleo en el municipio XXX (De un XX% en el año XXX a un XX% en el año 2029) | J116: Desarrollo social | K116: Empresario de Micro, pequeña y mediana empresa beneficiados con servicios financieros a nivel departamental | L116: Persona | N116: X | O116: MINECO | P116: MINECO | Q116: Municipalidad | R116: 14 | S116: DESARROLLO DE LA MICRO, PEQUEÑA Y MEDIANA EMPRESA | V116: Empresario de Micro, pequeña y mediana empresa beneficiados con servicios financieros a nivel departamental | W116: Número de empresarios de Micro, pequeña y mediana empresa beneficiados con servicios financieros a nivel departamental, al finalizar el año 2026.
